Department family,Entity,Date,Expense Type, Expense Area , Supplier ,Transaction number, AP Amount (�) ,Purchase invoice number,Comments from NHS England
Department of Health,NHS England,09/10/2013,Services from other NHS bodies, Public Health , ROYAL CORNWALL HOSPITALS NHS TRUST ,1389154," 59,722.00 ",2423020 ,
Department of Health,NHS England,11/10/2013,Purchase of healthcare from non-NHS bodies, Primary Care , ANAWIM WWT ,1417737," 42,213.00 ",068A,
Department of Health,NHS England,11/10/2013,Purchase of healthcare from non-NHS bodies, Health & Justice , BEXLEY COUNCIL ,1418068," 29,000.00 ",6400099877 ,
Department of Health,NHS England,11/10/2013,GPMS/APMS and PCTMS, Primary Care , CENTRAL ESSEX COMMUNITY SERVICES CIC ,1417368," 129,816.15 ",CE4000004657,
Department of Health,NHS England,11/10/2013,Purchase of healthcare from non-NHS bodies, Health & Justice , CRI ,1431587," 28,500.00 ",15977 ,
Department of Health,NHS England,11/10/2013,Purchase of healthcare from non-NHS bodies, Specialised Commissioning , ESSEX PROBATION ,1417920," 33,333.33 ",INVS000237,
Department of Health,NHS England,11/10/2013,Purchase of healthcare from non-NHS bodies, Specialised Commissioning , LMBBS CLINICS LTD ,1431603," 35,293.75 ",189268531101633 ,
Department of Health,NHS England,11/10/2013,Services from other NHS bodies, Public Health , NOTTINGHAM CITY CARE PARTNERSHIP CIC ,1431507," 6,427.37 ",18733728 ,
Department of Health,NHS England,11/10/2013,Purchase of healthcare from non-NHS bodies, Public Health , NOTTINGHAM CITY CARE PARTNERSHIP CIC ,1431507," 514,189.07 ",18733728 ,
Department of Health,NHS England,11/10/2013,Purchase of healthcare from non-NHS bodies, Specialised Commissioning , PRIORY GROUP LTD ,1431700," 126,367.01 ",3900000586 ,
Department of Health,NHS England,11/10/2013,Purchase of healthcare from non-NHS bodies, Health & Justice , SODEXO LTD ,1431785," 89,591.67 ",9051020462 ,
Department of Health,NHS England,14/10/2013,General Opthalmic services, Primary Care , SPECSAVERS OPTICIANS ,1435419," 39,800.62 ",4011579_S,
Department of Health,NHS England,15/10/2013,GPMS/APMS and PCTMS, Primary Care , BARKANTINE PRACTICE ,1445252," 60,458.00 ",WIC032,
Department of Health,NHS England,15/10/2013,Other professional fees, NHS England Running Costs , CAPSTICKS SOLICITORS LLP ,1445417," 23,792.60 ",222523 ,
Department of Health,NHS England,15/10/2013,Purchase of healthcare from non-NHS bodies, Health & Justice , CARE UK CLINICAL SERVICES LTD ,1445249," 1,613,014.33 ",120020859 ,
Department of Health,NHS England,15/10/2013,Purchase of healthcare from non-NHS bodies, Specialised Commissioning , CHILDRENS TRUST (THE) ,1445407," 278,583.00 ",7 ,
Department of Health,NHS England,15/10/2013,Purchase of healthcare from non-NHS bodies, Specialised Commissioning , COBALT UNIT APPEAL FUND ,1445104," 51,500.00 ",CIC35482,
Department of Health,NHS England,15/10/2013,Services from other NHS bodies, Public Health , FIRST COMMUNITY HEALTH & CARE CIC ,1445682,"-39,736.80 ",019SERVICEEAST,
Department of Health,NHS England,15/10/2013,Services from other NHS bodies, Public Health , FIRST COMMUNITY HEALTH & CARE CIC ,1445151," 39,736.80 ",SIFCHC1182,
Department of Health,NHS England,15/10/2013,Purchase of healthcare from non-NHS bodies, Health & Justice , G4S FORENSIC & MEDICAL SERVICES (UK) LTD ,1445088," 29,487.60 ",09WMERCSARC,
Department of Health,NHS England,15/10/2013,Purchase of healthcare from non-NHS bodies, Health & Justice , G4S FORENSIC & MEDICAL SERVICES (UK) LTD ,1445377," 29,487.60 ",12WMERCSARC,
Department of Health,NHS England,15/10/2013,Purchase of healthcare from non-NHS bodies, Health & Justice , G4S FORENSIC & MEDICAL SERVICES (UK) LTD ,1445153," 33,665.04 ",07WMERCSARC,
Department of Health,NHS England,15/10/2013,Premises, Other , HAVEN HOUSE CHILDRENS HOSPICE ,1456114," 199,752.00 ",SEP13005,
Department of Health,NHS England,15/10/2013,GPMS/APMS and PCTMS, Primary Care , HBP SURGERY LUNDWOOD ,1445378," 59,010.42 ",54 ,
Department of Health,NHS England,15/10/2013,Premises, Other , HEALTHCARE QUALITY IMPROVEMENT PARTNERSHIP ,1446120,"-95,541.12 ",C09028,
Department of Health,NHS England,15/10/2013,Premises, Other , HEALTHCARE QUALITY IMPROVEMENT PARTNERSHIP ,1457316," 34,673.50 ",S01677,
Department of Health,NHS England,15/10/2013,Premises, Other , HEALTHCARE QUALITY IMPROVEMENT PARTNERSHIP ,1446121," 135,311.53 ",S01852,
Department of Health,NHS England,15/10/2013,Premises, Other , HEALTHCARE QUALITY IMPROVEMENT PARTNERSHIP ,1446119," 601,299.25 ",S01676,
Department of Health,NHS England,15/10/2013,GPMS/APMS and PCTMS, Primary Care , HIGHGATE SURGERY HBP ,1445376," 52,675.75 ",50 ,
Department of Health,NHS England,15/10/2013,Purchase of healthcare from non-NHS bodies, Public Health , MEDICAL IMAGING UK LTD ,1457354," 123,102.43 ",P0077,
Department of Health,NHS England,15/10/2013,Purchase of healthcare from non-NHS bodies, Specialised Commissioning , MEDICX PHARMACY LTD ,1445371," 223,480.27 ",BLA44,
Department of Health,NHS England,15/10/2013,Purchase of healthcare from non-NHS bodies, Specialised Commissioning , NEWBRIDGE CARE SYSTEMS LTD ,1446134," 240,835.05 ",782 ,
Department of Health,NHS England,15/10/2013,Purchase of healthcare from non-NHS bodies, Health & Justice , PHOENIX FUTURES ,1457303," 58,474.00 ",111335 ,
Department of Health,NHS England,15/10/2013,Premises, Other , RAINBOWS CHILDRENS HOSPICE ,1445152," 322,217.00 ",1079 ,
Department of Health,NHS England,15/10/2013,Purchase of healthcare from non-NHS bodies, Health & Justice , SPECTRUM COMMUNITY HEALTH CIC ,1445150," 250,098.00 ",SINV318,
Department of Health,NHS England,15/10/2013,GPMS/APMS and PCTMS, Primary Care , SRCL LTD ,1445106," 28,016.24 ",620715 ,
Department of Health,NHS England,15/10/2013,GPMS/APMS and PCTMS, Primary Care , SRCL LTD ,1445422," 32,041.25 ",630186 ,
Department of Health,NHS England,17/10/2013,Services from other NHS bodies, Specialised Commissioning , SOUTH STAFFORDSHIRE AND SHROPSHIRE HEALTHCARE NHS FOUNDATION TRUST ,1467039," 1,667,510.33 ",I0052630,
Department of Health,NHS England,17/10/2013,Establishment, Secondary and Community Dental Care , WILLIAMS LEA LTD ,1467059," 75,323.26 ",DHNHSE13090010,
Department of Health,NHS England,18/10/2013,Establishment, NHS England Running Costs , CENTERPRISE INTERNATIONAL LTD ,1478961," 91,157.14 ",90140376 ,
Department of Health,NHS England,18/10/2013,Establishment, NHS England Running Costs , CENTERPRISE INTERNATIONAL LTD ,1479292," 92,300.00 ",90141111 ,
Department of Health,NHS England,18/10/2013,Purchase of healthcare from non-NHS bodies, Specialised Commissioning , CUMBRIA PROBATION TRUST ,1479281," 39,600.00 ",2013048 ,
Department of Health,NHS England,18/10/2013,Premises, Other , DORSET HEALTHCARE NHS FOUNDATION TRUST ,1479040," 481,296.00 ",D0006177,
Department of Health,NHS England,18/10/2013,GPMS/APMS and PCTMS, Public Health , LOCAL CARE DIRECT ,1479351," 3,218.50 ",15741 ,
Department of Health,NHS England,18/10/2013,GPMS/APMS and PCTMS, Primary Care , LOCAL CARE DIRECT ,1479351," 140,387.88 ",15741 ,
Department of Health,NHS England,18/10/2013,Supplies and services � general, Other , MARKET & OPINION RESEARCH INTERNATIONAL LTD ,1479185," 441,764.06 ",13001761 ,
Department of Health,NHS England,18/10/2013,Purchase of healthcare from non-NHS bodies, Health & Justice , NECA (SERVICES) LTD ,1480470," 47,041.50 ",217 ,
Department of Health,NHS England,18/10/2013,Purchase of healthcare from non-NHS bodies, Secondary and Community Dental Care , PLYMOUTH COMMUNITY HEALTHCARE CIC ,1479284," 200,439.00 ",41122031 ,
Department of Health,NHS England,18/10/2013,Purchase of healthcare from non-NHS bodies, Public Health , PLYMOUTH COMMUNITY HEALTHCARE CIC ,1479284," 299,000.00 ",41122031 ,
Department of Health,NHS England,18/10/2013,Establishment, NHS England Running Costs , PSL PRINT MANAGEMENT ,1479631,"-48,684.79 ",214743 ,
Department of Health,NHS England,18/10/2013,Purchase of healthcare from non-NHS bodies, Specialised Commissioning , RIVERDALE GRANGE LTD ,1480457," 191,233.20 ",497 ,
Department of Health,NHS England,18/10/2013,Purchase of healthcare from non-NHS bodies, Social Care , THURROCK BOROUGH COUNCIL ,1480428," 936,602.00 ",8607761 ,
Department of Health,NHS England,18/10/2013,Purchase of healthcare from non-NHS bodies, Specialised Commissioning , WEST YORKSHIRE PROBATION TRUST ,1479336," 34,385.00 ",W0001795,
Department of Health,NHS England,24/10/2013,GPMS/APMS and PCTMS, Primary Care , DEARNE MEDICAL GROUP ,1537075," 48,976.42 ",DMG104,
Department of Health,NHS England,25/10/2013,Purchase of healthcare from non-NHS bodies, Public Health , ANGLIAN COMMUNITY ENTERPRISE CIC ,1551819," 387,590.00 ",AC7000005949,
Department of Health,NHS England,25/10/2013,Purchase of healthcare from non-NHS bodies, Health & Justice , SODEXO LTD ,1551972," 54,456.92 ",9051020478 ,
Department of Health,NHS England,28/10/2013,Purchase of healthcare from non-NHS bodies, Health & Justice , INTEGRAL HEALTHCARE PARTNERSHIP ,1567077," 40,900.00 ",IHPHINDLEY013121310101340900,
Department of Health,NHS England,31/10/2013,Services from other NHS bodies, Secondary and Community Dental Care , BIRMINGHAM COMMUNITY HEALTHCARE NHS TRUST ,1360951," 116,326.00 ",44996847 ,
Department of Health,NHS England,31/10/2013,Purchase of healthcare from non-NHS bodies, Secondary and Community Dental Care , BODMIN NHS TREATMENT CENTRE ,1537649," 40,402.09 ",NVC24OCT13O,
Department of Health,NHS England,31/10/2013,Purchase of healthcare from non-NHS bodies, Specialised Commissioning , NHS BLOOD & TRANSPLANT ,1587065," 33,265.26 ",522798 ,
Department of Health,NHS England,31/10/2013,Purchase of healthcare from non-NHS bodies, Specialised Commissioning , NHS BLOOD & TRANSPLANT ,1587066," 60,544.88 ",522753 ,
Department of Health,NHS England,31/10/2013,Services from other NHS bodies, Specialised Commissioning , NHS BRACKNELL AND ASCOT CCG ,1524612," 593,430.51 ",7027200045 ,
Department of Health,NHS England,31/10/2013,Purchase of healthcare from non-NHS bodies, Social Care , NHS DIRECT ,1350432," 25,433.00 ",702012 ,
Department of Health,NHS England,31/10/2013,Purchase of healthcare from non-NHS bodies, Social Care , NHS DIRECT ,1587905," 544,382.00 ",702076 ,
Department of Health,NHS England,31/10/2013,Purchase of healthcare from non-NHS bodies, Social Care , NHS DIRECT ,1350431," 563,504.00 ",702011 ,
Department of Health,NHS England,31/10/2013,Purchase of healthcare from non-NHS bodies, Other , NHS DIRECT ,1491333," 2,057,503.97 ",701999 ,
Department of Health,NHS England,31/10/2013,Purchase of healthcare from non-NHS bodies, Other , NHS DIRECT ,1491390," 2,057,503.97 ",702018 ,
Department of Health,NHS England,31/10/2013,Purchase of healthcare from non-NHS bodies, Other , NHS DIRECT ,1491226," 2,064,526.80 ",701943 ,
Department of Health,NHS England,31/10/2013,Services from other NHS bodies, Specialised Commissioning , NHS LOTHIAN ,1565455," 43,033.00 ",S0007560,
Department of Health,NHS Anglia CSU,31/10/2013,Consultancy services, Other , BDO LLP ,1346793," 72,414.37 ",1186201 ,
Department of Health,NHS Anglia CSU,31/10/2013,Consultancy services, Other , CAPGEMINI UK PLC ,1346805," 59,964.00 ",26020080810830 ,
Department of Health,NHS Anglia CSU,31/10/2013,Consultancy services, Other , CAPGEMINI UK PLC ,1346813," 59,976.00 ",26020080810854 ,
Department of Health,NHS Anglia CSU,31/10/2013,Establishment, Other , DIONYSYS LTD ,1427894," 75,839.81 ",27270 ,
Department of Health,NHS Arden CSU,31/10/2013,Establishment, Other , WORCESTERSHIRE ACUTE HOSPITALS NHS TRUST ,1384783," 30,215.08 ",4421285 ,
Department of Health,NHS Arden CSU,31/10/2013,Establishment, Other , WORCESTERSHIRE ACUTE HOSPITALS NHS TRUST ,1384783," 89,398.92 ",4421285 ,
Department of Health,NHS Central Midlands CSU,31/10/2013,Consultancy services, Other , A TO Z INTERPRETING & TRANSLATION ,1489616," 33,555.75 ",INV011,
Department of Health,NHS Central Midlands CSU,31/10/2013,Establishment, Other , DUDLEY GROUP HOSPITALS NHS FOUNDATION TRUST ,1442567," 43,261.90 ",1000016823 ,
Department of Health,NHS Central Midlands CSU,31/10/2013,Establishment, Other , EGTON MEDICAL INFORMATION SYSTEMS LTD ,1516138," 134,498.82 ",IN6691921,
Department of Health,NHS Central Midlands CSU,31/10/2013,Establishment, Other , EGTON MEDICAL INFORMATION SYSTEMS LTD ,1489331," 139,351.76 ",IN6696841,
Department of Health,NHS Central Midlands CSU,31/10/2013,Establishment, Other , EGTON MEDICAL INFORMATION SYSTEMS LTD ,1489342," 173,071.88 ",1N6665441,
Department of Health,NHS Central Midlands CSU,31/10/2013,Establishment, Other , EGTON MEDICAL INFORMATION SYSTEMS LTD ,1516118," 173,071.88 ",IN6665421,
Department of Health,NHS Central Midlands CSU,31/10/2013,Consultancy services, Other , EXPRESS INTERPRETING & TRANSLATION ,1443315," 35,351.25 ",EX130,
Department of Health,NHS Central Midlands CSU,31/10/2013,Consultancy services, Other , FIVE STAR INTERPRETING ,1465128," 24,097.50 ",113202 ,
Department of Health,NHS Central Midlands CSU,31/10/2013,Consultancy services, Other , GLOBAL TRANSLATION SERVICES ,1504272," 34,066.50 ",100269 ,
Department of Health,NHS Central Midlands CSU,31/10/2013,Consultancy services, Other , PROFESSIONAL LINGUISTS LTD ,1404072," 28,965.00 ",INV181,
Department of Health,NHS Central Midlands CSU,31/10/2013,Consultancy services, Other , PROFESSIONAL LINGUISTS LTD ,1584725," 31,188.75 ",INV182,
Department of Health,NHS Central Midlands CSU,31/10/2013,Establishment, Other , VIRGIN MEDIA BUSINESS LTD ,1427701," 70,329.60 ",924963413 ,
Department of Health,NHS Central Southern CSU,31/10/2013,Establishment, Other , CSC COMPUTER SCIENCES LTD ,1503903," 53,122.49 ",5201343573 ,
Department of Health,NHS Central Southern CSU,31/10/2013,Establishment, Other , DACOLL LTD ,1534720," 37,269.00 ",1783104 ,
Department of Health,NHS Central Southern CSU,31/10/2013,Establishment, Other , GLOUCESTERSHIRE HOSPITALS NHS FOUNDATION TRUST ,1503806," 99,643.00 ",2001991 ,
Department of Health,NHS Central Southern CSU,31/10/2013,Establishment, Other , GLOUCESTERSHIRE HOSPITALS NHS FOUNDATION TRUST ,1503792," 147,020.00 ",2001990 ,
Department of Health,NHS Central Southern CSU,31/10/2013,Establishment, Other , GLOUCESTERSHIRE HOSPITALS NHS FOUNDATION TRUST ,1453574," 147,999.00 ",2001939 ,
Department of Health,NHS Central Southern CSU,31/10/2013,Establishment, Other , HEALTHCARE COMPUTING LTD ,1584136," 27,061.00 ",43521 ,
Department of Health,NHS Central Southern CSU,31/10/2013,Establishment, Other , HEALTHCARE COMPUTING LTD ,1464846," 30,009.00 ",43524 ,
Department of Health,NHS Central Southern CSU,31/10/2013,Establishment, Other , HEALTHCARE COMPUTING LTD ,1503963," 51,675.00 ",43522 ,
Department of Health,NHS Central Southern CSU,31/10/2013,Establishment, Other , SOLLIS PARTNERSHIP LTD ,1549953," 99,626.40 ",3277 ,
Department of Health,NHS Central Southern CSU,31/10/2013,Establishment, Other , UNIVERSITY HOSPITAL BIRMINGHAM NHS FOUNDATION TRUST ,1427796," 27,500.00 ",OPP020059,
Department of Health,NHS Central Southern CSU,31/10/2013,Establishment, Other , UNIVERSITY HOSPITAL BIRMINGHAM NHS FOUNDATION TRUST ,1453738," 110,000.00 ",OPP012644,
Department of Health,NHS Cheshire And Merseyside CSU,31/10/2013,Consultancy services, Other , BENCHMARK MANAGEMENT CONSULTING LTD ,1404854," 25,920.00 ",BMC490,
Department of Health,NHS Cheshire And Merseyside CSU,31/10/2013,Consultancy services, Other , BENCHMARK MANAGEMENT CONSULTING LTD ,1404846," 32,400.00 ",BMC489,
Department of Health,NHS Cheshire And Merseyside CSU,31/10/2013,Consultancy services, Other , BENCHMARK MANAGEMENT CONSULTING LTD ,1404861," 35,357.78 ",BMC491,
Department of Health,NHS Cheshire And Merseyside CSU,31/10/2013,Establishment, Other , INSIGHT DIRECT (UK) LTD ,1375797," 29,854.80 ",1516776 ,
Department of Health,NHS Cheshire And Merseyside CSU,31/10/2013,Establishment, Other , MERSEY CARE NHS TRUST ,1516871," 45,931.23 ",I0029489,
Department of Health,NHS Cheshire And Merseyside CSU,31/10/2013,Establishment, Other , MERSEY CARE NHS TRUST ,1564151," 45,931.23 ",I0029572,
Department of Health,NHS Cheshire And Merseyside CSU,31/10/2013,Establishment, Other , METHODS CONSULTING LTD ,1480480," 111,859.00 ",SIN000042,
Department of Health,NHS England,31/10/2013,GPMS/APMS and PCTMS, Primary Care , 157 MEDICAL PRACTICE ,1376156," 25,456.05 ",LNE000002358,
Department of Health,NHS England,31/10/2013,Purchase of healthcare from non-NHS bodies, Public Health , 1ST RETINAL SCREEN ,1551883," 57,920.18 ",489 ,
Department of Health,NHS England,31/10/2013,Services from other NHS bodies, Specialised Commissioning , 2GETHER NHS FOUNDATION TRUST ,1519407," 164,392.67 ",9004006 ,
Department of Health,NHS England,31/10/2013,Establishment, NHS England Running Costs , 3M SECURITY SYSTEMS DIVISION ,1217675, 94.85 ,122230 ,
Department of Health,NHS England,31/10/2013,Establishment, NHS England Running Costs , 3M SECURITY SYSTEMS DIVISION ,1389177," 23,491.11 ",123237 ,
Department of Health,NHS England,31/10/2013,Establishment, Primary Care , 3M SECURITY SYSTEMS DIVISION ,1217675," 26,726.72 ",122230 ,
Department of Health,NHS England,31/10/2013,Establishment, NHS England Running Costs , 3M SECURITY SYSTEMS DIVISION ,1389172," 36,902.17 ",123232 ,
Department of Health,NHS England,31/10/2013,GPMS/APMS and PCTMS, Primary Care , 4 SEASONS MEDICAL CENTRE LTD ,1394080," 30,549.59 ",CH000003246,
Department of Health,NHS England,31/10/2013,Services from other NHS bodies, Primary Care , 5 BOROUGHS PARTNERSHIP NHS FOUNDATION TRUST ,1350353," 12,750.00 ",16029925 ,
Department of Health,NHS England,31/10/2013,Services from other NHS bodies, Health & Justice , 5 BOROUGHS PARTNERSHIP NHS FOUNDATION TRUST ,1350353," 21,901.00 ",16029925 ,
Department of Health,NHS England,31/10/2013,Services from other NHS bodies, Public Health , 5 BOROUGHS PARTNERSHIP NHS FOUNDATION TRUST ,1375542," 279,923.00 ",16029926 ,
Department of Health,NHS England,31/10/2013,Services from other NHS bodies, Specialised Commissioning , 5 BOROUGHS PARTNERSHIP NHS FOUNDATION TRUST ,1375543," 747,125.00 ",16029927 ,
Department of Health,NHS England,31/10/2013,Services from other NHS bodies, Primary Care , 543 DENTAL CENTRE LTD ,1388371," 25,777.00 ",140 ,
Department of Health,NHS England,31/10/2013,GPMS/APMS and PCTMS, Primary Care , A F FROLEY ,1496204," 37,585.92 ",LNP000003713,
Department of Health,NHS England,31/10/2013,GPMS/APMS and PCTMS, Primary Care , A HAFEEZ ,1395702," 37,437.58 ",LNP000003314,
Department of Health,NHS England,31/10/2013,GPMS/APMS and PCTMS, Primary Care , A MOGHAL ,1391263,"-53,164.92 ",LNC000002028,
Department of Health,NHS England,31/10/2013,GPMS/APMS and PCTMS, Primary Care , A MOGHAL ,1391265," 120,877.92 ",LNC000002029,
Department of Health,NHS England,31/10/2013,Premises, NHS England Running Costs , A VIRANI ,1375006," 43,469.76 ",LRPL48,
Department of Health,NHS England,31/10/2013,GPMS/APMS and PCTMS, Primary Care , ABAZIE OD & PARTNER ,1543041," 27,675.37 ",EX000007359,
Department of Health,NHS England,31/10/2013,GPMS/APMS and PCTMS, Primary Care , ABBEY DALE MEDICAL CENTRE ,1525368," 35,829.59 ",LA000005709,
Department of Health,NHS England,31/10/2013,GPMS/APMS and PCTMS, Primary Care , ABBEY HOUSE MEDICAL PRACTICE ,1393228,"-51,544.20 ",NO000002479,
Department of Health,NHS England,31/10/2013,GPMS/APMS and PCTMS, Primary Care , ABBEY HOUSE MEDICAL PRACTICE ,1393229," 220,484.40 ",NO000002480,
Department of Health,NHS England,31/10/2013,GPMS/APMS and PCTMS, Primary Care , ABBEY LANE SURGERY ,1392594,"-26,516.37 ",SHE000002032,
Department of Health,NHS England,31/10/2013,GPMS/APMS and PCTMS, Primary Care , ABBEY LANE SURGERY ,1392596," 51,702.16 ",SHE000002033,
Department of Health,NHS England,31/10/2013,GPMS/APMS and PCTMS, Primary Care , ABBEY MANOR MEDICAL PRACTICE ,1393146," 39,846.60 ",SM000001799,
Department of Health,NHS England,31/10/2013,GPMS/APMS and PCTMS, Primary Care , ABBEY MEAD SURGERY ,1493442," 78,495.20 ",SO000007478,
Department of Health,NHS England,31/10/2013,GPMS/APMS and PCTMS, Primary Care , ABBEY MEDICAL CENTER KENILWORTH ,1540209," 98,728.60 ",WA000002367,
Department of Health,NHS England,31/10/2013,GPMS/APMS and PCTMS, Primary Care , ABBEY MEDICAL CENTER LONDON ,1542610," 97,750.48 ",LND000002369,
Department of Health,NHS England,31/10/2013,GPMS/APMS and PCTMS, Primary Care , ABBEY MEDICAL PRACTICE EVESHAM ,1548103," 80,078.91 ",WR000002642,
Department of Health,NHS England,31/10/2013,GPMS/APMS and PCTMS, Primary Care , ABBEY MEDICAL PRACTICE WELLINGBOROUGH ,1393230,"-37,843.78 ",NO000002481,
Department of Health,NHS England,31/10/2013,GPMS/APMS and PCTMS, Primary Care , ABBEY MEDICAL PRACTICE WELLINGBOROUGH ,1393231," 168,253.83 ",NO000002482,
Department of Health,NHS England,31/10/2013,GPMS/APMS and PCTMS, Primary Care , ABBEY PRACTICE GROUP ,1495434," 49,630.01 ",DUD000001030,
Department of Health,NHS England,31/10/2013,GPMS/APMS and PCTMS, Primary Care , ABBEY ROAD HEALTH CENTRE ,1502439," 85,149.73 ",LNA000002964,
Department of Health,NHS England,31/10/2013,GPMS/APMS and PCTMS, Primary Care , ABBEY SURGERY TAVISTOCK ,1482893,"-25,746.92 ",DN000005818,
Department of Health,NHS England,31/10/2013,GPMS/APMS and PCTMS, Primary Care , ABBEY SURGERY TAVISTOCK ,1420397," 27,974.17 ",DN000005677,
Department of Health,NHS England,31/10/2013,GPMS/APMS and PCTMS, Primary Care , ABBEY SURGERY TAVISTOCK ,1487766," 125,368.49 ",DN000005819,
Department of Health,NHS England,31/10/2013,GPMS/APMS and PCTMS, Primary Care , ABBEY VIEW MEDICAL CENTRE ,1385444," 142,371.76 ",DO000002989,
Department of Health,NHS England,31/10/2013,GPMS/APMS and PCTMS, Primary Care , ABBEY WOOD SURGERY ,1393595," 84,890.12 ",LNW000001579,
Department of Health,NHS England,31/10/2013,GPMS/APMS and PCTMS, Primary Care , ABBOTS WOOD MEDICAL CENTRE ,1542374," 37,724.89 ",HT000004041,
Department of Health,NHS England,31/10/2013,GPMS/APMS and PCTMS, Primary Care , ABBOTSBURY ROAD SURGERY ,1487668," 72,052.05 ",DO000003199,
Department of Health,NHS England,31/10/2013,GPMS/APMS and PCTMS, Primary Care , ABBOTT & PATEL ,1532543," 53,709.15 ",DR000002507,
Department of Health,NHS England,31/10/2013,GPMS/APMS and PCTMS, Primary Care , ABBOTTSWOOD MEDICAL CENTRE ,1556284," 25,850.90 ",WR000002810,
Department of Health,NHS England,31/10/2013,GPMS/APMS and PCTMS, Primary Care , ABBOTTSWOOD MEDICAL CENTRE ,1548104," 95,858.36 ",WR000002644,
Department of Health,NHS England,31/10/2013,GPMS/APMS and PCTMS, Primary Care , ABDI SHS ,1481723," 30,625.89 ",LIP000003219,
Department of Health,NHS England,31/10/2013,GPMS/APMS and PCTMS, Primary Care , ABELL WOODCOCK CHURCH DILS & PARTNERS ,1401611," 85,614.60 ",DE000004130,
Department of Health,NHS England,31/10/2013,GPMS/APMS and PCTMS, Primary Care , ABERFELDY STREET PRACTICE ,1495287," 61,854.23 ",LNA000002966,
Department of Health,NHS England,31/10/2013,GPMS/APMS and PCTMS, Primary Care , ABERNETHY HOUSE ,1376159,"-25,759.59 ",LNE000002361,
Department of Health,NHS England,31/10/2013,GPMS/APMS and PCTMS, Primary Care , ABERNETHY HOUSE ,1376160," 125,221.92 ",LNE000002362,
Department of Health,NHS England,31/10/2013,GPMS/APMS and PCTMS, Primary Care , ABEYEWARDENE A K ,1543043," 33,003.17 ",EX000007361,
Department of Health,NHS England,31/10/2013,GPMS/APMS and PCTMS, Primary Care , ABINGDON HEALTH CENTRE ,1402166," 84,712.58 ",LNJ000001938,
Department of Health,NHS England,31/10/2013,GPMS/APMS and PCTMS, Primary Care , ABINGDON SURGERY ,1547886," 99,209.75 ",OX000002644,
Department of Health,NHS England,31/10/2013,GPMS/APMS and PCTMS, Primary Care , ABINGTON MEDICAL CENTRE ,1393232,"-29,652.74 ",NO000002483,
Department of Health,NHS England,31/10/2013,GPMS/APMS and PCTMS, Primary Care , ABINGTON MEDICAL CENTRE ,1402042," 165,326.37 ",NO000002484,
Department of Health,NHS England,31/10/2013,GPMS/APMS and PCTMS, Primary Care , ABINGTON PARK SURGERY ,1393233,"-29,876.64 ",NO000002485,
Department of Health,NHS England,31/10/2013,GPMS/APMS and PCTMS, Primary Care , ABINGTON PARK SURGERY ,1393234," 128,861.02 ",NO000002486,
Department of Health,NHS England,31/10/2013,GPMS/APMS and PCTMS, Primary Care , ABNEY HOUSE MEDICAL CENTRE ,1495289," 26,597.23 ",LNA000002968,
Department of Health,NHS England,31/10/2013,GPMS/APMS and PCTMS, Primary Care , ABRAHAM K K & PARTNER ,1543046," 38,548.73 ",EX000007365,
Department of Health,NHS England,31/10/2013,GPMS/APMS and PCTMS, Primary Care , ACCRINGTON VIC HAC ,1525371," 165,004.59 ",LA000005713,
Department of Health,NHS England,31/10/2013,GPMS/APMS and PCTMS, Primary Care , ACORN D J & PARTNER ,1543048," 32,494.85 ",EX000007367,
Department of Health,NHS England,31/10/2013,GPMS/APMS and PCTMS, Primary Care , ACORN GROUP PRACTICE ,1502495," 79,059.32 ",LNN000002088,
Department of Health,NHS England,31/10/2013,GPMS/APMS and PCTMS, Primary Care , ACORN MEDICAL CENTRE ,1474370," 41,780.44 ",LNK000000952,
Department of Health,NHS England,31/10/2013,GPMS/APMS and PCTMS, Primary Care , ACORNS SURGERY ,1394042," 36,373.56 ",CH000003208,
Department of Health,NHS England,31/10/2013,GPMS/APMS and PCTMS, Primary Care , ACORNS SURGERY ,1401266," 122,627.96 ",LNS000004595,
Department of Health,NHS England,31/10/2013,GPMS/APMS and PCTMS, Primary Care , ACRE SURGERY NORTHWOOD HEALTH CENTRE ,1394564,"-45,129.55 ",LNK000000875,
Department of Health,NHS England,31/10/2013,GPMS/APMS and PCTMS, Primary Care , ACRE SURGERY NORTHWOOD HEALTH CENTRE ,1394565," 73,952.97 ",LNK000000876,
Department of Health,NHS England,31/10/2013,GPMS/APMS and PCTMS, Primary Care , ACRESWOOD SURGERY ,1525373," 60,872.54 ",LA000005715,
Department of Health,NHS England,31/10/2013,GPMS/APMS and PCTMS, Primary Care , ADAM HOUSE MEDICAL CENTRE ,1401613," 56,552.37 ",DE000004132,
Department of Health,NHS England,31/10/2013,GPMS/APMS and PCTMS, Primary Care , ADAM PRACTICE ,1378133,"-41,303.79 ",DO000002992,
Department of Health,NHS England,31/10/2013,GPMS/APMS and PCTMS, Primary Care , ADAM PRACTICE ,1458808," 29,783.29 ",DO000003111,
Department of Health,NHS England,31/10/2013,GPMS/APMS and PCTMS, Primary Care , ADAM PRACTICE ,1385446," 296,446.25 ",DO000002993,
Department of Health,NHS England,31/10/2013,GPMS/APMS and PCTMS, Primary Care , ADAMS P & PARTNERS ,1496064," 46,980.06 ",SY000003675,
Department of Health,NHS England,31/10/2013,GPMS/APMS and PCTMS, Primary Care , ADDINGTON ROAD SURGERY ,1440632," 77,909.95 ",LNT000001526,
Department of Health,NHS England,31/10/2013,GPMS/APMS and PCTMS, Primary Care , ADELAIDE GP SURGERY ,1376313," 60,189.07 ",SO000007168,
Department of Health,NHS England,31/10/2013,GPMS/APMS and PCTMS, Primary Care , ADELAIDE MEDICAL CENTRE ,1501791," 73,801.74 ",SO000007486,
Department of Health,NHS England,31/10/2013,GPMS/APMS and PCTMS, Primary Care , ADELAIDE MEDICAL CENTRE BLAYDON ,1540983," 90,711.83 ",GAT000001623,
Department of Health,NHS England,31/10/2013,GPMS/APMS and PCTMS, Primary Care , ADELAIDE MEDICAL CENTRE LONDON ,1547927," 97,978.25 ",LND000002371,
Department of Health,NHS England,31/10/2013,GPMS/APMS and PCTMS, Primary Care , ADELAIDE ST SURGERY WATERFRONT LCG ,1487768," 25,525.42 ",DN000005824,
Department of Health,NHS England,31/10/2013,GPMS/APMS and PCTMS, Primary Care , ADELAIDE STREET SURGERY ,1532575," 107,987.28 ",LA000005721,
Department of Health,NHS England,31/10/2013,GPMS/APMS and PCTMS, Primary Care , ADLER & ROSENBERG ,1542582," 33,908.16 ",LNH000001729,
Department of Health,NHS England,31/10/2013,GPMS/APMS and PCTMS, Primary Care , ADO THE ENTERPRISE PRACTICE ,1496963," 27,449.74 ",LNL000002584,
Department of Health,NHS England,31/10/2013,GPMS/APMS and PCTMS, Primary Care , ADSHALL ROAD MEDICAL PRACTICE ,1532850," 37,190.23 ",SPT000001211,
Department of Health,NHS England,31/10/2013,GPMS/APMS and PCTMS, Primary Care , ADSWOOD ROAD SURGERY ,1365564," 35,948.73 ",SPT000001177,
Department of Health,NHS England,31/10/2013,GPMS/APMS and PCTMS, Primary Care , ADUR & PARTNERS ,1391268,"-37,450.25 ",LNC000002030,
Department of Health,NHS England,31/10/2013,GPMS/APMS and PCTMS, Primary Care , ADUR & PARTNERS ,1391270," 70,852.20 ",LNC000002031,
Department of Health,NHS England,31/10/2013,GPMS/APMS and PCTMS, Primary Care , ADUR MEDICAL GROUP ,1495915," 47,004.90 ",TW000004517,
Department of Health,NHS England,31/10/2013,GPMS/APMS and PCTMS, Primary Care , AELFGAR SURGERY ,1401976," 46,180.56 ",ST000005721,
Department of Health,NHS England,31/10/2013,GPMS/APMS and PCTMS, Primary Care , AGARWAL & PARTNERS ,1481734,"-58,094.02 ",LIP000003230,
Department of Health,NHS England,31/10/2013,GPMS/APMS and PCTMS, Primary Care , AGARWAL & PARTNERS ,1352194," 49,368.81 ",LIP000002949,
Department of Health,NHS England,31/10/2013,GPMS/APMS and PCTMS, Primary Care , AGARWAL & PARTNERS ,1481735," 67,533.08 ",LIP000003231,
Department of Health,NHS England,31/10/2013,GPMS/APMS and PCTMS, Primary Care , AGHA B & PARTNERS ,1392800," 45,304.79 ",EX000006829,
Department of Health,NHS England,31/10/2013,GPMS/APMS and PCTMS, Primary Care , AGRAWAL ,1452108," 52,396.91 ",WOM000001500,
Department of Health,NHS England,31/10/2013,GPMS/APMS and PCTMS, Primary Care , AGRAWAL & PARTNER ,1496315," 56,044.04 ",WBH000001306,
Department of Health,NHS England,31/10/2013,GPMS/APMS and PCTMS, Primary Care , AGRAWAL R K & K ,1394369," 29,566.42 ",LNN000001878,
Department of Health,NHS England,31/10/2013,GPMS/APMS and PCTMS, Primary Care , AHMAD & MONTEIRO ,1494504," 45,279.04 ",LNC000002105,
Department of Health,NHS England,31/10/2013,GPMS/APMS and PCTMS, Primary Care , AHMAD H S ,1392802," 31,763.87 ",EX000006831,
Department of Health,NHS England,31/10/2013,GPMS/APMS and PCTMS, Primary Care , AHMAD M & PARTNERS ,1401927," 53,606.69 ",SY000003484,
Department of Health,NHS England,31/10/2013,GPMS/APMS and PCTMS, Primary Care , AHMED & BUTT ,1419904," 48,908.09 ",YW000002608,
Department of Health,NHS England,31/10/2013,GPMS/APMS and PCTMS, Primary Care , AHMED & PARTNERS ,1502184," 54,640.29 ",WBH000001308,
Department of Health,NHS England,31/10/2013,GPMS/APMS and PCTMS, Primary Care , AHMED I & PTS ,1493219," 74,273.18 ",DE000004329,
Department of Health,NHS England,31/10/2013,GPMS/APMS and PCTMS, Primary Care , AHMED SN ,1547987," 43,081.72 ",MAN000001918,
Department of Health,NHS England,31/10/2013,GPMS/APMS and PCTMS, Primary Care , AINSWORTH BLAGDEN ANDREW & PARTNERS ,1401615," 83,420.29 ",DE000004134,
Department of Health,NHS England,31/10/2013,GPMS/APMS and PCTMS, Primary Care , AINSWORTH D & PARTNERS ,1543055," 38,852.67 ",EX000007375,
Department of Health,NHS England,31/10/2013,General Dental services and personal dental services, Secondary and Community Dental Care , AINTREE UNIVERSITY HOSPITALS NHS FOUNDATION TRUST ,1506551," 33,580.00 ",8410003535 ,
Department of Health,NHS England,31/10/2013,Services from other NHS bodies, Public Health , AINTREE UNIVERSITY HOSPITALS NHS FOUNDATION TRUST ,1445136," 37,791.00 ",8410003012 ,
Department of Health,NHS England,31/10/2013,Services from other NHS bodies, Public Health , AINTREE UNIVERSITY HOSPITALS NHS FOUNDATION TRUST ,1361478," 87,868.17 ",8410003013 ,
Department of Health,NHS England,31/10/2013,General Dental services and personal dental services, Secondary and Community Dental Care , AINTREE UNIVERSITY HOSPITALS NHS FOUNDATION TRUST ,1445136," 202,601.00 ",8410003012 ,
Department of Health,NHS England,31/10/2013,Services from other NHS bodies, Secondary and Community Dental Care , AINTREE UNIVERSITY HOSPITALS NHS FOUNDATION TRUST ,1361478," 414,139.83 ",8410003013 ,
Department of Health,NHS England,31/10/2013,Services from other NHS bodies, Specialised Commissioning , AINTREE UNIVERSITY HOSPITALS NHS FOUNDATION TRUST ,1519387," 2,542,901.00 ",8410003678 ,
Department of Health,NHS England,31/10/2013,GPMS/APMS and PCTMS, Primary Care , AIR BALLOON SURGERY ,1390202," 113,881.30 ",BRS000003779,
Department of Health,NHS England,31/10/2013,GPMS/APMS and PCTMS, Primary Care , AIREBOROUGH FAMILY PRACTICE ,1392192,"-35,272.49 ",LDS000003460,
Department of Health,NHS England,31/10/2013,GPMS/APMS and PCTMS, Primary Care , AIREBOROUGH FAMILY PRACTICE ,1392193," 69,602.25 ",LDS000003461,
Department of Health,NHS England,31/10/2013,Services from other NHS bodies, Specialised Commissioning , AIREDALE NHS FOUNDATION TRUST ,1565882," 49,073.37 ",3310002007 ,
Department of Health,NHS England,31/10/2013,Services from other NHS bodies, Secondary and Community Dental Care , AIREDALE NHS FOUNDATION TRUST ,1361479," 96,663.00 ",3310001606 ,
Department of Health,NHS England,31/10/2013,Services from other NHS bodies, Specialised Commissioning , AIREDALE NHS FOUNDATION TRUST ,1375535," 825,669.00 ",3310001604 ,
Department of Health,NHS England,31/10/2013,GPMS/APMS and PCTMS, Primary Care , AKERMAN MEDICAL PRACTICE ,1401267," 42,338.10 ",LNS000004599,
Department of Health,NHS England,31/10/2013,GPMS/APMS and PCTMS, Primary Care , AKHTAR ,1502185," 25,544.29 ",WBH000001310,
Department of Health,NHS England,31/10/2013,GPMS/APMS and PCTMS, Primary Care , ALBANY HOUSE MEDICAL CENTRE ,1393235,"-34,669.64 ",NO000002487,
Department of Health,NHS England,31/10/2013,GPMS/APMS and PCTMS, Primary Care , ALBANY HOUSE MEDICAL CENTRE ,1393236," 170,240.49 ",NO000002488,
Department of Health,NHS England,31/10/2013,GPMS/APMS and PCTMS, Primary Care , ALBANY SURGERY NEWTON ABBOT ,1577709," 76,382.78 ",DN000006255,
Department of Health,NHS England,31/10/2013,GPMS/APMS and PCTMS, Primary Care , ALBERT HOUSE CLINIC ,1434004," 55,746.94 ",MID000002092,
Department of Health,NHS England,31/10/2013,GPMS/APMS and PCTMS, Primary Care , ALBERT STREET SURGERY ,1391370," 49,597.14 ",WA000002285,
Department of Health,NHS England,31/10/2013,GPMS/APMS and PCTMS, Primary Care , ALBION HEALTH CENTRE ,1502442," 82,176.71 ",LNA000002974,
Department of Health,NHS England,31/10/2013,GPMS/APMS and PCTMS, Primary Care , ALBION MEDICAL PRACTICE ,1394529," 97,468.95 ",GMK000001620,
Department of Health,NHS England,31/10/2013,GPMS/APMS and PCTMS, Primary Care , ALBION MOUNT MEDICAL PRACTICE ,1419906," 58,953.56 ",YW000002610,
Department of Health,NHS England,31/10/2013,GPMS/APMS and PCTMS, Primary Care , ALBION STREET HEALTH CENTRE ,1401268," 100,024.78 ",LNS000004601,
Department of Health,NHS England,31/10/2013,GPMS/APMS and PCTMS, Primary Care , ALBION SURGERY ,1482491," 34,885.37 ",LNW000001760,
Department of Health,NHS England,31/10/2013,GPMS/APMS and PCTMS, Primary Care , ALBION SURGERY ,1393601," 127,633.39 ",LNW000001585,
Department of Health,NHS England,31/10/2013,GPMS/APMS and PCTMS, Primary Care , ALBRIGHTON MEDICAL PRACTICE ,1494247," 90,997.41 ",SA000002570,
Department of Health,NHS England,31/10/2013,GPMS/APMS and PCTMS, Primary Care , ALCESTER HEALTH CENTRE ,1548250," 56,940.57 ",WA000002487,
Department of Health,NHS England,31/10/2013,Purchase of healthcare from non-NHS bodies, Specialised Commissioning , ALCURA UK LTD ,1388411," 164,802.46 ",INV0736196,
Department of Health,NHS England,31/10/2013,Purchase of healthcare from non-NHS bodies, Specialised Commissioning , ALCURA UK LTD ,1466409," 171,172.28 ",INV0762123,
Department of Health,NHS England,31/10/2013,Services from other NHS bodies, Secondary and Community Dental Care , ALDER HEY CHILDRENS NHS FOUNDATION TRUST ,1274158," 109,362.00 ",9110003421 ,
Department of Health,NHS England,31/10/2013,Services from other NHS bodies, Specialised Commissioning , ALDER HEY CHILDRENS NHS FOUNDATION TRUST ,1552799," 7,350,000.00 ",9110003798 ,
Department of Health,NHS England,31/10/2013,GPMS/APMS and PCTMS, Primary Care , ALDERMOOR SURGERY ,1493438," 61,532.14 ",SO000007464,
Department of Health,NHS England,31/10/2013,GPMS/APMS and PCTMS, Primary Care , ALDERSBROOK MEDICAL CENTRE ,1452127," 61,512.00 ",LNB000001888,
Department of Health,NHS England,31/10/2013,GPMS/APMS and PCTMS, Primary Care , ALDERWOOD ROAD ,1393587," 30,896.62 ",LNW000001569,
Department of Health,NHS England,31/10/2013,GPMS/APMS and PCTMS, Primary Care , ALEXANDER & PARTNER ,1482286,"-74,186.45 ",STL000002487,
Department of Health,NHS England,31/10/2013,GPMS/APMS and PCTMS, Primary Care , ALEXANDER & PARTNER ,1352368," 29,482.81 ",STL000002259,
Department of Health,NHS England,31/10/2013,GPMS/APMS and PCTMS, Primary Care , ALEXANDER & PARTNER ,1482287," 85,499.69 ",STL000002488,
Department of Health,NHS England,31/10/2013,Premises, Other , ALEXANDER DEVINE CHILDREN`S HOSPICE SERVICE ,1317598," 63,360.00 ",INV0125,
Department of Health,NHS England,31/10/2013,GPMS/APMS and PCTMS, Primary Care , ALEXANDER GS ,1542136," 48,236.21 ",MAN000001905,
Department of Health,NHS England,31/10/2013,GPMS/APMS and PCTMS, Primary Care , ALEXANDER HOUSE SURGERY ,1385636,"-62,582.62 ",SO000007161,
Department of Health,NHS England,31/10/2013,GPMS/APMS and PCTMS, Primary Care , ALEXANDER HOUSE SURGERY ,1385637," 125,908.67 ",SO000007162,
Department of Health,NHS England,31/10/2013,GPMS/APMS and PCTMS, Primary Care , ALEXANDRA MEDICAL CENTRE ,1502273,"-25,996.71 ",DUD000000934,
Department of Health,NHS England,31/10/2013,GPMS/APMS and PCTMS, Primary Care , ALEXANDRA MEDICAL CENTRE ,1502274," 47,015.70 ",DUD000000935,
Department of Health,NHS England,31/10/2013,GPMS/APMS and PCTMS, Primary Care , ALEXANDRA PRACTICE ,1542138," 42,693.66 ",MAN000001907,
Department of Health,NHS England,31/10/2013,GPMS/APMS and PCTMS, Primary Care , ALI A & PARTNER ,1482134,"-45,926.55 ",BIK000001581,
Department of Health,NHS England,31/10/2013,GPMS/APMS and PCTMS, Primary Care , ALI A & PARTNER ,1482135," 55,087.27 ",BIK000001582,
Department of Health,NHS England,31/10/2013,GPMS/APMS and PCTMS, Primary Care , ALICE MEDICAL CENTRE ,1468108," 26,927.40 ",NN000004752,
Department of Health,NHS England,31/10/2013,GPMS/APMS and PCTMS, Primary Care , ALL SAINTS MEDICAL CENTRE ,1393591," 57,018.83 ",LNW000001573,
Department of Health,NHS England,31/10/2013,GPMS/APMS and PCTMS, Primary Care , ALL SAINTS MEDICAL PRACTICE ,1394365,"-70,856.66 ",LNA000002955,
Department of Health,NHS England,31/10/2013,GPMS/APMS and PCTMS, Primary Care , ALL SAINTS MEDICAL PRACTICE ,1401809," 138,384.09 ",LNA000002956,
Department of Health,NHS England,31/10/2013,GPMS/APMS and PCTMS, Primary Care , ALLEN & PARTNERS ,1481719,"-108,067.55 ",LIP000003214,
Department of Health,NHS England,31/10/2013,GPMS/APMS and PCTMS, Primary Care , ALLEN & PARTNERS ,1352178," 44,718.24 ",LIP000002933,
Department of Health,NHS England,31/10/2013,GPMS/APMS and PCTMS, Primary Care , ALLEN & PARTNERS ,1487750," 115,501.48 ",LIP000003215,
Department of Health,NHS England,31/10/2013,GPMS/APMS and PCTMS, Primary Care , ALLERTON ROAD MEDICAL CENTRE ,1401808," 43,768.83 ",LNA000002954,
Department of Health,NHS England,31/10/2013,Purchase of healthcare from non-NHS bodies, Other , ALLIANCE MEDICAL LTD ,1595073," 1,111,176.00 ",PET0182,
Department of Health,NHS England,31/10/2013,GPMS/APMS and PCTMS, Primary Care , ALLUM MEDICAL CENTRE ,1395257," 132,904.34 ",LNB000001809,
Department of Health,NHS England,31/10/2013,GPMS/APMS and PCTMS, Primary Care , ALMA MEDICAL CENTRE ,1433993,"-95,474.01 ",MID000002081,
Department of Health,NHS England,31/10/2013,GPMS/APMS and PCTMS, Primary Care , ALMA MEDICAL CENTRE ,1433994," 181,727.92 ",MID000002082,
Department of Health,NHS England,31/10/2013,GPMS/APMS and PCTMS, Primary Care , ALMA PARTNERSHIP ,1385443," 78,784.30 ",DO000002985,
Department of Health,NHS England,31/10/2013,GPMS/APMS and PCTMS, Primary Care , ALMA ROAD SURGERY ,1493439," 102,411.95 ",SO000007468,
Department of Health,NHS England,31/10/2013,GPMS/APMS and PCTMS, Primary Care , ALMAN R & PARTNERS ,1482136,"-83,435.48 ",BIK000001583,
Department of Health,NHS England,31/10/2013,GPMS/APMS and PCTMS, Primary Care , ALMAN R & PARTNERS ,1364633," 34,537.90 ",BIK000001468,
Department of Health,NHS England,31/10/2013,GPMS/APMS and PCTMS, Primary Care , ALMAN R & PARTNERS ,1487709," 98,030.72 ",BIK000001584,
Department of Health,NHS England,31/10/2013,GPMS/APMS and PCTMS, Primary Care , ALMONDSBURY SURGERY ,1390195," 40,024.62 ",BRS000003771,
Department of Health,NHS England,31/10/2013,Purchase of healthcare from non-NHS bodies, Specialised Commissioning , ALPHA HOSPITAL BURY ,1491066," 50,608.32 ",BUR002366,
Department of Health,NHS England,31/10/2013,Purchase of healthcare from non-NHS bodies, Specialised Commissioning , ALPHA HOSPITAL BURY ,1417504," 73,529.40 ",BUR002405,
Department of Health,NHS England,31/10/2013,Purchase of healthcare from non-NHS bodies, Specialised Commissioning , ALPHA HOSPITAL BURY ,1506519," 821,445.44 ",BUR002417,
Department of Health,NHS England,31/10/2013,Purchase of healthcare from non-NHS bodies, Specialised Commissioning , ALPHA HOSPITAL BURY ,1506518," 1,105,503.34 ",BUR002430,
Department of Health,NHS England,31/10/2013,Purchase of healthcare from non-NHS bodies, Specialised Commissioning , ALPHA HOSPITAL WOKING ,1491538," 36,027.01 ",AHW004883,
Department of Health,NHS England,31/10/2013,Purchase of healthcare from non-NHS bodies, Specialised Commissioning , ALPHA HOSPITAL WOKING ,1417408," 68,743.35 ",AHW004876,
Department of Health,NHS England,31/10/2013,Purchase of healthcare from non-NHS bodies, Specialised Commissioning , ALPHA HOSPITAL WOKING ,1506520," 727,149.95 ",AHW004881,
Department of Health,NHS England,31/10/2013,GPMS/APMS and PCTMS, Primary Care , ALRESFORD SURGERY ,1501779," 73,260.94 ",SO000007470,
Department of Health,NHS England,31/10/2013,GPMS/APMS and PCTMS, Primary Care , ALSTON MEDICAL PRACTICE ,1435045," 26,544.13 ",CU000002414,
Department of Health,NHS England,31/10/2013,Purchase of healthcare from non-NHS bodies, Specialised Commissioning , ALSTROM SYNDROME UK ,1360892," 33,401.25 ",AS00050,
Department of Health,NHS England,31/10/2013,GPMS/APMS and PCTMS, Primary Care , ALTON STREET SURGERY ,1548101," 80,575.75 ",WR000002639,
Department of Health,NHS England,31/10/2013,GPMS/APMS and PCTMS, Primary Care , ALTY & PARTNERS ,1481720,"-26,137.22 ",LIP000003216,
Department of Health,NHS England,31/10/2013,GPMS/APMS and PCTMS, Primary Care , ALTY & PARTNERS ,1481721," 37,750.77 ",LIP000003217,
Department of Health,NHS England,31/10/2013,GPMS/APMS and PCTMS, Primary Care , ALVANLEY FAMILY PRACTICE ,1365560," 30,303.54 ",SPT000001173,
Department of Health,NHS England,31/10/2013,GPMS/APMS and PCTMS, Primary Care , ALYMER LODGE COOKLEY PARTNERSHIP ,1395829,"-28,834.50 ",WR000002511,
Department of Health,NHS England,31/10/2013,GPMS/APMS and PCTMS, Primary Care , ALYMER LODGE COOKLEY PARTNERSHIP ,1401356," 145,363.68 ",WR000002512,
Department of Health,NHS England,31/10/2013,GPMS/APMS and PCTMS, Primary Care , AMERSHAM HEALTH CENTRE ,1458199," 86,318.59 ",BU000002268,
Department of Health,NHS England,31/10/2013,GPMS/APMS and PCTMS, Primary Care , AMERSHAM VALE TRAINING PRACTICE ,1401264," 60,577.48 ",LNS000004589,
Department of Health,NHS England,31/10/2013,GPMS/APMS and PCTMS, Primary Care , AMHERST MEDICAL ,1434239," 89,150.52 ",KC000007934,
Department of Health,NHS England,31/10/2013,GPMS/APMS and PCTMS, Primary Care , AMPLEFORTH SURGERY ,1514533," 46,858.24 ",YN000003724,
Department of Health,NHS England,31/10/2013,GPMS/APMS and PCTMS, Primary Care , AMPTHILL PRACTICE ,1542600," 58,062.02 ",LND000002363,
Department of Health,NHS England,31/10/2013,GPMS/APMS and PCTMS, Primary Care , AMWELL PRACTICE ,1542603," 157,575.72 ",LND000002365,
Department of Health,NHS England,31/10/2013,GPMS/APMS and PCTMS, Primary Care , AMWELL STREET SURGERY ,1549133," 90,609.43 ",HT000004037,
Department of Health,NHS England,31/10/2013,Purchase of healthcare from non-NHS bodies, Primary Care , ANAWIM WWT ,1317417,"-168,852.00 ",1 ,
Department of Health,NHS England,31/10/2013,Purchase of healthcare from non-NHS bodies, Primary Care , ANAWIM WWT ,1387354," 168,852.00 ",68 ,
Department of Health,NHS England,31/10/2013,GPMS/APMS and PCTMS, Primary Care , ANDERSON MATTHEWS MADDEN FLANN & PARTNERS ,1401609," 80,156.29 ",DE000004128,
Department of Health,NHS England,31/10/2013,GPMS/APMS and PCTMS, Primary Care , ANDOVER HEALTH CENTRE MEDICAL PRACTICE ,1501784," 97,813.27 ",SO000007476,
Department of Health,NHS England,31/10/2013,GPMS/APMS and PCTMS, Primary Care , ANDOVER MEDICAL CENTRE ,1547926," 54,000.99 ",LND000002367,
Department of Health,NHS England,31/10/2013,GPMS/APMS and PCTMS, Primary Care , ANDREOU & PARTNERS ,1358964," 75,260.00 ",WBH000001242,
Department of Health,NHS England,31/10/2013,GPMS/APMS and PCTMS, Primary Care , ANDREOU & PARTNERS ,1502182," 149,095.11 ",WBH000001304,
Department of Health,NHS England,31/10/2013,GPMS/APMS and PCTMS, Primary Care , ANGEL MEDICAL PRACTICE ,1378085," 61,360.00 ",LND000002205,
Department of Health,NHS England,31/10/2013,GPMS/APMS and PCTMS, Primary Care , ANGEL SURGERY ,1376158," 29,903.12 ",LNE000002360,
Department of Health,NHS England,31/10/2013,Supplies and services � clinical, NHS England Running Costs , ANGLIAN COMMUNITY ENTERPRISE CIC ,1577478," 26,883.41 ",AC7000006009,
Department of Health,NHS England,31/10/2013,Services from other NHS bodies, Primary Care , ANGLIAN COMMUNITY ENTERPRISE CIC ,1375085," 82,210.08 ",AC7000005953,
Department of Health,NHS England,31/10/2013,Consultancy services, NHS England Running Costs , ANGLIAN COMMUNITY ENTERPRISE CIC ,1418065," 185,094.10 ",AC7000005956,
Department of Health,NHS England,31/10/2013,Purchase of healthcare from non-NHS bodies, Public Health , ANGLIAN COMMUNITY ENTERPRISE CIC ,1551707," 340,623.48 ",AC7000005902,
Department of Health,NHS England,31/10/2013,Purchase of healthcare from non-NHS bodies, Public Health , ANGLIAN COMMUNITY ENTERPRISE CIC ,1349207," 387,590.00 ",AC7000005862,
Department of Health,NHS England,31/10/2013,GPMS/APMS and PCTMS, Primary Care , ANNANDALE MEDICAL CENTRE ,1470091,"-32,654.31 ",CH000003520,
Department of Health,NHS England,31/10/2013,GPMS/APMS and PCTMS, Primary Care , ANNANDALE MEDICAL CENTRE ,1319552," 34,514.64 ",CH000003083,
Department of Health,NHS England,31/10/2013,GPMS/APMS and PCTMS, Primary Care , ANNANDALE MEDICAL CENTRE ,1470092," 44,156.50 ",CH000003521,
Department of Health,NHS England,31/10/2013,GPMS/APMS and PCTMS, Primary Care , ANNANDALE SURGERY ,1549153," 74,977.32 ",HT000004039,
Department of Health,NHS England,31/10/2013,GPMS/APMS and PCTMS, Primary Care , ANSDELL MEDICAL CENTRE ,1532573," 69,090.97 ",LA000005711,
Department of Health,NHS England,31/10/2013,Purchase of healthcare from non-NHS bodies, Specialised Commissioning , ANSEL LTD ,1361481," 157,637.48 ",L900000453,
Department of Health,NHS England,31/10/2013,Purchase of healthcare from non-NHS bodies, Specialised Commissioning , ANSEL LTD ,1361480," 178,440.08 ",L900000454,
Department of Health,NHS England,31/10/2013,GPMS/APMS and PCTMS, Primary Care , APEX MEDICAL PRACTICE ,1434249," 40,251.53 ",KC000007940,
Department of Health,NHS England,31/10/2013,GPMS/APMS and PCTMS, Primary Care , APMS HARDEN ,1522085," 55,382.52 ",WAL000001606,
Department of Health,NHS England,31/10/2013,GPMS/APMS and PCTMS, Primary Care , APPLEBY HEALTH CENTRE ,1435047," 34,778.13 ",CU000002416,
Department of Health,NHS England,31/10/2013,GPMS/APMS and PCTMS, Primary Care , APPLES MEDICAL CENTRE ,1385445," 52,729.72 ",DO000002991,
Department of Health,NHS England,31/10/2013,GPMS/APMS and PCTMS, Primary Care , APSLEY SURGERY ,1401975," 87,400.07 ",ST000005719,
Department of Health,NHS England,31/10/2013,GPMS/APMS and PCTMS, Primary Care , ARBURY MEDICAL PRACTICE ,1548225," 75,006.00 ",WA000002369,
Department of Health,NHS England,31/10/2013,GPMS/APMS and PCTMS, Primary Care , ARCADIAN GARDENS ,1548252," 28,715.68 ",LNE000002539,
Department of Health,NHS England,31/10/2013,GPMS/APMS and PCTMS, Primary Care , ARCHWAY PRIMARY CARE TEAM ,1378086,"-83,069.76 ",LND000002206,
Department of Health,NHS England,31/10/2013,GPMS/APMS and PCTMS, Primary Care , ARCHWAY PRIMARY CARE TEAM ,1378087," 127,256.70 ",LND000002207,
Department of Health,NHS England,31/10/2013,GPMS/APMS and PCTMS, Primary Care , ARCHWAY SURGERY ,1391525," 27,210.49 ",HT000003827,
Department of Health,NHS England,31/10/2013,GPMS/APMS and PCTMS, Primary Care , ARCHWOOD MEDICAL PRACTICE ,1365562," 44,799.48 ",SPT000001175,
Department of Health,NHS England,31/10/2013,GPMS/APMS and PCTMS, Primary Care , ARDEN MEDICAL CENTRE ,1391366," 28,603.04 ",WA000002281,
Department of Health,NHS England,31/10/2013,GPMS/APMS and PCTMS, Primary Care , ARGYLE SURGERY ,1527035," 59,283.61 ",LNM000003164,
Department of Health,NHS England,31/10/2013,GPMS/APMS and PCTMS, Primary Care , ARGYLL HOUSE SURGERY ,1501789," 33,196.40 ",SO000007482,
Department of Health,NHS England,31/10/2013,Premises, NHS England Running Costs , ARLA FOODS ,1576185,"-83,838.71 ",3100098001 ,
Department of Health,NHS England,31/10/2013,Premises, NHS England Running Costs , ARLA FOODS ,1575594," 83,838.71 ",3000391003 ,
Department of Health,NHS England,31/10/2013,GPMS/APMS and PCTMS, Primary Care , ARLESEY MEDICAL CENTRE - SUNNY HILL CIC ,1401490," 34,985.06 ",BD000002435,
Department of Health,NHS England,31/10/2013,GPMS/APMS and PCTMS, Primary Care , ARMADA FAMILY PRACTICE ,1390201," 113,541.13 ",BRS000003777,
Department of Health,NHS England,31/10/2013,GPMS/APMS and PCTMS, Primary Care , ARNEWOOD PRACTICE ,1501781," 120,359.68 ",SO000007484,
Department of Health,NHS England,31/10/2013,GPMS/APMS and PCTMS, Primary Care , ARNOLD MEDICAL CENTRE ,1525375," 43,892.46 ",LA000005717,
Department of Health,NHS England,31/10/2013,GPMS/APMS and PCTMS, Primary Care , ARNOS GROVE MEDICAL CENTRE ,1376162," 34,871.90 ",LNE000002364,
Department of Health,NHS England,31/10/2013,GPMS/APMS and PCTMS, Primary Care , ARORA SC ,1365598," 70,671.43 ",MAN000001801,
Department of Health,NHS England,31/10/2013,GPMS/APMS and PCTMS, Primary Care , ARRIVAL PRACTICE ,1433999,"-26,702.20 ",MID000002087,
Department of Health,NHS England,31/10/2013,GPMS/APMS and PCTMS, Primary Care , ARRIVAL PRACTICE ,1434000," 46,036.89 ",MID000002088,
Department of Health,NHS England,31/10/2013,GPMS/APMS and PCTMS, Primary Care , ARROW LODGE MEDICAL CENTRE ,1540212," 48,080.68 ",WA000002371,
Department of Health,NHS England,31/10/2013,GPMS/APMS and PCTMS, Primary Care , ARUN MEDICAL CENTRE ,1393708," 74,742.85 ",TW000004198,
Department of Health,NHS England,31/10/2013,GPMS/APMS and PCTMS, Primary Care , ARUNDEL SURGERY ,1495913," 40,171.23 ",TW000004515,
Department of Health,NHS England,31/10/2013,GPMS/APMS and PCTMS, Primary Care , AS GILL & P CHEEMA ,1522087," 31,375.76 ",WAL000001608,
Department of Health,NHS England,31/10/2013,GPMS/APMS and PCTMS, Primary Care , AS GILL & P CHEEMA ,1584905," 33,726.72 ",WAL000001723,
Department of Health,NHS England,31/10/2013,GPMS/APMS and PCTMS, Primary Care , AS JAWAD ,1494502," 35,299.03 ",LNC000002103,
Department of Health,NHS England,31/10/2013,General Opthalmic services, Primary Care , ASDA STORES LTD ,1401455," 35,417.87 ",4008462_S,
Department of Health,NHS England,31/10/2013,GPMS/APMS and PCTMS, Primary Care , ASH TREE HOUSE SURGERY ,1525383," 94,241.91 ",LA000005729,
Department of Health,NHS England,31/10/2013,GPMS/APMS and PCTMS, Primary Care , ASHBY TURN PRIMARY CARE PARTNERS ,1533073," 111,836.90 ",KHU000003122,
Department of Health,NHS England,31/10/2013,GPMS/APMS and PCTMS, Primary Care , ASHCROFT ROAD MEDICAL PRACTICE ,1391677," 44,676.40 ",BD000002437,
Department of Health,NHS England,31/10/2013,GPMS/APMS and PCTMS, Primary Care , ASHCROFT SURGERY ,1458201," 30,645.90 ",BU000002270,
Department of Health,NHS England,31/10/2013,GPMS/APMS and PCTMS, Primary Care , ASHDOWN FOREST HEALTH CENTRE ,1483545," 68,001.16 ",TE000003815,
Department of Health,NHS England,31/10/2013,GPMS/APMS and PCTMS, Primary Care , ASHFIELD MEDICAL CENTRE BLACKPOOL ,1525385," 26,011.70 ",LA000005731,
Department of Health,NHS England,31/10/2013,GPMS/APMS and PCTMS, Primary Care , ASHFIELD MEDICAL CENTRE MILTON KEYNES ,1390946," 138,509.95 ",BU000002182,
Department of Health,NHS England,31/10/2013,GPMS/APMS and PCTMS, Primary Care , ASHFIELDS PRIMARY CARE CENTRE ,1394043,"-29,692.81 ",CH000003209,
Department of Health,NHS England,31/10/2013,GPMS/APMS and PCTMS, Primary Care , ASHFIELDS PRIMARY CARE CENTRE ,1319554," 25,299.18 ",CH000003085,
Department of Health,NHS England,31/10/2013,GPMS/APMS and PCTMS, Primary Care , ASHFIELDS PRIMARY CARE CENTRE ,1394044," 152,299.75 ",CH000003210,
Department of Health,NHS England,31/10/2013,Services from other NHS bodies, Primary Care , ASHFORD & ST PETERS HOSPITALS NHSFT ,1445323," 28,250.00 ",14462262 ,
Department of Health,NHS England,31/10/2013,Services from other NHS bodies, Specialised Commissioning , ASHFORD & ST PETERS HOSPITALS NHSFT ,1593970," 30,197.00 ",14460514 ,
Department of Health,NHS England,31/10/2013,GPMS/APMS and PCTMS, Primary Care , ASHFORD & ST PETERS HOSPITALS NHSFT ,1340058," 31,718.75 ",14461927 ,
Department of Health,NHS England,31/10/2013,Services from other NHS bodies, Specialised Commissioning , ASHFORD & ST PETERS HOSPITALS NHSFT ,1349398," 32,366.00 ",14461873 ,
Department of Health,NHS England,31/10/2013,Services from other NHS bodies, Specialised Commissioning , ASHFORD & ST PETERS HOSPITALS NHSFT ,1594340," 49,249.00 ",14462481 ,
Department of Health,NHS England,31/10/2013,Services from other NHS bodies, Specialised Commissioning , ASHFORD & ST PETERS HOSPITALS NHSFT ,1374500," 52,043.00 ",14461163 ,
Department of Health,NHS England,31/10/2013,Services from other NHS bodies, Specialised Commissioning , ASHFORD & ST PETERS HOSPITALS NHSFT ,1445461," 1,969,583.00 ",14462448 ,
Department of Health,NHS England,31/10/2013,GPMS/APMS and PCTMS, Primary Care , ASHFORD A L & PARTNERS ,1392804," 150,810.21 ",EX000006833,
Department of Health,NHS England,31/10/2013,GPMS/APMS and PCTMS, Primary Care , ASHINGDON MEDICAL CENTRE ,1401737," 36,091.78 ",EX000006835,
Department of Health,NHS England,31/10/2013,GPMS/APMS and PCTMS, Primary Care , ASHLEY HOUSE (CAPITAL PROJECTS) LTD ,1405869," 33,666.19 ",78 ,
Department of Health,NHS England,31/10/2013,GPMS/APMS and PCTMS, Primary Care , ASHTON GP SERVICE ,1394527," 137,417.50 ",GMK000001618,
Department of Health,NHS England,31/10/2013,GPMS/APMS and PCTMS, Primary Care , ASHURST PRIMARY CARE ,1525355," 31,083.32 ",LA000005691,
Department of Health,NHS England,31/10/2013,GPMS/APMS and PCTMS, Primary Care , ASHWELL SURGERY ,1468441," 31,507.38 ",HT000003859,
Department of Health,NHS England,31/10/2013,GPMS/APMS and PCTMS, Primary Care , ASHWELL SURGERY ,1549105," 75,023.69 ",HT000004031,
Department of Health,NHS England,31/10/2013,GPMS/APMS and PCTMS, Primary Care , ASHWOOD SURGERY ,1389511," 46,716.07 ",KHU000002837,
Department of Health,NHS England,31/10/2013,GPMS/APMS and PCTMS, Primary Care , ASHWORTH HM ,1542134," 35,820.32 ",MAN000001903,
Department of Health,NHS England,31/10/2013,GPMS/APMS and PCTMS, Primary Care , ASHWORTH STREET SURGERY ,1528796," 82,395.07 ",ROC000001585,
Department of Health,NHS England,31/10/2013,GPMS/APMS and PCTMS, Primary Care , ASKARI & PARTNER ,1481717,"-36,598.25 ",LIP000003212,
Department of Health,NHS England,31/10/2013,GPMS/APMS and PCTMS, Primary Care , ASKARI & PARTNER ,1481718," 47,654.96 ",LIP000003213,
Department of Health,NHS England,31/10/2013,GPMS/APMS and PCTMS, Primary Care , ASKEY & PARTNERS ,1523798," 128,131.36 ",WAL000001602,
Department of Health,NHS England,31/10/2013,GPMS/APMS and PCTMS, Primary Care , ASPATRIA MEDICAL GROUP ,1440662," 106,165.94 ",CU000002410,
Department of Health,NHS England,31/10/2013,GPMS/APMS and PCTMS, Primary Care , ASPLANDS MEDICAL CENTRE ,1401489," 110,131.23 ",BD000002433,
Department of Health,NHS England,31/10/2013,GPMS/APMS and PCTMS, Primary Care , ASPLEY MEDICAL CENTRE ,1394863," 69,359.03 ",NN000004444,
Department of Health,NHS England,31/10/2013,GPMS/APMS and PCTMS, Primary Care , ASPULL SURGERY ,1394525," 41,112.21 ",WIG000003023,
Department of Health,NHS England,31/10/2013,GPMS/APMS and PCTMS, Primary Care , ASQUITH SURGERY ,1491884," 31,939.42 ",135390-18-OCT-2013,
Department of Health,NHS England,31/10/2013,GPMS/APMS and PCTMS, Primary Care , ASQUITH SURGERY ,1351107," 38,496.53 ",LD000003877,
Department of Health,NHS England,31/10/2013,GPMS/APMS and PCTMS, Primary Care , ASSURA EAST RIDING LLP ,1506702," 37,946.95 ",803Z278,
Department of Health,NHS England,31/10/2013,GPMS/APMS and PCTMS, Primary Care , ASSURA MEDICAL PROPERTIES LTD ,1352535," 30,000.00 ",LINV006272,
Department of Health,NHS England,31/10/2013,GPMS/APMS and PCTMS, Primary Care , ASSURA WILTSHIRE LLP ,1576354," 46,366.00 ",826Z259,
Department of Health,NHS England,31/10/2013,GPMS/APMS and PCTMS, Primary Care , ASTLEY & LEVICK ,1391738,"-51,697.53 ",DR000002242,
Department of Health,NHS England,31/10/2013,GPMS/APMS and PCTMS, Primary Care , ASTLEY & LEVICK ,1391743," 97,046.19 ",DR000002243,
Department of Health,NHS England,31/10/2013,GPMS/APMS and PCTMS, Primary Care , ASTON HEALTHCARE LTD ,1482291,"-414,167.83 ",STL000002493,
Department of Health,NHS England,31/10/2013,GPMS/APMS and PCTMS, Primary Care , ASTON HEALTHCARE LTD ,1352373,"-33,202.89 ",STL000002264,
Department of Health,NHS England,31/10/2013,GPMS/APMS and PCTMS, Primary Care , ASTON HEALTHCARE LTD ,1536973," 30,252.02 ",BFS31,
Department of Health,NHS England,31/10/2013,GPMS/APMS and PCTMS, Primary Care , ASTON HEALTHCARE LTD ,1352374," 182,931.67 ",STL000002265,
Department of Health,NHS England,31/10/2013,GPMS/APMS and PCTMS, Primary Care , ASTON HEALTHCARE LTD ,1487843," 517,779.65 ",STL000002494,
Department of Health,NHS England,31/10/2013,GPMS/APMS and PCTMS, Primary Care , AT ACE AT APMS PRACTICE ,1392792,"-28,519.08 ",EX000006820,
Department of Health,NHS England,31/10/2013,GPMS/APMS and PCTMS, Primary Care , AT ACE AT APMS PRACTICE ,1392793," 236,492.44 ",EX000006821,
Department of Health,NHS England,31/10/2013,GPMS/APMS and PCTMS, Primary Care , AT MEDICS LTD BARLBY ROAD ,1402164," 80,096.54 ",LNJ000001936,
Department of Health,NHS England,31/10/2013,GPMS/APMS and PCTMS, Primary Care , AT MEDICS LTD MERRIAM AVENUE ,1394252,"-45,661.62 ",LNA000002835,
Department of Health,NHS England,31/10/2013,GPMS/APMS and PCTMS, Primary Care , AT MEDICS LTD MERRIAM AVENUE ,1394253," 74,467.52 ",LNA000002836,
Department of Health,NHS England,31/10/2013,GPMS/APMS and PCTMS, Primary Care , ATHENA MEDICAL CENTRE ,1495284," 53,118.28 ",LNA000002962,
Department of Health,NHS England,31/10/2013,GPMS/APMS and PCTMS, Primary Care , ATHERLEY HOUSE SURGERY ,1493441," 35,919.68 ",SO000007474,
Department of Health,NHS England,31/10/2013,Purchase of healthcare from non-NHS bodies, Specialised Commissioning , ATLANTIC ENTERPRISE UK LTD ,1110480," 43,805.20 ",2785 ,
Department of Health,NHS England,31/10/2013,GPMS/APMS and PCTMS, Primary Care , ATRIUM HEALTH CENTRE ,1378130," 92,021.07 ",DO000002987,
Department of Health,NHS England,31/10/2013,GPMS/APMS and PCTMS, Primary Care , ATTENBOROUGH SURGERY ,1542370," 123,650.77 ",HT000004035,
Department of Health,NHS England,31/10/2013,GPMS/APMS and PCTMS, Primary Care , AUCKLAND MEDICAL GROUP ,1526878," 119,556.80 ",DR000002503,
Department of Health,NHS England,31/10/2013,GPMS/APMS and PCTMS, Primary Care , AUCKLAND SURGERY ,1395387," 51,865.47 ",LNR000002034,
Department of Health,NHS England,31/10/2013,GPMS/APMS and PCTMS, Primary Care , AUDLEM MEDICAL PRACTICE ,1470089,"-32,394.80 ",CH000003518,
Department of Health,NHS England,31/10/2013,GPMS/APMS and PCTMS, Primary Care , AUDLEM MEDICAL PRACTICE ,1319551," 26,726.71 ",CH000003082,
Department of Health,NHS England,31/10/2013,GPMS/APMS and PCTMS, Primary Care , AUDLEM MEDICAL PRACTICE ,1470090," 32,482.56 ",CH000003519,
Department of Health,NHS England,31/10/2013,GPMS/APMS and PCTMS, Primary Care , AUGHTON SURGERY ,1525364," 39,916.05 ",LA000005705,
Department of Health,NHS England,31/10/2013,GPMS/APMS and PCTMS, Primary Care , AVENUE MEDICAL CENTRE DENESIDE SEAHAM ,1526880," 48,285.86 ",DR000002505,
Department of Health,NHS England,31/10/2013,GPMS/APMS and PCTMS, Primary Care , AVENUE MEDICAL CENTRE SHEFFIELD ,1392592,"-65,965.30 ",SHE000002030,
Department of Health,NHS England,31/10/2013,GPMS/APMS and PCTMS, Primary Care , AVENUE MEDICAL CENTRE SHEFFIELD ,1402064," 117,828.58 ",SHE000002031,
Department of Health,NHS England,31/10/2013,GPMS/APMS and PCTMS, Primary Care , AVENUE MEDICAL CENTRE SLOUGH ,1402090," 66,312.96 ",BE000003085,
Department of Health,NHS England,31/10/2013,GPMS/APMS and PCTMS, Primary Care , AVENUES MEDICAL CENTRE ,1533072," 49,054.27 ",KHU000003120,
Department of Health,NHS England,31/10/2013,GPMS/APMS and PCTMS, Primary Care , AVICENNA HEALTH CENTRE ,1395044," 43,030.44 ",LNS000004591,
Department of Health,NHS England,31/10/2013,GPMS/APMS and PCTMS, Primary Care , AVISFORD MEDICAL GROUP ,1393706," 108,847.85 ",TW000004196,
Department of Health,NHS England,31/10/2013,Services from other NHS bodies, Health & Justice , AVON AND WILTSHIRE MENTAL HEALTH PARTNERSHIP NHS TRUST ,1594387,"-79,643.00 ",500124 ,
Department of Health,NHS England,31/10/2013,Services from other NHS bodies, Specialised Commissioning , AVON AND WILTSHIRE MENTAL HEALTH PARTNERSHIP NHS TRUST ,1594388,"-52,317.00 ",500122 ,
Department of Health,NHS England,31/10/2013,Services from other NHS bodies, Health & Justice , AVON AND WILTSHIRE MENTAL HEALTH PARTNERSHIP NHS TRUST ,1594389,"-39,417.00 ",500121 ,
Department of Health,NHS England,31/10/2013,Services from other NHS bodies, Military Health , AVON AND WILTSHIRE MENTAL HEALTH PARTNERSHIP NHS TRUST ,1388384," 37,500.00 ",3001997 ,
Department of Health,NHS England,31/10/2013,Services from other NHS bodies, Military Health , AVON AND WILTSHIRE MENTAL HEALTH PARTNERSHIP NHS TRUST ,1418153," 37,500.00 ",3002011 ,
Department of Health,NHS England,31/10/2013,Services from other NHS bodies, Specialised Commissioning , AVON AND WILTSHIRE MENTAL HEALTH PARTNERSHIP NHS TRUST ,1066005," 52,317.00 ",3001767 ,
Department of Health,NHS England,31/10/2013,Services from other NHS bodies, Health & Justice , AVON AND WILTSHIRE MENTAL HEALTH PARTNERSHIP NHS TRUST ,1565697," 52,317.00 ",3002036 ,
Department of Health,NHS England,31/10/2013,Services from other NHS bodies, Health & Justice , AVON AND WILTSHIRE MENTAL HEALTH PARTNERSHIP NHS TRUST ,1066006," 61,805.00 ",3001768 ,
Department of Health,NHS England,31/10/2013,Services from other NHS bodies, Health & Justice , AVON AND WILTSHIRE MENTAL HEALTH PARTNERSHIP NHS TRUST ,1565698," 61,805.00 ",3002035 ,
Department of Health,NHS England,31/10/2013,Services from other NHS bodies, Health & Justice , AVON AND WILTSHIRE MENTAL HEALTH PARTNERSHIP NHS TRUST ,1066004," 79,643.00 ",3001766 ,
Department of Health,NHS England,31/10/2013,Services from other NHS bodies, Health & Justice , AVON AND WILTSHIRE MENTAL HEALTH PARTNERSHIP NHS TRUST ,1565734," 79,643.00 ",3002046 ,
Department of Health,NHS England,31/10/2013,Services from other NHS bodies, Health & Justice , AVON AND WILTSHIRE MENTAL HEALTH PARTNERSHIP NHS TRUST ,1467049," 109,886.00 ",3001762 ,
Department of Health,NHS England,31/10/2013,Premises, Other , AVON AND WILTSHIRE MENTAL HEALTH PARTNERSHIP NHS TRUST ,1537668," 120,000.00 ",3001799 ,
Department of Health,NHS England,31/10/2013,Services from other NHS bodies, Specialised Commissioning , AVON AND WILTSHIRE MENTAL HEALTH PARTNERSHIP NHS TRUST ,1519399," 2,000,558.86 ",3002040 ,
Department of Health,NHS England,31/10/2013,Services from other NHS bodies, Specialised Commissioning , AVON AND WILTSHIRE MENTAL HEALTH PARTNERSHIP NHS TRUST ,1309104," 2,000,559.00 ",3001886 ,
Department of Health,NHS England,31/10/2013,GPMS/APMS and PCTMS, Primary Care , AVON LMC SERVICES LTD ,1406349," 88,123.46 ",130978-01-OCT-2013,
Department of Health,NHS England,31/10/2013,GPMS/APMS and PCTMS, Primary Care , AVONMOUTH MEDICAL CENTRE ,1390197," 25,411.98 ",BRS000003773,
Department of Health,NHS England,31/10/2013,GPMS/APMS and PCTMS, Primary Care , AVONSIDE HEALTH CENTRE ,1540207," 86,406.17 ",WA000002365,
Department of Health,NHS England,31/10/2013,GPMS/APMS and PCTMS, Primary Care , AW SURGERIES ,1493969,"-172,393.01 ",DUD000000936,
Department of Health,NHS England,31/10/2013,GPMS/APMS and PCTMS, Primary Care , AW SURGERIES ,1493970," 313,716.51 ",DUD000000937,
Department of Health,NHS England,31/10/2013,GPMS/APMS and PCTMS, Primary Care , AWBURN HOUSE MEDICAL PRACTICE ,1525951," 54,646.66 ",GMK000001759,
Department of Health,NHS England,31/10/2013,GPMS/APMS and PCTMS, Primary Care , AYLESBURY MEDICAL CENTRE ,1401265," 231,576.73 ",LNS000004593,
Department of Health,NHS England,31/10/2013,GPMS/APMS and PCTMS, Primary Care , AYLESFORD MEDICAL CENTRE ,1434246," 41,872.09 ",KC000007936,
Department of Health,NHS England,31/10/2013,GPMS/APMS and PCTMS, Primary Care , AYLESHAM PRACTICE ,1440780," 69,700.42 ",KC000007938,
Department of Health,NHS England,31/10/2013,Purchase of healthcare from non-NHS bodies, Specialised Commissioning , B BRAUN AVITUM UK LTD ,1339921," 114,913.60 ",328547700 ,
Department of Health,NHS England,31/10/2013,GPMS/APMS and PCTMS, Primary Care , B HUDSON ,1395705," 74,736.96 ",LNP000003318,
Department of Health,NHS England,31/10/2013,GPMS/APMS and PCTMS, Primary Care , B RASHID ,1542579," 25,438.33 ",LNH000001725,
Department of Health,NHS England,31/10/2013,GPMS/APMS and PCTMS, Primary Care , BA PATTOO ,1542142," 30,106.74 ",MAN000001911,
Department of Health,NHS England,31/10/2013,GPMS/APMS and PCTMS, Primary Care , BACKWELL&NAILSEA MEDICAL GROUP ,1390199," 114,610.28 ",BRS000003775,
Department of Health,NHS England,31/10/2013,GPMS/APMS and PCTMS, Primary Care , BACON ROAD MEDICAL CENTRE ,1508251," 31,665.04 ",NF000004100,
Department of Health,NHS England,31/10/2013,GPMS/APMS and PCTMS, Primary Care , BADGER LTD ,1566665," 174,754.44 ",136850-23-OCT-2013,
Department of Health,NHS England,31/10/2013,GPMS/APMS and PCTMS, Primary Care , BADGERSWOOD SURGERY ,1501786,"-35,684.70 ",SO000007479,
Department of Health,NHS England,31/10/2013,GPMS/APMS and PCTMS, Primary Care , BADGERSWOOD SURGERY ,1501787," 123,136.90 ",SO000007480,
Department of Health,NHS England,31/10/2013,GPMS/APMS and PCTMS, Primary Care , BAFFINS SURGERY ,1385644,"-60,118.45 ",SO000007165,
Department of Health,NHS England,31/10/2013,GPMS/APMS and PCTMS, Primary Care , BAFFINS SURGERY ,1385658," 154,979.58 ",SO000007166,
Department of Health,NHS England,31/10/2013,GPMS/APMS and PCTMS, Primary Care , BAGARY & BAGARY ,1373214," 42,708.26 ",WOM000001409,
Department of Health,NHS England,31/10/2013,GPMS/APMS and PCTMS, Primary Care , BAILEY M C & PARTNERS ,1547897," 62,426.37 ",EX000007363,
Department of Health,NHS England,31/10/2013,GPMS/APMS and PCTMS, Primary Care , BAINBRIDGE & PARTNERS ,1481726,"-26,137.27 ",LIP000003222,
Department of Health,NHS England,31/10/2013,GPMS/APMS and PCTMS, Primary Care , BAINBRIDGE & PARTNERS ,1481727," 36,772.97 ",LIP000003223,
Department of Health,NHS England,31/10/2013,GPMS/APMS and PCTMS, Primary Care , BAIRD & PARTNERS ,1481728,"-53,258.84 ",LIP000003224,
Department of Health,NHS England,31/10/2013,GPMS/APMS and PCTMS, Primary Care , BAIRD & PARTNERS ,1352188," 50,024.08 ",LIP000002943,
Department of Health,NHS England,31/10/2013,GPMS/APMS and PCTMS, Primary Care , BAIRD & PARTNERS ,1481729," 75,412.12 ",LIP000003225,
Department of Health,NHS England,31/10/2013,GPMS/APMS and PCTMS, Primary Care , BAJAJ & PARTNER ,1481731," 28,340.78 ",LIP000003227,
Department of Health,NHS England,31/10/2013,GPMS/APMS and PCTMS, Primary Care , BAJEN J M & PARTNER ,1392795," 60,004.13 ",EX000006823,
Department of Health,NHS England,31/10/2013,GPMS/APMS and PCTMS, Primary Care , BAKERSFIELD MEDICAL CENTRE ,1394868," 46,867.62 ",NN000004446,
Department of Health,NHS England,31/10/2013,GPMS/APMS and PCTMS, Primary Care , BAKHAT A ,1542144," 61,998.64 ",MAN000001913,
Department of Health,NHS England,31/10/2013,GPMS/APMS and PCTMS, Primary Care , BALAAM STREET PRACTICE ,1394254,"-54,970.53 ",LNA000002837,
Department of Health,NHS England,31/10/2013,GPMS/APMS and PCTMS, Primary Care , BALAAM STREET PRACTICE ,1394255," 102,087.56 ",LNA000002838,
Department of Health,NHS England,31/10/2013,GPMS/APMS and PCTMS, Primary Care , BALDWINS LANE SURGERY ,1542376," 35,624.32 ",HT000004043,
Department of Health,NHS England,31/10/2013,GPMS/APMS and PCTMS, Primary Care , BALFOUR ROAD SURGERY ,1502227," 62,867.39 ",LNB000001892,
Department of Health,NHS England,31/10/2013,GPMS/APMS and PCTMS, Primary Care , BALHAM PARK SURGERY ,1395706,"-25,363.73 ",LNP000003319,
Department of Health,NHS England,31/10/2013,GPMS/APMS and PCTMS, Primary Care , BALHAM PARK SURGERY ,1395707," 128,433.33 ",LNP000003320,
Department of Health,NHS England,31/10/2013,GPMS/APMS and PCTMS, Primary Care , BALIGA KS ,1391751," 35,296.18 ",DR000002245,
Department of Health,NHS England,31/10/2013,GPMS/APMS and PCTMS, Primary Care , BALL TREE SURGERY ,1495911," 48,660.05 ",TW000004513,
Department of Health,NHS England,31/10/2013,GPMS/APMS and PCTMS, Primary Care , BALLATER ,1440630," 58,407.42 ",LNT000001524,
Department of Health,NHS England,31/10/2013,GPMS/APMS and PCTMS, Primary Care , BALMORAL GARDENS ,1434252," 26,532.50 ",KC000007942,
Department of Health,NHS England,31/10/2013,GPMS/APMS and PCTMS, Primary Care , BALMORAL SURGERY ,1434551," 74,516.49 ",KC000008391,
Department of Health,NHS England,31/10/2013,GPMS/APMS and PCTMS, Primary Care , BALMORE PARK SURGERY ,1390873," 127,318.67 ",BE000003089,
Department of Health,NHS England,31/10/2013,GPMS/APMS and PCTMS, Primary Care , BAMPTON MEDICAL PRACTICE ,1547887," 68,164.03 ",OX000002646,
Department of Health,NHS England,31/10/2013,GPMS/APMS and PCTMS, Primary Care , BAMPTON SURGERY ,1577701," 39,490.71 ",DN000006247,
Department of Health,NHS England,31/10/2013,GPMS/APMS and PCTMS, Primary Care , BAMPTON SURGERY ,1319246," 39,820.94 ",DN000005447,
Department of Health,NHS England,31/10/2013,GPMS/APMS and PCTMS, Primary Care , BANBURY ROAD MEDICAL CENTRE ,1547888," 50,129.45 ",OX000002648,
Department of Health,NHS England,31/10/2013,GPMS/APMS and PCTMS, Primary Care , BANGOR STREET HEALTH CENTRE ,1532574," 52,461.71 ",LA000005719,
Department of Health,NHS England,31/10/2013,GPMS/APMS and PCTMS, Primary Care , BANK HOUSE SURGERY HARTLEPOOL ,1434002," 76,122.03 ",MID000002090,
Department of Health,NHS England,31/10/2013,GPMS/APMS and PCTMS, Primary Care , BANKS SURGERY ,1543408," 46,674.95 ",LD000004142,
Department of Health,NHS England,31/10/2013,GPMS/APMS and PCTMS, Primary Care , BANNOCKBURN SURGERY ,1393597," 47,829.93 ",LNW000001581,
Department of Health,NHS England,31/10/2013,GPMS/APMS and PCTMS, Primary Care , BANSAL & READE ,1482292,"-25,302.27 ",STL000002495,
Department of Health,NHS England,31/10/2013,GPMS/APMS and PCTMS, Primary Care , BANSAL & READE ,1352376," 26,452.33 ",STL000002267,
Department of Health,NHS England,31/10/2013,GPMS/APMS and PCTMS, Primary Care , BANSAL & READE ,1482293," 37,688.99 ",STL000002496,
Department of Health,NHS England,31/10/2013,GPMS/APMS and PCTMS, Primary Care , BANSAL A & PARTNER ,1392798," 45,312.20 ",EX000006827,
Department of Health,NHS England,31/10/2013,GPMS/APMS and PCTMS, Primary Care , BARGATE MEDICAL CENTRE ,1376315," 27,095.24 ",SO000007170,
Department of Health,NHS England,31/10/2013,GPMS/APMS and PCTMS, Primary Care , BARING ROAD MEDICAL CENTRE ,1395052," 64,663.11 ",LNS000004597,
Department of Health,NHS England,31/10/2013,GPMS/APMS and PCTMS, Primary Care , BARKANTINE PRACTICE ,1394256,"-203,397.09 ",LNA000002839,
Department of Health,NHS England,31/10/2013,GPMS/APMS and PCTMS, Primary Care , BARKANTINE PRACTICE ,1394257," 384,303.71 ",LNA000002840,
Department of Health,NHS England,31/10/2013,GPMS/APMS and PCTMS, Primary Care , BARKHAM J D T & PARTNER ,1543054," 39,096.98 ",EX000007373,
Department of Health,NHS England,31/10/2013,Services from other NHS bodies, Public Health , BARKING HAVERING AND REDBRIDGE HOSPITALS NHS TRUST ,1418212,"-33,021.00 ",8401797 ,
Department of Health,NHS England,31/10/2013,Services from other NHS bodies, Secondary and Community Dental Care , BARKING HAVERING AND REDBRIDGE HOSPITALS NHS TRUST ,1457294," 272,096.00 ",8401592 ,
Department of Health,NHS England,31/10/2013,Services from other NHS bodies, Specialised Commissioning , BARKING HAVERING AND REDBRIDGE HOSPITALS NHS TRUST ,1340951," 4,709,800.00 ",8401590 ,
Department of Health,NHS England,31/10/2013,GPMS/APMS and PCTMS, Primary Care , BARKINGSIDE MEDICAL CENTRE ,1395261," 46,908.68 ",LNB000001811,
Department of Health,NHS England,31/10/2013,GPMS/APMS and PCTMS, Primary Care , BARMSTON MEDICAL CENTRE ,1393909," 62,083.34 ",SUN000001159,
Department of Health,NHS England,31/10/2013,GPMS/APMS and PCTMS, Primary Care , BARN SURGERY ,1495917," 25,640.08 ",TW000004519,
Department of Health,NHS England,31/10/2013,GPMS/APMS and PCTMS, Primary Care , BARN SURGERY ,1378135," 64,241.05 ",DO000002995,
Department of Health,NHS England,31/10/2013,GPMS/APMS and PCTMS, Primary Care , BARNARD CASTLE SURGERY ,1391761,"-101,733.89 ",DR000002246,
Department of Health,NHS England,31/10/2013,GPMS/APMS and PCTMS, Primary Care , BARNARD CASTLE SURGERY ,1391764," 190,435.38 ",DR000002247,
Department of Health,NHS England,31/10/2013,GPMS/APMS and PCTMS, Primary Care , BARNARD PRACTICE ,1393599," 82,973.44 ",LNW000001583,
Department of Health,NHS England,31/10/2013,GPMS/APMS and PCTMS, Primary Care , BARNDOC HEALTHCARE LTD ,1576624,"-84,536.00 ",1492 ,
Department of Health,NHS England,31/10/2013,GPMS/APMS and PCTMS, Primary Care , BARNDOC HEALTHCARE LTD ,1576623,"-63,327.00 ",1490 ,
Department of Health,NHS England,31/10/2013,GPMS/APMS and PCTMS, Primary Care , BARNDOC HEALTHCARE LTD ,1576625,"-63,327.00 ",1491 ,
Department of Health,NHS England,31/10/2013,Services from other NHS bodies, Public Health , BARNET & CHASE FARM HOSPITALS NHS TRUST ,1479116," 81,591.00 ",I0060957,
Department of Health,NHS England,31/10/2013,General Dental services and personal dental services, Secondary and Community Dental Care , BARNET & CHASE FARM HOSPITALS NHS TRUST ,1479289," 98,492.00 ",I0061120,
Department of Health,NHS England,31/10/2013,Services from other NHS bodies, Public Health , BARNET & CHASE FARM HOSPITALS NHS TRUST ,1536769," 296,706.00 ",I0061123,
Department of Health,NHS England,31/10/2013,Services from other NHS bodies, Secondary and Community Dental Care , BARNET & CHASE FARM HOSPITALS NHS TRUST ,1491963," 571,135.00 ",I0061119,
Department of Health,NHS England,31/10/2013,Services from other NHS bodies, Specialised Commissioning , BARNET & CHASE FARM HOSPITALS NHS TRUST ,1341033," 1,376,876.00 ",I0061118,
Department of Health,NHS England,31/10/2013,Services from other NHS bodies, Health & Justice , BARNET ENFIELD AND HARINGEY MENTAL HEALTH NHS TRUST ,1417290," 31,046.00 ",41416701 ,
Department of Health,NHS England,31/10/2013,Services from other NHS bodies, Public Health , BARNET ENFIELD AND HARINGEY MENTAL HEALTH NHS TRUST ,1524778," 282,917.00 ",41416887 ,
Department of Health,NHS England,31/10/2013,Services from other NHS bodies, Specialised Commissioning , BARNET ENFIELD AND HARINGEY MENTAL HEALTH NHS TRUST ,1446115," 3,756,849.00 ",41416885 ,
Department of Health,NHS England,31/10/2013,GPMS/APMS and PCTMS, Primary Care , BARNETT & PARTNERS ,1481736,"-29,959.71 ",LIP000003232,
Department of Health,NHS England,31/10/2013,GPMS/APMS and PCTMS, Primary Care , BARNETT & PARTNERS ,1352196," 26,841.57 ",LIP000002951,
Department of Health,NHS England,31/10/2013,GPMS/APMS and PCTMS, Primary Care , BARNETT & PARTNERS ,1481737," 36,139.62 ",LIP000003233,
Department of Health,NHS England,31/10/2013,GPMS/APMS and PCTMS, Primary Care , BARNFIELD HILL SURGERY ,1577703," 69,662.40 ",DN000006249,
Department of Health,NHS England,31/10/2013,GPMS/APMS and PCTMS, Primary Care , BARNOLDSWICK MEDICAL CENTRE ,1532576," 95,182.98 ",LA000005725,
Department of Health,NHS England,31/10/2013,Services from other NHS bodies, Public Health , BARNSLEY HOSPITAL NHS FOUNDATION TRUST ,1417701," 120,628.00 ",6022997 ,
Department of Health,NHS England,31/10/2013,Services from other NHS bodies, Specialised Commissioning , BARNSLEY HOSPITAL NHS FOUNDATION TRUST ,1330920," 540,561.00 ",6022995 ,
Department of Health,NHS England,31/10/2013,GPMS/APMS and PCTMS, Primary Care , BARNSLEY ROAD SURGERY ,1392599," 25,619.66 ",SHE000002035,
Department of Health,NHS England,31/10/2013,GPMS/APMS and PCTMS, Primary Care , BARNT GREEN SURGERY ,1395833," 54,712.68 ",WR000002516,
Department of Health,NHS England,31/10/2013,GPMS/APMS and PCTMS, Primary Care , BARR LANE SURGERY ,1540214," 47,215.30 ",WA000002373,
Department of Health,NHS England,31/10/2013,GPMS/APMS and PCTMS, Primary Care , BARRACK LANE MEDICAL CENTRE ,1365627,"-107,386.74 ",SU000003008,
Department of Health,NHS England,31/10/2013,GPMS/APMS and PCTMS, Primary Care , BARRACK LANE MEDICAL CENTRE ,1373120," 231,888.30 ",SU000003009,
Department of Health,NHS England,31/10/2013,GPMS/APMS and PCTMS, Primary Care , BARRETT CHATTERJEE DAY & PARTNERS ,1401616,"-28,249.92 ",DE000004135,
Department of Health,NHS England,31/10/2013,GPMS/APMS and PCTMS, Primary Care , BARRETT CHATTERJEE DAY & PARTNERS ,1401617," 128,528.87 ",DE000004136,
Department of Health,NHS England,31/10/2013,GPMS/APMS and PCTMS, Primary Care , BARROWFORD SURGERY ,1525382," 35,237.43 ",LA000005727,
Department of Health,NHS England,31/10/2013,GPMS/APMS and PCTMS, Primary Care , BARTLEMAS SURGERY ,1547889," 69,424.42 ",OX000002650,
Department of Health,NHS England,31/10/2013,GPMS/APMS and PCTMS, Primary Care , BARTON HOUSE GROUP PRACTICE ,1502440," 108,585.37 ",LNA000002972,
Department of Health,NHS England,31/10/2013,GPMS/APMS and PCTMS, Primary Care , BARTON HOUSE SURGERY ,1487669," 46,739.16 ",DO000003201,
Department of Health,NHS England,31/10/2013,GPMS/APMS and PCTMS, Primary Care , BARTON SURGERY (DAWLISH) ,1577705," 132,557.77 ",DN000006251,
Department of Health,NHS England,31/10/2013,GPMS/APMS and PCTMS, Primary Care , BARTON SURGERY (DAWLISH) ,1319247," 132,937.28 ",DN000005451,
Department of Health,NHS England,31/10/2013,GPMS/APMS and PCTMS, Primary Care , BARTON SURGERY (TORQUAY) ,1577707," 88,451.72 ",DN000006253,
Department of Health,NHS England,31/10/2013,GPMS/APMS and PCTMS, Primary Care , BARTON WEBB PEPLOE PARTNERSHIP ,1501793," 95,893.73 ",SO000007488,
Department of Health,NHS England,31/10/2013,Services from other NHS bodies, Public Health , BARTS HEALTH NHS TRUST ,1406779," 38,500.00 ",174934 ,
Department of Health,NHS England,31/10/2013,Services from other NHS bodies, Primary Care , BARTS HEALTH NHS TRUST ,1536981," 40,000.00 ",175185 ,
Department of Health,NHS England,31/10/2013,Services from other NHS bodies, Public Health , BARTS HEALTH NHS TRUST ,1389228," 41,833.33 ",174933 ,
Department of Health,NHS England,31/10/2013,Services from other NHS bodies, Secondary and Community Dental Care , BARTS HEALTH NHS TRUST ,1406782," 349,083.33 ",174932 ,
Department of Health,NHS England,31/10/2013,Services from other NHS bodies, Public Health , BARTS HEALTH NHS TRUST ,1406780," 385,833.33 ",174936 ,
Department of Health,NHS England,31/10/2013,Services from other NHS bodies, Secondary and Community Dental Care , BARTS HEALTH NHS TRUST ,1406783," 1,733,532.25 ",174935 ,
Department of Health,NHS England,31/10/2013,Services from other NHS bodies, Specialised Commissioning , BARTS HEALTH NHS TRUST ,1389214," 23,754,294.01 ",174931 ,
Department of Health,NHS England,31/10/2013,GPMS/APMS and PCTMS, Primary Care , BARUCH & PARTNERS ,1502496," 52,356.90 ",LNN000002090,
Department of Health,NHS England,31/10/2013,Services from other NHS bodies, Secondary and Community Dental Care , BASILDON & THURROCK UNIVERSITY HOSPITALS NHS FOUNDATION TRUST ,1565518,"-76,500.00 ",DIMMYCRRFTREJ1017,
Department of Health,NHS England,31/10/2013,Services from other NHS bodies, Public Health , BASILDON & THURROCK UNIVERSITY HOSPITALS NHS FOUNDATION TRUST ,1565518,"-50,490.00 ",DIMMYCRRFTREJ1017,
Department of Health,NHS England,31/10/2013,General Opthalmic services, Public Health , BASILDON & THURROCK UNIVERSITY HOSPITALS NHS FOUNDATION TRUST ,1565518,"-26,010.00 ",DIMMYCRRFTREJ1017,
Department of Health,NHS England,31/10/2013,Services from other NHS bodies, Specialised Commissioning , BASILDON & THURROCK UNIVERSITY HOSPITALS NHS FOUNDATION TRUST ,1536846," 28,992.30 ",59583 ,
Department of Health,NHS England,31/10/2013,Services from other NHS bodies, Specialised Commissioning , BASILDON & THURROCK UNIVERSITY HOSPITALS NHS FOUNDATION TRUST ,1536845," 30,106.03 ",59585 ,
Department of Health,NHS England,31/10/2013,Services from other NHS bodies, Specialised Commissioning , BASILDON & THURROCK UNIVERSITY HOSPITALS NHS FOUNDATION TRUST ,1536848," 33,975.95 ",59587 ,
Department of Health,NHS England,31/10/2013,Services from other NHS bodies, Specialised Commissioning , BASILDON & THURROCK UNIVERSITY HOSPITALS NHS FOUNDATION TRUST ,1576728," 38,440.37 ",60187 ,
Department of Health,NHS England,31/10/2013,Services from other NHS bodies, Specialised Commissioning , BASILDON & THURROCK UNIVERSITY HOSPITALS NHS FOUNDATION TRUST ,1536847," 38,629.78 ",59589 ,
Department of Health,NHS England,31/10/2013,Services from other NHS bodies, Secondary and Community Dental Care , BASILDON & THURROCK UNIVERSITY HOSPITALS NHS FOUNDATION TRUST ,1551933," 127,469.00 ",57754 ,
Department of Health,NHS England,31/10/2013,Services from other NHS bodies, Secondary and Community Dental Care , BASILDON & THURROCK UNIVERSITY HOSPITALS NHS FOUNDATION TRUST ,1430939," 127,470.00 ",58758 ,
Department of Health,NHS England,31/10/2013,Services from other NHS bodies, Secondary and Community Dental Care , BASILDON & THURROCK UNIVERSITY HOSPITALS NHS FOUNDATION TRUST ,1349231," 127,471.00 ",59238 ,
Department of Health,NHS England,31/10/2013,Services from other NHS bodies, Secondary and Community Dental Care , BASILDON & THURROCK UNIVERSITY HOSPITALS NHS FOUNDATION TRUST ,1479418," 127,471.00 ",59702 ,
Department of Health,NHS England,31/10/2013,Services from other NHS bodies, Public Health , BASILDON & THURROCK UNIVERSITY HOSPITALS NHS FOUNDATION TRUST ,1349231," 143,809.00 ",59238 ,
Department of Health,NHS England,31/10/2013,Services from other NHS bodies, Public Health , BASILDON & THURROCK UNIVERSITY HOSPITALS NHS FOUNDATION TRUST ,1430939," 143,809.00 ",58758 ,
Department of Health,NHS England,31/10/2013,Services from other NHS bodies, Public Health , BASILDON & THURROCK UNIVERSITY HOSPITALS NHS FOUNDATION TRUST ,1479418," 143,809.00 ",59702 ,
Department of Health,NHS England,31/10/2013,Services from other NHS bodies, Public Health , BASILDON & THURROCK UNIVERSITY HOSPITALS NHS FOUNDATION TRUST ,1551933," 143,809.00 ",57754 ,
Department of Health,NHS England,31/10/2013,Services from other NHS bodies, Specialised Commissioning , BASILDON & THURROCK UNIVERSITY HOSPITALS NHS FOUNDATION TRUST ,1431763," 3,986,433.00 ",59700 ,
Department of Health,NHS England,31/10/2013,GPMS/APMS and PCTMS, Primary Care , BASLOW ROAD & SHOREHAM STREET SURGERIES ,1532698," 71,187.81 ",SHE000002219,
Department of Health,NHS England,31/10/2013,GPMS/APMS and PCTMS, Primary Care , BASSAN ,1502186," 28,798.96 ",WBH000001312,
Department of Health,NHS England,31/10/2013,GPMS/APMS and PCTMS, Primary Care , BASSAN ,1352099," 42,505.00 ",WBH000001244,
Department of Health,NHS England,31/10/2013,GPMS/APMS and PCTMS, Primary Care , BASSETT ROAD MEDICAL PRACTICE ,1548009," 115,544.20 ",BD000002594,
Department of Health,NHS England,31/10/2013,GPMS/APMS and PCTMS, Primary Care , BATES & PARTNERS RICHMOND ,1502497," 65,381.53 ",LNN000002092,
Department of Health,NHS England,31/10/2013,GPMS/APMS and PCTMS, Primary Care , BATES & PARTNERS WIRRAL ,1482139,"-38,354.56 ",BIK000001587,
Department of Health,NHS England,31/10/2013,GPMS/APMS and PCTMS, Primary Care , BATES & PARTNERS WIRRAL ,1364636," 31,981.00 ",BIK000001471,
Department of Health,NHS England,31/10/2013,GPMS/APMS and PCTMS, Primary Care , BATES & PARTNERS WIRRAL ,1482140," 50,377.93 ",BIK000001588,
Department of Health,NHS England,31/10/2013,GPMS/APMS and PCTMS, Primary Care , BATESON & PARTNERS ,1481738,"-41,336.07 ",LIP000003234,
Department of Health,NHS England,31/10/2013,GPMS/APMS and PCTMS, Primary Care , BATESON & PARTNERS ,1352198," 40,745.44 ",LIP000002953,
Department of Health,NHS England,31/10/2013,GPMS/APMS and PCTMS, Primary Care , BATESON & PARTNERS ,1481739," 55,674.55 ",LIP000003235,
Department of Health,NHS England,31/10/2013,GPMS/APMS and PCTMS, Primary Care , BATH LODGE PRACTICE ,1501794,"-28,673.50 ",SO000007489,
Department of Health,NHS England,31/10/2013,GPMS/APMS and PCTMS, Primary Care , BATH LODGE PRACTICE ,1493443," 107,812.37 ",SO000007490,
Department of Health,NHS England,31/10/2013,GPMS/APMS and PCTMS, Primary Care , BATH ROAD SURGERY SLOUGH ,1493734," 30,256.01 ",BE000003208,
Department of Health,NHS England,31/10/2013,GPMS/APMS and PCTMS, Primary Care , BATH STREET SURGERY ,1493972,"-25,649.15 ",DUD000000938,
Department of Health,NHS England,31/10/2013,GPMS/APMS and PCTMS, Primary Care , BATH STREET SURGERY ,1493976," 45,359.25 ",DUD000000939,
Department of Health,NHS England,31/10/2013,GPMS/APMS and PCTMS, Primary Care , BATHEASTON MEDICAL CENTRE ,1390205," 47,531.31 ",BRS000003782,
Department of Health,NHS England,31/10/2013,Purchase of healthcare from non-NHS bodies, Specialised Commissioning , BATTERSEA BRIDGE HOUSE LTD ,1446126," 619,169.70 ",HONHSLS014,
Department of Health,NHS England,31/10/2013,Purchase of healthcare from non-NHS bodies, Specialised Commissioning , BATTERSEA BRIDGE HOUSE LTD ,1389360," 792,811.69 ",HONHSLS015,
Department of Health,NHS England,31/10/2013,GPMS/APMS and PCTMS, Primary Care , BATTLEHILL HEALTH CENTRE ,1393859," 114,008.49 ",NEW000001655,
Department of Health,NHS England,31/10/2013,General Opthalmic services, Primary Care , BATTY & DEXTER ,1463714," 30,695.40 ",4011879_S,
Department of Health,NHS England,31/10/2013,GPMS/APMS and PCTMS, Primary Care , BAYLIS T M & PARTNERS ,1543037," 39,573.63 ",EX000007355,
Department of Health,NHS England,31/10/2013,GPMS/APMS and PCTMS, Primary Care , BAYSWATER MEDICAL CENTRE ,1395561," 72,819.23 ",LNJ000001934,
Department of Health,NHS England,31/10/2013,GPMS/APMS and PCTMS, Primary Care , BEACON MEDICAL ,1401856," 150,845.66 ",KHU000002839,
Department of Health,NHS England,31/10/2013,GPMS/APMS and PCTMS, Primary Care , BEACON SURGERY ,1446843," 84,870.50 ",TE000003609,
Department of Health,NHS England,31/10/2013,GPMS/APMS and PCTMS, Primary Care , BEARSTED MEDICAL PRACTICE ,1434227," 81,346.18 ",KC000007930,
Department of Health,NHS England,31/10/2013,GPMS/APMS and PCTMS, Primary Care , BEARWOOD MEDICAL CENTRE ,1385442," 79,642.35 ",DO000002983,
Department of Health,NHS England,31/10/2013,GPMS/APMS and PCTMS, Primary Care , BEAUFORT ROAD SURGERY ,1487667," 94,181.50 ",DO000003195,
Department of Health,NHS England,31/10/2013,GPMS/APMS and PCTMS, Primary Care , BEAUMONT LEYS HEALTH CENTRE ,1351105," 56,377.11 ",LD000003875,
Department of Health,NHS England,31/10/2013,GPMS/APMS and PCTMS, Primary Care , BEAUMONT STREET SURGERY ,1547884," 35,959.47 ",OX000002640,
Department of Health,NHS England,31/10/2013,GPMS/APMS and PCTMS, Primary Care , BEAUMONT VILLA SURGERY ,1584899," 108,557.11 ",DN000006243,
Department of Health,NHS England,31/10/2013,GPMS/APMS and PCTMS, Primary Care , BECCLES MEDICAL CENTRE ,1365757,"-33,940.17 ",NF000003653,
Department of Health,NHS England,31/10/2013,GPMS/APMS and PCTMS, Primary Care , BECCLES MEDICAL CENTRE ,1373266," 167,049.09 ",NF000003654,
Department of Health,NHS England,31/10/2013,GPMS/APMS and PCTMS, Primary Care , BECKETT HOUSE PRACTICE ,1401262," 55,817.82 ",LNS000004579,
Department of Health,NHS England,31/10/2013,GPMS/APMS and PCTMS, Primary Care , BECKINGTON FAMILY PRACTICE ,1541205," 104,574.62 ",SM000001941,
Department of Health,NHS England,31/10/2013,Services from other NHS bodies, Specialised Commissioning , BEDFORD HOSPITAL NHS TRUST ,1565679," 36,327.69 ",I0129926,
Department of Health,NHS England,31/10/2013,Services from other NHS bodies, Public Health , BEDFORD HOSPITAL NHS TRUST ,1594373," 194,723.95 ",I0129848,
Department of Health,NHS England,31/10/2013,Services from other NHS bodies, Public Health , BEDFORD HOSPITAL NHS TRUST ,1594374," 194,723.95 ",I0129849,
Department of Health,NHS England,31/10/2013,Services from other NHS bodies, Public Health , BEDFORD HOSPITAL NHS TRUST ,1594375," 194,723.95 ",I0129850,
Department of Health,NHS England,31/10/2013,Services from other NHS bodies, Public Health , BEDFORD HOSPITAL NHS TRUST ,1594376," 194,723.95 ",I0129851,
Department of Health,NHS England,31/10/2013,General Dental services and personal dental services, Secondary and Community Dental Care , BEDFORD HOSPITAL NHS TRUST ,1594373," 198,422.05 ",I0129848,
Department of Health,NHS England,31/10/2013,General Dental services and personal dental services, Secondary and Community Dental Care , BEDFORD HOSPITAL NHS TRUST ,1594374," 198,422.05 ",I0129849,
Department of Health,NHS England,31/10/2013,General Dental services and personal dental services, Secondary and Community Dental Care , BEDFORD HOSPITAL NHS TRUST ,1594375," 198,422.05 ",I0129850,
Department of Health,NHS England,31/10/2013,General Dental services and personal dental services, Secondary and Community Dental Care , BEDFORD HOSPITAL NHS TRUST ,1594376," 198,422.05 ",I0129851,
Department of Health,NHS England,31/10/2013,Services from other NHS bodies, Specialised Commissioning , BEDFORD HOSPITAL NHS TRUST ,1431530," 765,062.00 ",I0129570,
Department of Health,NHS England,31/10/2013,GPMS/APMS and PCTMS, Primary Care , BEDFORD HOUSE MEDICAL CENTRE ,1525949," 54,305.46 ",GMK000001757,
Department of Health,NHS England,31/10/2013,GPMS/APMS and PCTMS, Primary Care , BEDFORD SQUARE MEDICAL CENTRE ,1542594," 38,210.66 ",LND000002359,
Department of Health,NHS England,31/10/2013,GPMS/APMS and PCTMS, Primary Care , BEDFORD STREET SURGERY ,1401605," 98,697.32 ",BU000002178,
Department of Health,NHS England,31/10/2013,GPMS/APMS and PCTMS, Primary Care , BEDFORDSHIRE AND HERTFORDSHIRE LMC LTD (STAT LEVY) ,1552486," 57,621.50 ",136919-24-OCT-2013,
Department of Health,NHS England,31/10/2013,GPMS/APMS and PCTMS, Primary Care , BEDLINGTONSHIRE MEDICAL GROUP ,1393782," 90,357.65 ",NR000001431,
Department of Health,NHS England,31/10/2013,GPMS/APMS and PCTMS, Primary Care , BEDMINSTER FAMILY PRACTICE ,1390193," 106,461.71 ",BRS000003769,
Department of Health,NHS England,31/10/2013,GPMS/APMS and PCTMS, Primary Care , BEDSIDE MANOR ,1393589," 38,553.17 ",LNW000001571,
Department of Health,NHS England,31/10/2013,GPMS/APMS and PCTMS, Primary Care , BEDWELL MEDICAL CENTRE ,1542368," 90,999.97 ",HT000004033,
Department of Health,NHS England,31/10/2013,GPMS/APMS and PCTMS, Primary Care , BEEBY ,1482289," 31,895.08 ",STL000002490,
Department of Health,NHS England,31/10/2013,GPMS/APMS and PCTMS, Primary Care , BEECH GROVE MEDICAL PRACTICE ,1514528," 28,928.85 ",YN000003714,
Department of Health,NHS England,31/10/2013,GPMS/APMS and PCTMS, Primary Care , BEECH GROVE SURGERY ,1501776," 41,173.60 ",SO000007466,
Department of Health,NHS England,31/10/2013,GPMS/APMS and PCTMS, Primary Care , BEECH HILL MEDICAL CENTRE ,1394428," 108,569.04 ",WIG000002905,
Department of Health,NHS England,31/10/2013,GPMS/APMS and PCTMS, Primary Care , BEECH HOUSE MEDICAL PRACTICE ,1365558," 68,688.11 ",SPT000001171,
Department of Health,NHS England,31/10/2013,GPMS/APMS and PCTMS, Primary Care , BEECH HOUSE SURGERY ,1514529," 81,542.15 ",YN000003716,
Department of Health,NHS England,31/10/2013,GPMS/APMS and PCTMS, Primary Care , BEECH TREE SURGERY ,1514530," 157,493.23 ",YN000003718,
Department of Health,NHS England,31/10/2013,GPMS/APMS and PCTMS, Primary Care , BEECHCROFT SURGERY ,1365759," 45,815.79 ",NF000003656,
Department of Health,NHS England,31/10/2013,GPMS/APMS and PCTMS, Primary Care , BEECHDALE SURGERY ,1401773," 40,700.38 ",NN000004442,
Department of Health,NHS England,31/10/2013,GPMS/APMS and PCTMS, Primary Care , BEECHES MEDICAL PRACTICE ,1508530," 57,746.32 ",SA000002643,
Department of Health,NHS England,31/10/2013,GPMS/APMS and PCTMS, Primary Care , BEECHWOOD GROUP PRACTICE ,1435043," 50,204.26 ",CU000002412,
Department of Health,NHS England,31/10/2013,GPMS/APMS and PCTMS, Primary Care , BEECHWOOD MEDICAL CENTRE ,1495280," 28,659.45 ",LNA000002958,
Department of Health,NHS England,31/10/2013,GPMS/APMS and PCTMS, Primary Care , BEECHWOOD MEDICAL PRACTICE ,1539195," 82,567.31 ",BRS000004147,
Department of Health,NHS England,31/10/2013,GPMS/APMS and PCTMS, Primary Care , BEECHWOOD SURGERY ,1532570," 25,978.39 ",LA000005697,
Department of Health,NHS England,31/10/2013,GPMS/APMS and PCTMS, Primary Care , BEGGARWOOD SURGERY (THE) ,1385642,"-59,708.48 ",SO000007163,
Department of Health,NHS England,31/10/2013,GPMS/APMS and PCTMS, Primary Care , BEGGARWOOD SURGERY (THE) ,1385643," 132,112.49 ",SO000007164,
Department of Health,NHS England,31/10/2013,GPMS/APMS and PCTMS, Primary Care , BEHESHTI & PARTNERS ,1494498," 53,010.42 ",LNC000002099,
Department of Health,NHS England,31/10/2013,GPMS/APMS and PCTMS, Primary Care , BELFORD MEDICAL PRACTICE ,1393786," 48,822.43 ",NR000001435,
Department of Health,NHS England,31/10/2013,GPMS/APMS and PCTMS, Primary Care , BELGRAVE SURGERY ,1514531," 49,791.64 ",YN000003720,
Department of Health,NHS England,31/10/2013,GPMS/APMS and PCTMS, Primary Care , BELGRAVIA SURGERY ,1459266," 57,417.45 ",LNJ000002063,
Department of Health,NHS England,31/10/2013,GPMS/APMS and PCTMS, Primary Care , BELL HOUSE MEDICAL PRACTICE ,1542957," 186,285.03 ",BD000002592,
Department of Health,NHS England,31/10/2013,GPMS/APMS and PCTMS, Primary Care , BELL SURGERY ,1547885," 73,805.30 ",OX000002642,
Department of Health,NHS England,31/10/2013,GPMS/APMS and PCTMS, Primary Care , BELLEGROVE ROAD SURGERY ,1401905," 84,512.13 ",LNW000001575,
Department of Health,NHS England,31/10/2013,GPMS/APMS and PCTMS, Primary Care , BELLINGHAM GREEN SURGERY ,1395027," 63,513.69 ",LNS000004581,
Department of Health,NHS England,31/10/2013,GPMS/APMS and PCTMS, Primary Care , BELLINGHAM J M & PARTNERS ,1392789," 80,160.06 ",EX000006817,
Department of Health,NHS England,31/10/2013,GPMS/APMS and PCTMS, Primary Care , BELLINGHAM MEDICAL GROUP ,1393788," 36,034.31 ",NR000001437,
Department of Health,NHS England,31/10/2013,GPMS/APMS and PCTMS, Primary Care , BELMONT & SHERBURN MEDICAL GROUP ,1526875," 65,714.46 ",DR000002501,
Department of Health,NHS England,31/10/2013,GPMS/APMS and PCTMS, Primary Care , BELMONT HILL SURGERY ,1395031," 54,791.49 ",LNS000004583,
Department of Health,NHS England,31/10/2013,GPMS/APMS and PCTMS, Primary Care , BELMONT MEDICAL CENTRE ,1474369," 69,226.04 ",LNK000000948,
Department of Health,NHS England,31/10/2013,GPMS/APMS and PCTMS, Primary Care , BELSIZE PRIORY MEDICAL PRACTICE ,1547925," 38,336.37 ",LND000002361,
Department of Health,NHS England,31/10/2013,GPMS/APMS and PCTMS, Primary Care , BELVEDERE MEDICAL CENTRE ,1401906," 56,051.05 ",LNW000001577,
Department of Health,NHS England,31/10/2013,GPMS/APMS and PCTMS, Primary Care , BELVIDERE MEDICAL PRACTICE ,1514488," 46,481.40 ",SA000002645,
Department of Health,NHS England,31/10/2013,GPMS/APMS and PCTMS, Primary Care , BENFIELD PARK MEDICAL GROUP ,1393860," 29,777.50 ",NEW000001656,
Department of Health,NHS England,31/10/2013,GPMS/APMS and PCTMS, Primary Care , BENFIELD PARK MEDICAL GROUP ,1548182," 66,834.53 ",NEW000001807,
Department of Health,NHS England,31/10/2013,GPMS/APMS and PCTMS, Primary Care , BENNETTS END SURGERY ,1391523," 139,541.76 ",HT000003825,
Department of Health,NHS England,31/10/2013,GPMS/APMS and PCTMS, Primary Care , BENNFIELD SURGERY ,1548224," 74,971.61 ",WA000002363,
Department of Health,NHS England,31/10/2013,GPMS/APMS and PCTMS, Primary Care , BENTHAM MEDICAL PRACTICE ,1514532," 84,849.44 ",YN000003722,
Department of Health,NHS England,31/10/2013,GPMS/APMS and PCTMS, Primary Care , BENTHAM ROAD HEALTH CENTRE ,1532571," 86,377.55 ",LA000005701,
Department of Health,NHS England,31/10/2013,GPMS/APMS and PCTMS, Primary Care , BENTLEY MEDICAL PRACTICE ,1433995,"-47,989.25 ",MID000002083,
Department of Health,NHS England,31/10/2013,GPMS/APMS and PCTMS, Primary Care , BENTLEY MEDICAL PRACTICE ,1433996," 98,631.82 ",MID000002084,
Department of Health,NHS England,31/10/2013,GPMS/APMS and PCTMS, Primary Care , BENTLEY VILLAGE SURGERY ,1493440," 29,170.90 ",SO000007472,
Department of Health,NHS England,31/10/2013,GPMS/APMS and PCTMS, Primary Care , BENTS GREEN SURGERY ,1392590," 33,888.33 ",SHE000002029,
Department of Health,NHS England,31/10/2013,GPMS/APMS and PCTMS, Primary Care , BERE REGIS PRACTICE ,1482747," 29,201.92 ",DO000003197,
Department of Health,NHS England,31/10/2013,Services from other NHS bodies, Health & Justice , BERKSHIRE HEALTHCARE NHS FOUNDATION TRUST ,1524605," 113,652.00 ",764888 ,
Department of Health,NHS England,31/10/2013,Services from other NHS bodies, Secondary and Community Dental Care , BERKSHIRE HEALTHCARE NHS FOUNDATION TRUST ,1406179," 213,996.00 ",764908 ,
Department of Health,NHS England,31/10/2013,Services from other NHS bodies, Public Health , BERKSHIRE HEALTHCARE NHS FOUNDATION TRUST ,1524605," 925,697.00 ",764888 ,
Department of Health,NHS England,31/10/2013,GPMS/APMS and PCTMS, Primary Care , BERKSHIRE LMC ,1330537," 79,996.72 ",129776-25-SEP-2013,
Department of Health,NHS England,31/10/2013,GPMS/APMS and PCTMS, Primary Care , BERMONDSEY & LANSDOWNE MEDICAL MISSION ,1401263," 132,069.26 ",LNS000004585,
Department of Health,NHS England,31/10/2013,GPMS/APMS and PCTMS, Primary Care , BERMONDSEY SPA MEDICAL CENTRE ,1395037," 70,798.78 ",LNS000004587,
Department of Health,NHS England,31/10/2013,GPMS/APMS and PCTMS, Primary Care , BERNAYS & WHITEHOUSE LTD T/A KINGSHURST MEDICAL PRACTICE ,1502412," 52,389.51 ",WMF000000946,
Department of Health,NHS England,31/10/2013,GPMS/APMS and PCTMS, Primary Care , BERRY & PARTNERS ,1533013," 103,984.79 ",DCR000001415,
Department of Health,NHS England,31/10/2013,GPMS/APMS and PCTMS, Primary Care , BERRY LANE MEDICAL CENTRE ,1532572," 92,943.74 ",LA000005703,
Department of Health,NHS England,31/10/2013,GPMS/APMS and PCTMS, Primary Care , BERRYFIELDS MEDICAL CENTRE ,1390942," 40,694.68 ",BU000002180,
Department of Health,NHS England,31/10/2013,GPMS/APMS and PCTMS, Primary Care , BERRYLANDS SURGERY ,1496242," 27,931.30 ",LNN000002086,
Department of Health,NHS England,31/10/2013,GPMS/APMS and PCTMS, Primary Care , BERSTED GREEN SURGERY ,1495909," 65,569.95 ",TW000004511,
Department of Health,NHS England,31/10/2013,GPMS/APMS and PCTMS, Primary Care , BEST M & PARTNER ,1392791," 55,438.41 ",EX000006819,
Department of Health,NHS England,31/10/2013,GPMS/APMS and PCTMS, Primary Care , BETHNAL GREEN HEALTH CENTRE ,1495282," 80,481.73 ",LNA000002960,
Department of Health,NHS England,31/10/2013,Services from other NHS bodies, Specialised Commissioning , BETSI CADWALADR UNIVERSITY LHB ,1456145," 183,126.25 ",342278 ,
Department of Health,NHS England,31/10/2013,GPMS/APMS and PCTMS, Primary Care , BEVAN ,1482296," 33,627.04 ",STL000002500,
Department of Health,NHS England,31/10/2013,GPMS/APMS and PCTMS, Primary Care , BEVAN HEALTHCARE CIC ,1394141," 137,810.13 ",BRA000001752,
Department of Health,NHS England,31/10/2013,GPMS/APMS and PCTMS, Primary Care , BEVERSBROOK MEDICAL CENTRE ,1408253," 40,427.94 ",WL000002820,
Department of Health,NHS England,31/10/2013,GPMS/APMS and PCTMS, Primary Care , BEWBUSH MEDICAL CENTRE ,1495919," 39,323.09 ",TW000004521,
Department of Health,NHS England,31/10/2013,GPMS/APMS and PCTMS, Primary Care , BEWDLEY MEDICAL CENTRE ,1395834,"-32,432.98 ",WR000002517,
Department of Health,NHS England,31/10/2013,GPMS/APMS and PCTMS, Primary Care , BEWDLEY MEDICAL CENTRE ,1395835," 135,636.96 ",WR000002518,
Department of Health,NHS England,31/10/2013,GPMS/APMS and PCTMS, Primary Care , BEWICK CRESCENT SURGERY ,1391900,"-131,505.02 ",DR000002362,
Department of Health,NHS England,31/10/2013,GPMS/APMS and PCTMS, Primary Care , BEWICK CRESCENT SURGERY ,1391901," 241,390.33 ",DR000002363,
Department of Health,NHS England,31/10/2013,GPMS/APMS and PCTMS, Primary Care , BEXLEY GROUP PRACTICE ,1393603," 86,091.95 ",LNW000001587,
Department of Health,NHS England,31/10/2013,GPMS/APMS and PCTMS, Primary Care , BEXLEY MEDICAL GROUP ,1401907," 130,515.99 ",LNW000001589,
Department of Health,NHS England,31/10/2013,GPMS/APMS and PCTMS, Primary Care , BHADAURIA ,1496320," 31,884.86 ",WBH000001314,
Department of Health,NHS England,31/10/2013,GPMS/APMS and PCTMS, Primary Care , BHARANI MEDICAL CENTRE ,1402092," 133,552.59 ",BE000003095,
Department of Health,NHS England,31/10/2013,GPMS/APMS and PCTMS, Primary Care , BHATTACHARJEE S & PARTNER ,1401738," 32,673.60 ",EX000006837,
Department of Health,NHS England,31/10/2013,GPMS/APMS and PCTMS, Primary Care , BHISHMA ,1542150," 36,831.58 ",MAN000001920,
Department of Health,NHS England,31/10/2013,GPMS/APMS and PCTMS, Primary Care , BIDEFORD MEDICAL CENTRE BIDEFORD ,1577710,"-25,427.29 ",DN000006256,
Department of Health,NHS England,31/10/2013,GPMS/APMS and PCTMS, Primary Care , BIDEFORD MEDICAL CENTRE BIDEFORD ,1577711," 139,975.02 ",DN000006257,
Department of Health,NHS England,31/10/2013,GPMS/APMS and PCTMS, Primary Care , BIDFORD ON AVON HEALTH CENTRE ,1391372," 112,825.97 ",WA000002287,
Department of Health,NHS England,31/10/2013,GPMS/APMS and PCTMS, Primary Care , BIDWELL & DAVIDSON ,1391770,"-36,589.03 ",DR000002248,
Department of Health,NHS England,31/10/2013,GPMS/APMS and PCTMS, Primary Care , BIDWELL & DAVIDSON ,1391774," 88,823.05 ",DR000002249,
Department of Health,NHS England,31/10/2013,GPMS/APMS and PCTMS, Primary Care , BIGGIN HILL SURGERY ,1433533," 91,533.75 ",LNT000001530,
Department of Health,NHS England,31/10/2013,GPMS/APMS and PCTMS, Primary Care , BILAS & THOMAS ,1447405," 27,705.39 ",WOM000001502,
Department of Health,NHS England,31/10/2013,GPMS/APMS and PCTMS, Primary Care , BILLINGSHURST SURGERY ,1495921," 72,514.22 ",TW000004523,
Department of Health,NHS England,31/10/2013,GPMS/APMS and PCTMS, Primary Care , BILSTON STREET SURGERY ,1493981," 46,756.58 ",DUD000000941,
Department of Health,NHS England,31/10/2013,GPMS/APMS and PCTMS, Primary Care , BILSTON URBAN VILLAGE MEDICAL CENTRE ,1373215," 73,186.21 ",WOM000001411,
Department of Health,NHS England,31/10/2013,GPMS/APMS and PCTMS, Primary Care , BINCOTE ROAD SURGERY ,1376164," 46,635.06 ",LNE000002366,
Department of Health,NHS England,31/10/2013,GPMS/APMS and PCTMS, Primary Care , BINFIELD ROAD SURGERY ,1395059," 67,006.64 ",LNS000004603,
Department of Health,NHS England,31/10/2013,GPMS/APMS and PCTMS, Primary Care , BINFIELD SURGERY ,1402093," 90,502.48 ",BE000003097,
Department of Health,NHS England,31/10/2013,GPMS/APMS and PCTMS, Primary Care , BINGLEY MEDICAL PRACTICE ,1394142,"-387,541.59 ",BRA000001753,
Department of Health,NHS England,31/10/2013,GPMS/APMS and PCTMS, Primary Care , BINGLEY MEDICAL PRACTICE ,1401412," 686,631.42 ",BRA000001754,
Department of Health,NHS England,31/10/2013,GPMS/APMS and PCTMS, Primary Care , BIRBECK MEDICAL GROUP ,1435051," 128,531.14 ",CU000002420,
Department of Health,NHS England,31/10/2013,GPMS/APMS and PCTMS, Primary Care , BIRCHDALE ROAD MEDICAL CENTRE ,1394258,"-37,593.11 ",LNA000002841,
Department of Health,NHS England,31/10/2013,GPMS/APMS and PCTMS, Primary Care , BIRCHDALE ROAD MEDICAL CENTRE ,1394259," 71,074.19 ",LNA000002842,
Department of Health,NHS England,31/10/2013,GPMS/APMS and PCTMS, Primary Care , BIRCHES MEDICAL CENTRE ,1365628,"-54,839.31 ",SU000003010,
Department of Health,NHS England,31/10/2013,GPMS/APMS and PCTMS, Primary Care , BIRCHES MEDICAL CENTRE ,1528798," 29,789.71 ",ROC000001587,
Department of Health,NHS England,31/10/2013,GPMS/APMS and PCTMS, Primary Care , BIRCHES MEDICAL CENTRE ,1373121," 118,340.14 ",SU000003011,
Department of Health,NHS England,31/10/2013,GPMS/APMS and PCTMS, Primary Care , BIRCHES MEDICAL PRACTICE ,1526432," 70,234.88 ",KHU000003124,
Department of Health,NHS England,31/10/2013,GPMS/APMS and PCTMS, Primary Care , BIRCHINGTON MEDICAL CENTRE ,1434254," 59,010.13 ",KC000007944,
Department of Health,NHS England,31/10/2013,GPMS/APMS and PCTMS, Primary Care , BIRCHTREE PRACTICE ,1434005,"-44,193.38 ",MID000002093,
Department of Health,NHS England,31/10/2013,GPMS/APMS and PCTMS, Primary Care , BIRCHTREE PRACTICE ,1434006," 89,224.33 ",MID000002094,
Department of Health,NHS England,31/10/2013,GPMS/APMS and PCTMS, Primary Care , BIRCHWOOD MEDICAL CENTRE POOLE ,1378137," 81,098.01 ",DO000002997,
Department of Health,NHS England,31/10/2013,GPMS/APMS and PCTMS, Primary Care , BIRCHWOOD MEDICAL CENTRE WARRINGTON ,1394048," 87,091.08 ",CH000003214,
Department of Health,NHS England,31/10/2013,GPMS/APMS and PCTMS, Primary Care , BIRCHWOOD MEDICAL PRACTICE BRISTOL ,1539204," 49,097.80 ",BRS000004156,
Department of Health,NHS England,31/10/2013,GPMS/APMS and PCTMS, Primary Care , BIRCHWOOD MEDICAL PRACTICE HORLEY ,1496069," 120,155.24 ",SY000003677,
Department of Health,NHS England,31/10/2013,GPMS/APMS and PCTMS, Primary Care , BIRCHWOOD SURGERY ,1542378," 118,315.64 ",HT000004045,
Department of Health,NHS England,31/10/2013,GPMS/APMS and PCTMS, Primary Care , BIRD IN EYE SURGERY ,1446847," 51,765.88 ",TE000003613,
Department of Health,NHS England,31/10/2013,GPMS/APMS and PCTMS, Primary Care , BIRKETTS LLP ,1330033," 66,053.00 ",1 ,
Department of Health,NHS England,31/10/2013,GPMS/APMS and PCTMS, Primary Care , BIRLEY HEALTH CENTRE ,1392600,"-79,549.38 ",SHE000002036,
Department of Health,NHS England,31/10/2013,GPMS/APMS and PCTMS, Primary Care , BIRLEY HEALTH CENTRE ,1402065," 141,894.96 ",SHE000002037,
Department of Health,NHS England,31/10/2013,Services from other NHS bodies, Specialised Commissioning , BIRMINGHAM & SOLIHULL MENTAL HEALTH NHS FOUNDATION TRUST ,1360917," 44,987.00 ",25879 ,
Department of Health,NHS England,31/10/2013,Services from other NHS bodies, Specialised Commissioning , BIRMINGHAM & SOLIHULL MENTAL HEALTH NHS FOUNDATION TRUST ,1479572," 124,273.17 ",26074 ,
Department of Health,NHS England,31/10/2013,Services from other NHS bodies, Health & Justice , BIRMINGHAM & SOLIHULL MENTAL HEALTH NHS FOUNDATION TRUST ,1457356," 598,131.00 ",26039 ,
Department of Health,NHS England,31/10/2013,Services from other NHS bodies, Specialised Commissioning , BIRMINGHAM & SOLIHULL MENTAL HEALTH NHS FOUNDATION TRUST ,1507188," 4,634,567.00 ",26084 ,
Department of Health,NHS England,31/10/2013,Services from other NHS bodies, Public Health , BIRMINGHAM CHILDRENS HOSPITAL NHS FOUNDATION TRUST ,1340521,"-968,490.01 ",15663431 ,
Department of Health,NHS England,31/10/2013,Services from other NHS bodies, Public Health , BIRMINGHAM CHILDRENS HOSPITAL NHS FOUNDATION TRUST ,1491340," 289,595.25 ",15663408 ,
Department of Health,NHS England,31/10/2013,Services from other NHS bodies, Public Health , BIRMINGHAM CHILDRENS HOSPITAL NHS FOUNDATION TRUST ,1349019," 968,490.01 ",15662642 ,
Department of Health,NHS England,31/10/2013,Services from other NHS bodies, Specialised Commissioning , BIRMINGHAM CHILDRENS HOSPITAL NHS FOUNDATION TRUST ,1375572," 12,878,707.00 ",15663549 ,
Department of Health,NHS England,31/10/2013,GPMS/APMS and PCTMS, Primary Care , BIRMINGHAM COMMUNITY HEALTHCARE NHS TRUST ,1456172," 446,729.00 ",44996839 ,
Department of Health,NHS England,31/10/2013,GPMS/APMS and PCTMS, Primary Care , BIRMINGHAM COMMUNITY HEALTHCARE NHS TRUST ,1387799," 466,729.00 ",44996407 ,
Department of Health,NHS England,31/10/2013,General Dental services and personal dental services, Secondary and Community Dental Care , BIRMINGHAM COMMUNITY HEALTHCARE NHS TRUST ,1466235," 748,386.00 ",44996848 ,
Department of Health,NHS England,31/10/2013,General Dental services and personal dental services, Secondary and Community Dental Care , BIRMINGHAM COMMUNITY HEALTHCARE NHS TRUST ,1466233," 841,496.00 ",44996845 ,
Department of Health,NHS England,31/10/2013,Services from other NHS bodies, Specialised Commissioning , BIRMINGHAM COMMUNITY HEALTHCARE NHS TRUST ,1350390," 1,571,592.00 ",44996855 ,
Department of Health,NHS England,31/10/2013,Services from other NHS bodies, Public Health , BIRMINGHAM COMMUNITY HEALTHCARE NHS TRUST ,1432178," 1,758,874.00 ",44996854 ,
Department of Health,NHS England,31/10/2013,Services from other NHS bodies, Public Health , BIRMINGHAM WOMENS NHS FOUNDATION TRUST ,1552804," 32,833.67 ",OPI127854,
Department of Health,NHS England,31/10/2013,Services from other NHS bodies, Specialised Commissioning , BIRMINGHAM WOMENS NHS FOUNDATION TRUST ,1480423," 2,366,162.00 ",OPI127798,
Department of Health,NHS England,31/10/2013,GPMS/APMS and PCTMS, Primary Care , BISHOPGATE MEDICAL CENTRE ,1391778,"-136,175.56 ",DR000002250,
Department of Health,NHS England,31/10/2013,GPMS/APMS and PCTMS, Primary Care , BISHOPGATE MEDICAL CENTRE ,1391780," 245,392.39 ",DR000002251,
Department of Health,NHS England,31/10/2013,GPMS/APMS and PCTMS, Primary Care , BISHOPS CASTLE MEDICAL PRACTICE ,1508533," 46,180.69 ",SA000002647,
Department of Health,NHS England,31/10/2013,GPMS/APMS and PCTMS, Primary Care , BISHOPS PLACE SURGERY ,1487771," 44,713.37 ",DN000005830,
Department of Health,NHS England,31/10/2013,GPMS/APMS and PCTMS, Primary Care , BISHOPS WALTHAM SURGERY ,1385638,"-84,636.64 ",SO000007171,
Department of Health,NHS England,31/10/2013,GPMS/APMS and PCTMS, Primary Care , BISHOPS WALTHAM SURGERY ,1385639," 175,475.86 ",SO000007172,
Department of Health,NHS England,31/10/2013,GPMS/APMS and PCTMS, Primary Care , BITTERNE PARK SURGERY ,1501796," 83,049.44 ",SO000007492,
Department of Health,NHS England,31/10/2013,GPMS/APMS and PCTMS, Primary Care , BITTERNE SURGERY ,1493444," 90,649.46 ",SO000007494,
Department of Health,NHS England,31/10/2013,GPMS/APMS and PCTMS, Primary Care , BK JAISWAL ,1494506," 31,616.24 ",LNC000002107,
Department of Health,NHS England,31/10/2013,Services from other NHS bodies, Specialised Commissioning , BLACK COUNTRY PARTNERSHIP NHS FOUNDATION TRUST ,1491975," 252,747.17 ",1100001168 ,
Department of Health,NHS England,31/10/2013,Services from other NHS bodies, Public Health , BLACK COUNTRY PARTNERSHIP NHS FOUNDATION TRUST ,1480425," 350,849.00 ",1100001169 ,
Department of Health,NHS England,31/10/2013,GPMS/APMS and PCTMS, Primary Care , BLACK JEB ,1542152," 29,136.06 ",MAN000001922,
Department of Health,NHS England,31/10/2013,GPMS/APMS and PCTMS, Primary Care , BLACK LONG THOMAS DAS WRIGHT VELTMAN & PARTNERS ,1493223," 110,608.02 ",DE000004333,
Department of Health,NHS England,31/10/2013,GPMS/APMS and PCTMS, Primary Care , BLACKBROOK SURGERY LISIEUX WAY TAUNTON ,1541214," 84,458.06 ",SM000001944,
Department of Health,NHS England,31/10/2013,GPMS/APMS and PCTMS, Primary Care , BLACKBURN ROAD MEDICAL PRACTICE ,1525387," 33,669.76 ",LA000005733,
Department of Health,NHS England,31/10/2013,GPMS/APMS and PCTMS, Primary Care , BLACKDOWN COUNTRY PRACTICE HEMYOCK ,1527696," 27,167.22 ",DN000006183,
Department of Health,NHS England,31/10/2013,GPMS/APMS and PCTMS, Primary Care , BLACKDOWN COUNTRY PRACTICE HEMYOCK ,1577713," 80,389.91 ",DN000006259,
Department of Health,NHS England,31/10/2013,GPMS/APMS and PCTMS, Primary Care , BLACKETTS MEDICAL PRACTICE ,1391786,"-84,438.63 ",DR000002252,
Department of Health,NHS England,31/10/2013,GPMS/APMS and PCTMS, Primary Care , BLACKETTS MEDICAL PRACTICE ,1391789," 167,555.04 ",DR000002253,
Department of Health,NHS England,31/10/2013,GPMS/APMS and PCTMS, Primary Care , BLACKFIELD HEALTH CENTRE ,1501799," 202,065.35 ",SO000007496,
Department of Health,NHS England,31/10/2013,GPMS/APMS and PCTMS, Primary Care , BLACKFORD HOUSE MEDICAL CENTRE ,1532783," 65,740.32 ",ROC000001589,
Department of Health,NHS England,31/10/2013,GPMS/APMS and PCTMS, Primary Care , BLACKFRIARS MEDICAL PRACTICE ,1401269," 54,247.68 ",LNS000004605,
Department of Health,NHS England,31/10/2013,GPMS/APMS and PCTMS, Primary Care , BLACKMORE HEALTH CENTRE SIDMOUTH ,1577715," 138,682.55 ",DN000006261,
Department of Health,NHS England,31/10/2013,GPMS/APMS and PCTMS, Primary Care , BLACKMORE HEALTH CENTRE SIDMOUTH ,1319248," 139,735.66 ",DN000005461,
Department of Health,NHS England,31/10/2013,Services from other NHS bodies, Specialised Commissioning , BLACKPOOL TEACHING HOSPITALS NHS FOUNDATION TRUST ,1340077," 26,349.00 ",1110002644 ,
Department of Health,NHS England,31/10/2013,Services from other NHS bodies, Specialised Commissioning , BLACKPOOL TEACHING HOSPITALS NHS FOUNDATION TRUST ,1349234," 82,933.31 ",1110002611 ,
Department of Health,NHS England,31/10/2013,General Dental services and personal dental services, Secondary and Community Dental Care , BLACKPOOL TEACHING HOSPITALS NHS FOUNDATION TRUST ,1565431," 342,440.00 ",1110002643 ,
Department of Health,NHS England,31/10/2013,Services from other NHS bodies, Public Health , BLACKPOOL TEACHING HOSPITALS NHS FOUNDATION TRUST ,1457291," 569,495.00 ",1110002642 ,
Department of Health,NHS England,31/10/2013,Services from other NHS bodies, Public Health , BLACKPOOL TEACHING HOSPITALS NHS FOUNDATION TRUST ,1567156," 569,495.00 ",1110003555 ,
Department of Health,NHS England,31/10/2013,Services from other NHS bodies, Specialised Commissioning , BLACKPOOL TEACHING HOSPITALS NHS FOUNDATION TRUST ,1457320," 4,585,218.00 ",1110002661 ,
Department of Health,NHS England,31/10/2013,Services from other NHS bodies, Specialised Commissioning , BLACKPOOL TEACHING HOSPITALS NHS FOUNDATION TRUST ,1519438," 4,585,218.00 ",1110003533 ,
Department of Health,NHS England,31/10/2013,GPMS/APMS and PCTMS, Primary Care , BLACKTHORN HEALTH CENTRE ,1501801," 108,681.39 ",SO000007498,
Department of Health,NHS England,31/10/2013,GPMS/APMS and PCTMS, Primary Care , BLACKTHORN MEDICAL CENTRE ,1434260," 48,050.93 ",KC000007946,
Department of Health,NHS England,31/10/2013,GPMS/APMS and PCTMS, Primary Care , BLENHEIM MEDICAL CENTRE ,1468454," 36,081.47 ",BD000002527,
Department of Health,NHS England,31/10/2013,GPMS/APMS and PCTMS, Primary Care , BLENHEIM MEDICAL CENTRE ,1401491," 93,124.01 ",BD000002439,
Department of Health,NHS England,31/10/2013,GPMS/APMS and PCTMS, Primary Care , BLETCHINGTON ROAD SURGERY ,1547891," 64,523.79 ",OX000002652,
Department of Health,NHS England,31/10/2013,GPMS/APMS and PCTMS, Primary Care , BLITHEHALE MEDICAL CENTRE ,1394260,"-71,743.97 ",LNA000002843,
Department of Health,NHS England,31/10/2013,GPMS/APMS and PCTMS, Primary Care , BLITHEHALE MEDICAL CENTRE ,1394261," 135,379.67 ",LNA000002844,
Department of Health,NHS England,31/10/2013,GPMS/APMS and PCTMS, Primary Care , BLOOMFIELD MEDICAL CENTRE ,1532578," 107,101.73 ",LA000005735,
Department of Health,NHS England,31/10/2013,GPMS/APMS and PCTMS, Primary Care , BLOOMSBURY HEALTH CENTRE ,1347944," 25,000.00 ",BIR000003804,
Department of Health,NHS England,31/10/2013,GPMS/APMS and PCTMS, Primary Care , BLOOMSBURY HEALTH CENTRE ,1502022," 41,871.32 ",BIR000004038,
Department of Health,NHS England,31/10/2013,GPMS/APMS and PCTMS, Primary Care , BLOOMSBURY SURGERY ,1547928," 45,339.03 ",LND000002377,
Department of Health,NHS England,31/10/2013,GPMS/APMS and PCTMS, Primary Care , BLUEBELL MEDICAL CENTRE ,1532700," 44,891.28 ",SHE000002223,
Department of Health,NHS England,31/10/2013,Premises, Other , BLUEBELL WOOD CHILDRENS HOSPICE ,1536731," 161,002.00 ",RFNSNHSE1314,
Department of Health,NHS England,31/10/2013,GPMS/APMS and PCTMS, Primary Care , BOAT HOUSE SURGERY ,1390876," 86,578.57 ",BE000003093,
Department of Health,NHS England,31/10/2013,GPMS/APMS and PCTMS, Primary Care , BOCKHAMPTON ROAD SURGERY ,1493738," 58,131.65 ",BE000003212,
Department of Health,NHS England,31/10/2013,GPMS/APMS and PCTMS, Primary Care , BOGNOR MEDICAL PRACTICE ,1393710," 82,839.92 ",TW000004200,
Department of Health,NHS England,31/10/2013,GPMS/APMS and PCTMS, Primary Care , BOKAHRI AA ,1373094," 69,569.88 ",MAN000001803,
Department of Health,NHS England,31/10/2013,GPMS/APMS and PCTMS, Primary Care , BOLLINGTON MEDICAL CENTRE ,1394046," 90,798.98 ",CH000003212,
Department of Health,NHS England,31/10/2013,GPMS/APMS and PCTMS, Primary Care , BOLTON COMMUNITY PRACTICE ,1420565," 144,973.16 ",WIG000003056,
Department of Health,NHS England,31/10/2013,General Opthalmic services, Primary Care , BOLTON VISIONPLUS LTD ,1425990," 76,436.50 ",4011472_S,
Department of Health,NHS England,31/10/2013,GPMS/APMS and PCTMS, Primary Care , BOND MDI & PARTNER ,1482062,"-39,451.70 ",SOP000001897,
Department of Health,NHS England,31/10/2013,GPMS/APMS and PCTMS, Primary Care , BOND MDI & PARTNER ,1482063," 49,469.32 ",SOP000001898,
Department of Health,NHS England,31/10/2013,GPMS/APMS and PCTMS, Primary Care , BONDGATE SURGERY ,1393790," 92,046.46 ",NR000001439,
Department of Health,NHS England,31/10/2013,GPMS/APMS and PCTMS, Primary Care , BOOTH J T & PARTNERS ,1543059," 47,120.83 ",EX000007379,
Department of Health,NHS England,31/10/2013,General Opthalmic services, Primary Care , BOOTS CO PLC ,1469088," 25,167.15 ",4013563_S,
Department of Health,NHS England,31/10/2013,General Opthalmic services, Primary Care , BOOTS OPTICIANS LTD ,1401451," 26,086.22 ",4008521_S,
Department of Health,NHS England,31/10/2013,GPMS/APMS and PCTMS, Primary Care , BORDER PRACTICE ,1385645,"-63,660.10 ",SO000007175,
Department of Health,NHS England,31/10/2013,GPMS/APMS and PCTMS, Primary Care , BORDER PRACTICE ,1385646," 128,332.73 ",SO000007176,
Department of Health,NHS England,31/10/2013,GPMS/APMS and PCTMS, Primary Care , BOROUGH GREEN MEDICAL PRACTICE ,1434268," 82,470.66 ",KC000007950,
Department of Health,NHS England,31/10/2013,GPMS/APMS and PCTMS, Primary Care , BOROUGH ROAD & NUNTHORPE MEDICAL GROUP ,1434008," 99,614.97 ",MID000002096,
Department of Health,NHS England,31/10/2013,GPMS/APMS and PCTMS, Primary Care , BORSTAL VILLAGE ,1556470," 33,522.09 ",KC000008584,
Department of Health,NHS England,31/10/2013,GPMS/APMS and PCTMS, Primary Care , BOSMERE MEDICAL PRACTICE ,1385647,"-118,202.77 ",SO000007177,
Department of Health,NHS England,31/10/2013,GPMS/APMS and PCTMS, Primary Care , BOSMERE MEDICAL PRACTICE ,1376316," 260,612.63 ",SO000007178,
Department of Health,NHS England,31/10/2013,GPMS/APMS and PCTMS, Primary Care , BOTLEY MEDICAL CENTRE ,1547893," 66,582.66 ",OX000002654,
Department of Health,NHS England,31/10/2013,GPMS/APMS and PCTMS, Primary Care , BOTOLPH COMMUNITY HEALTH CENTRE ,1365982," 59,738.27 ",CB000003367,
Department of Health,NHS England,31/10/2013,GPMS/APMS and PCTMS, Primary Care , BOUGHTON MEDICAL GROUP ,1470093,"-71,403.79 ",CH000003522,
Department of Health,NHS England,31/10/2013,GPMS/APMS and PCTMS, Primary Care , BOUGHTON MEDICAL GROUP ,1319557," 60,225.14 ",CH000003088,
Department of Health,NHS England,31/10/2013,GPMS/APMS and PCTMS, Primary Care , BOUGHTON MEDICAL GROUP ,1470094," 71,832.29 ",CH000003523,
Department of Health,NHS England,31/10/2013,GPMS/APMS and PCTMS, Primary Care , BOUNCES ROAD SURGERY ,1542734," 28,874.90 ",LNE000002541,
Department of Health,NHS England,31/10/2013,GPMS/APMS and PCTMS, Primary Care , BOUNDARIES SURGERY ,1501805," 30,973.25 ",SO000007502,
Department of Health,NHS England,31/10/2013,GPMS/APMS and PCTMS, Primary Care , BOUNDARY COURT SURGERY ,1542735," 32,899.46 ",LNE000002542,
Department of Health,NHS England,31/10/2013,GPMS/APMS and PCTMS, Primary Care , BOUNDARY HOUSE SURGERY BRACKNELL ,1493740," 66,915.77 ",BE000003214,
Department of Health,NHS England,31/10/2013,GPMS/APMS and PCTMS, Primary Care , BOUNDARY HOUSE SURGERY LONDON ,1431928," 29,548.09 ",132920-08-OCT-2013,
Department of Health,NHS England,31/10/2013,GPMS/APMS and PCTMS, Primary Care , BOUNDARY HOUSE SURGERY LONDON ,1376166," 34,976.93 ",LNE000002368,
Department of Health,NHS England,31/10/2013,GPMS/APMS and PCTMS, Primary Care , BOUNDS GREEN GROUP PRACTICE ,1376167,"-30,387.47 ",LNE000002369,
Department of Health,NHS England,31/10/2013,GPMS/APMS and PCTMS, Primary Care , BOUNDS GREEN GROUP PRACTICE ,1376168," 124,478.93 ",LNE000002370,
Department of Health,NHS England,31/10/2013,GPMS/APMS and PCTMS, Primary Care , BOURKE M & PARTNERS ,1496072," 63,220.92 ",SY000003679,
Department of Health,NHS England,31/10/2013,GPMS/APMS and PCTMS, Primary Care , BOUTPORT MEDICAL CENTRE ,1487775," 53,372.88 ",DN000005837,
Department of Health,NHS England,31/10/2013,GPMS/APMS and PCTMS, Primary Care , BOVEY TRACEY & CHUDLEIGH PRACTICE ,1577722," 127,785.78 ",DN000006269,
Department of Health,NHS England,31/10/2013,GPMS/APMS and PCTMS, Primary Care , BOVEY TRACEY & CHUDLEIGH PRACTICE ,1319250," 134,265.12 ",DN000005469,
Department of Health,NHS England,31/10/2013,GPMS/APMS and PCTMS, Primary Care , BOW MEDICAL PRACTICE ,1577724," 39,057.10 ",DN000006271,
Department of Health,NHS England,31/10/2013,GPMS/APMS and PCTMS, Primary Care , BOWERS S & PARTNERS ,1481742,"-37,164.63 ",LIP000003238,
Department of Health,NHS England,31/10/2013,GPMS/APMS and PCTMS, Primary Care , BOWERS S & PARTNERS ,1352202," 34,650.92 ",LIP000002957,
Department of Health,NHS England,31/10/2013,GPMS/APMS and PCTMS, Primary Care , BOWERS S & PARTNERS ,1481743," 51,271.80 ",LIP000003239,
Department of Health,NHS England,31/10/2013,GPMS/APMS and PCTMS, Primary Care , BOWES MEDICAL CENTRE ,1542737," 32,794.39 ",LNE000002544,
Department of Health,NHS England,31/10/2013,GPMS/APMS and PCTMS, Primary Care , BOWLAND MEDICAL PRACTICE ,1542154," 60,171.87 ",MAN000001924,
Department of Health,NHS England,31/10/2013,GPMS/APMS and PCTMS, Primary Care , BOWLEY C ,1542156," 63,555.39 ",MAN000001926,
Department of Health,NHS England,31/10/2013,GPMS/APMS and PCTMS, Primary Care , BOWLING GREEN ST SURGERY ,1351109," 26,364.65 ",LD000003879,
Department of Health,NHS England,31/10/2013,GPMS/APMS and PCTMS, Primary Care , BOWLING HALL MEDICAL PRACTICE ,1394143,"-317,347.16 ",BRA000001755,
Department of Health,NHS England,31/10/2013,GPMS/APMS and PCTMS, Primary Care , BOWLING HALL MEDICAL PRACTICE ,1394144," 563,520.97 ",BRA000001756,
Department of Health,NHS England,31/10/2013,GPMS/APMS and PCTMS, Primary Care , BOWTON P A & PARTNER ,1543061," 44,144.10 ",EX000007381,
Department of Health,NHS England,31/10/2013,GPMS/APMS and PCTMS, Primary Care , BOX SURGERY ,1412887," 51,968.07 ",WL000002822,
Department of Health,NHS England,31/10/2013,GPMS/APMS and PCTMS, Primary Care , BOXWELL ROAD SURGERY ,1542380," 50,192.02 ",HT000004047,
Department of Health,NHS England,31/10/2013,GPMS/APMS and PCTMS, Primary Care , BOYATT WOOD SURGERY ,1493445," 33,829.98 ",SO000007504,
Department of Health,NHS England,31/10/2013,GPMS/APMS and PCTMS, Primary Care , BRACKLEY HEALTH CENTRE ,1539396," 33,343.05 ",NO000002640,
Department of Health,NHS England,31/10/2013,General Opthalmic services, Primary Care , BRACKNELL VISIONPLUS LTD ,1373173," 31,906.46 ",4001517_S,
Department of Health,NHS England,31/10/2013,GPMS/APMS and PCTMS, Primary Care , BRACONDALE MEDICAL CENTRE ,1526150," 38,663.85 ",SPT000001215,
Department of Health,NHS England,31/10/2013,Services from other NHS bodies, Specialised Commissioning , BRADFORD DISTRICT CARE TRUST ,1418594," 358,516.00 ",183376 ,
Department of Health,NHS England,31/10/2013,Services from other NHS bodies, Secondary and Community Dental Care , BRADFORD DISTRICT CARE TRUST ,1457295," 409,293.00 ",183375 ,
Department of Health,NHS England,31/10/2013,Services from other NHS bodies, Specialised Commissioning , BRADFORD TEACHING HOSPITALS NHS FOUNDATION TRUST ,1375563," 36,974.00 ",278070 ,
Department of Health,NHS England,31/10/2013,Services from other NHS bodies, Specialised Commissioning , BRADFORD TEACHING HOSPITALS NHS FOUNDATION TRUST ,1405453," 46,831.42 ",276824 ,
Department of Health,NHS England,31/10/2013,Services from other NHS bodies, Specialised Commissioning , BRADFORD TEACHING HOSPITALS NHS FOUNDATION TRUST ,1349227," 49,958.91 ",277672 ,
Department of Health,NHS England,31/10/2013,Services from other NHS bodies, Specialised Commissioning , BRADFORD TEACHING HOSPITALS NHS FOUNDATION TRUST ,1576339," 63,032.67 ",278173 ,
Department of Health,NHS England,31/10/2013,Services from other NHS bodies, Public Health , BRADFORD TEACHING HOSPITALS NHS FOUNDATION TRUST ,1340946," 357,355.00 ",277639 ,
Department of Health,NHS England,31/10/2013,Services from other NHS bodies, Public Health , BRADFORD TEACHING HOSPITALS NHS FOUNDATION TRUST ,1446040," 357,355.00 ",278069 ,
Department of Health,NHS England,31/10/2013,Services from other NHS bodies, Secondary and Community Dental Care , BRADFORD TEACHING HOSPITALS NHS FOUNDATION TRUST ,1340946," 509,592.00 ",277639 ,
Department of Health,NHS England,31/10/2013,Services from other NHS bodies, Secondary and Community Dental Care , BRADFORD TEACHING HOSPITALS NHS FOUNDATION TRUST ,1446040," 509,592.00 ",278069 ,
Department of Health,NHS England,31/10/2013,Services from other NHS bodies, Specialised Commissioning , BRADFORD TEACHING HOSPITALS NHS FOUNDATION TRUST ,1375564," 3,194,767.00 ",278071 ,
Department of Health,NHS England,31/10/2013,GPMS/APMS and PCTMS, Primary Care , BRADGATE SURGERY ,1390209," 83,152.46 ",BRS000003786,
Department of Health,NHS England,31/10/2013,GPMS/APMS and PCTMS, Primary Care , BRADLEY & PARTNERS ,1502498," 104,396.09 ",LNN000002096,
Department of Health,NHS England,31/10/2013,GPMS/APMS and PCTMS, Primary Care , BRADLEY GEDGE BARRON BARRON & PARTNERS ,1401621," 94,999.25 ",DE000004140,
Department of Health,NHS England,31/10/2013,GPMS/APMS and PCTMS, Primary Care , BRADLEY STOKE SURGERY ,1390206,"-26,746.86 ",BRS000003783,
Department of Health,NHS England,31/10/2013,GPMS/APMS and PCTMS, Primary Care , BRADLEY STOKE SURGERY ,1390207," 126,713.47 ",BRS000003784,
Department of Health,NHS England,31/10/2013,GPMS/APMS and PCTMS, Primary Care , BRADY & PARTNERS ,1496252," 86,757.16 ",LNN000002094,
Department of Health,NHS England,31/10/2013,GPMS/APMS and PCTMS, Primary Care , BRAILSFORD & HULLAND MEDICAL PRACTICE ,1493227," 55,589.20 ",DE000004337,
Department of Health,NHS England,31/10/2013,General Opthalmic services, Primary Care , BRAINTREE SPECSAVERS ,1385383," 35,685.00 ",3988676_S,
Department of Health,NHS England,31/10/2013,GPMS/APMS and PCTMS, Primary Care , BRAITHWAITE SURGERY ,1420567," 43,605.09 ",WIG000003058,
Department of Health,NHS England,31/10/2013,GPMS/APMS and PCTMS, Primary Care , BRAMBLEHAIES SURGERY CULLOMPTON ,1577718," 59,381.90 ",DN000006265,
Department of Health,NHS England,31/10/2013,GPMS/APMS and PCTMS, Primary Care , BRAMBLYS GRANGE MEDICAL PRACTICE ,1501803," 97,614.83 ",SO000007500,
Department of Health,NHS England,31/10/2013,GPMS/APMS and PCTMS, Primary Care , BRAMHALL HEALTH CENTRE ,1526148," 87,471.02 ",SPT000001213,
Department of Health,NHS England,31/10/2013,GPMS/APMS and PCTMS, Primary Care , BRAMHALL PARK MEDICAL CENTRE ,1365566," 99,496.51 ",SPT000001179,
Department of Health,NHS England,31/10/2013,GPMS/APMS and PCTMS, Primary Care , BRAMPTON MEDICAL PRACTICE ,1435052,"-31,023.71 ",CU000002421,
Department of Health,NHS England,31/10/2013,GPMS/APMS and PCTMS, Primary Care , BRAMPTON MEDICAL PRACTICE ,1540405," 39,726.08 ",CU000002685,
Department of Health,NHS England,31/10/2013,GPMS/APMS and PCTMS, Primary Care , BRAMPTON MEDICAL PRACTICE ,1435053," 153,428.92 ",CU000002422,
Department of Health,NHS England,31/10/2013,GPMS/APMS and PCTMS, Primary Care , BRANCH END SURGERY ,1393792," 45,699.68 ",NR000001441,
Department of Health,NHS England,31/10/2013,GPMS/APMS and PCTMS, Primary Care , BRANDON MEDICAL PRACTICE ,1365629,"-55,669.42 ",SU000003012,
Department of Health,NHS England,31/10/2013,GPMS/APMS and PCTMS, Primary Care , BRANDON MEDICAL PRACTICE ,1373122," 108,665.03 ",SU000003013,
Department of Health,NHS England,31/10/2013,GPMS/APMS and PCTMS, Primary Care , BRANKSOMEWOOD HEALTHCARE CENTRE ,1385640,"-77,957.72 ",SO000007173,
Department of Health,NHS England,31/10/2013,GPMS/APMS and PCTMS, Primary Care , BRANKSOMEWOOD HEALTHCARE CENTRE ,1385641," 167,037.62 ",SO000007174,
Department of Health,NHS England,31/10/2013,GPMS/APMS and PCTMS, Primary Care , BRANN & PARTNERS ,1401740," 139,508.61 ",EX000006841,
Department of Health,NHS England,31/10/2013,GPMS/APMS and PCTMS, Primary Care , BRANNAM MEDICAL CENTRE ,1577720," 123,398.70 ",DN000006267,
Department of Health,NHS England,31/10/2013,GPMS/APMS and PCTMS, Primary Care , BRANNAM MEDICAL CENTRE ,1319249," 123,943.19 ",DN000005467,
Department of Health,NHS England,31/10/2013,GPMS/APMS and PCTMS, Primary Care , BRANT ROAD SURGERY LINCOLN ,1376755," 55,828.51 ",LL000003311,
Department of Health,NHS England,31/10/2013,GPMS/APMS and PCTMS, Primary Care , BRAYFORD SQUARE SURGERY ,1495431," 29,012.87 ",LNA000003140,
Department of Health,NHS England,31/10/2013,GPMS/APMS and PCTMS, Primary Care , BREACH & PARTNERS ,1482297,"-45,265.67 ",STL000002501,
Department of Health,NHS England,31/10/2013,GPMS/APMS and PCTMS, Primary Care , BREACH & PARTNERS ,1352382," 48,726.40 ",STL000002273,
Department of Health,NHS England,31/10/2013,GPMS/APMS and PCTMS, Primary Care , BREACH & PARTNERS ,1482298," 70,920.28 ",STL000002502,
Department of Health,NHS England,31/10/2013,GPMS/APMS and PCTMS, Primary Care , BREDBURY MEDICAL PRACTICE ,1365568," 39,616.98 ",SPT000001181,
Department of Health,NHS England,31/10/2013,GPMS/APMS and PCTMS, Primary Care , BREEZE HILL NEIGHBOURHOOD HEALTH CENTRE ,1481885,"-31,129.33 ",LIP000003394,
Department of Health,NHS England,31/10/2013,GPMS/APMS and PCTMS, Primary Care , BREEZE HILL NEIGHBOURHOOD HEALTH CENTRE ,1481886," 37,422.40 ",LIP000003395,
Department of Health,NHS England,31/10/2013,GPMS/APMS and PCTMS, Primary Care , BREMNER & PARTNERS ,1481740,"-81,666.24 ",LIP000003236,
Department of Health,NHS England,31/10/2013,GPMS/APMS and PCTMS, Primary Care , BREMNER & PARTNERS ,1352200," 36,429.79 ",LIP000002955,
Department of Health,NHS England,31/10/2013,GPMS/APMS and PCTMS, Primary Care , BREMNER & PARTNERS ,1481741," 100,154.07 ",LIP000003237,
Department of Health,NHS England,31/10/2013,GPMS/APMS and PCTMS, Primary Care , BRENNAN & PARTNERS ,1482141,"-109,139.95 ",BIK000001589,
Department of Health,NHS England,31/10/2013,GPMS/APMS and PCTMS, Primary Care , BRENNAN & PARTNERS ,1364637," 43,097.56 ",BIK000001472,
Department of Health,NHS England,31/10/2013,GPMS/APMS and PCTMS, Primary Care , BRENNAN & PARTNERS ,1487710," 133,511.27 ",BIK000001590,
Department of Health,NHS England,31/10/2013,GPMS/APMS and PCTMS, Primary Care , BRENT AREA MEDICAL CENTRE ANVIL HOUSE EAST BRENT ,1541227," 29,260.52 ",SM000001948,
Department of Health,NHS England,31/10/2013,GPMS/APMS and PCTMS, Primary Care , BRIARWOOD MEDICAL CENTRE ,1532579," 52,345.49 ",LA000005745,
Department of Health,NHS England,31/10/2013,GPMS/APMS and PCTMS, Primary Care , BRICK LANE SURGERY ,1542741," 26,634.53 ",LNE000002549,
Department of Health,NHS England,31/10/2013,GPMS/APMS and PCTMS, Primary Care , BRIDGE COTTAGE SURGERY ,1549175," 134,954.74 ",HT000004055,
Department of Health,NHS England,31/10/2013,GPMS/APMS and PCTMS, Primary Care , BRIDGE HEALTH CENTRE ,1434550," 89,682.26 ",KC000008389,
Department of Health,NHS England,31/10/2013,GPMS/APMS and PCTMS, Primary Care , BRIDGE HOUSE MEDICAL CENTRE ,1540220," 76,277.13 ",WA000002381,
Department of Health,NHS England,31/10/2013,GPMS/APMS and PCTMS, Primary Care , BRIDGE HOUSE SURGERY ,1376170," 82,697.31 ",LNE000002372,
Department of Health,NHS England,31/10/2013,GPMS/APMS and PCTMS, Primary Care , BRIDGE LANE GROUP PRACTICE ,1401313," 113,326.75 ",LNP000003332,
Department of Health,NHS England,31/10/2013,GPMS/APMS and PCTMS, Primary Care , BRIDGE MEDICAL CENTRE ,1495923," 59,928.10 ",TW000004525,
Department of Health,NHS England,31/10/2013,GPMS/APMS and PCTMS, Primary Care , BRIDGE STREET SURGERY ,1533076," 63,824.45 ",KHU000003129,
Department of Health,NHS England,31/10/2013,GPMS/APMS and PCTMS, Primary Care , BRIDGEGATE MEDICAL CENTRE ,1435059," 71,739.19 ",CU000002428,
Department of Health,NHS England,31/10/2013,GPMS/APMS and PCTMS, Primary Care , BRIDGEGATE SURGERY ,1468110," 77,638.64 ",NN000004754,
Department of Health,NHS England,31/10/2013,GPMS/APMS and PCTMS, Primary Care , BRIDGEMARY MEDICAL CENTRE ,1385652,"-65,324.69 ",SO000007183,
Department of Health,NHS England,31/10/2013,GPMS/APMS and PCTMS, Primary Care , BRIDGEMARY MEDICAL CENTRE ,1385653," 117,733.00 ",SO000007184,
Department of Health,NHS England,31/10/2013,GPMS/APMS and PCTMS, Primary Care , BRIDGES MEDICAL CENTRE ,1385447," 169,277.17 ",DO000003005,
Department of Health,NHS England,31/10/2013,GPMS/APMS and PCTMS, Primary Care , BRIDGES MEDICAL PRACTICE ,1393973,"-43,803.90 ",GAT000001474,
Department of Health,NHS England,31/10/2013,GPMS/APMS and PCTMS, Primary Care , BRIDGES MEDICAL PRACTICE ,1393974," 74,022.66 ",GAT000001475,
Department of Health,NHS England,31/10/2013,General Dental services and personal dental services, Secondary and Community Dental Care , BRIDGEWATER COMMUNITY HEALTHCARE NHS TRUST ,1536457," 119,426.00 ",26279842 ,
Department of Health,NHS England,31/10/2013,General Dental services and personal dental services, Secondary and Community Dental Care , BRIDGEWATER COMMUNITY HEALTHCARE NHS TRUST ,1536459," 119,426.00 ",26279843 ,
Department of Health,NHS England,31/10/2013,Services from other NHS bodies, Health & Justice , BRIDGEWATER COMMUNITY HEALTHCARE NHS TRUST ,1340059," 120,858.00 ",26279980 ,
Department of Health,NHS England,31/10/2013,Services from other NHS bodies, Health & Justice , BRIDGEWATER COMMUNITY HEALTHCARE NHS TRUST ,1446060," 120,858.00 ",26280248 ,
Department of Health,NHS England,31/10/2013,Services from other NHS bodies, Health & Justice , BRIDGEWATER COMMUNITY HEALTHCARE NHS TRUST ,1457296," 170,585.00 ",26280103 ,
Department of Health,NHS England,31/10/2013,Services from other NHS bodies, Public Health , BRIDGEWATER COMMUNITY HEALTHCARE NHS TRUST ,1361500," 243,868.00 ",26280102 ,
Department of Health,NHS England,31/10/2013,Services from other NHS bodies, Public Health , BRIDGEWATER COMMUNITY HEALTHCARE NHS TRUST ,1256980," 243,868.00 ",26279840 ,
Department of Health,NHS England,31/10/2013,Services from other NHS bodies, Public Health , BRIDGEWATER COMMUNITY HEALTHCARE NHS TRUST ,1142241," 378,407.00 ",26279832 ,
Department of Health,NHS England,31/10/2013,Services from other NHS bodies, Public Health , BRIDGEWATER COMMUNITY HEALTHCARE NHS TRUST ,1446039," 378,407.00 ",26280093 ,
Department of Health,NHS England,31/10/2013,Services from other NHS bodies, Public Health , BRIDGEWATER COMMUNITY HEALTHCARE NHS TRUST ,1446059," 451,000.00 ",26280233 ,
Department of Health,NHS England,31/10/2013,Services from other NHS bodies, Public Health , BRIDGEWATER COMMUNITY HEALTHCARE NHS TRUST ,1576137," 451,000.00 ",26279981 ,
Department of Health,NHS England,31/10/2013,GPMS/APMS and PCTMS, Primary Care , BRIDGEWATER FAMILY MEDICAL PRACTICE ,1514489," 42,198.77 ",SA000002649,
Department of Health,NHS England,31/10/2013,GPMS/APMS and PCTMS, Primary Care , BRIDGNORTH MEDICAL PRACTICE ,1514490," 135,651.38 ",SA000002651,
Department of Health,NHS England,31/10/2013,GPMS/APMS and PCTMS, Primary Care , BRIDPORT MEDICAL CENTRE ,1378146," 186,551.92 ",DO000003007,
Department of Health,NHS England,31/10/2013,GPMS/APMS and PCTMS, Primary Care , BRIERLEY HILL HEALTH & S C C ,1502275," 28,146.12 ",DUD000000943,
Department of Health,NHS England,31/10/2013,GPMS/APMS and PCTMS, Primary Care , BRIGHTON AND SUSSEX UNIVERSITY HOSPITALS NHS TRUST ,1349253," 61,000.00 ",137652 ,
Department of Health,NHS England,31/10/2013,Services from other NHS bodies, Specialised Commissioning , BRIGHTON AND SUSSEX UNIVERSITY HOSPITALS NHS TRUST ,1456140," 73,325.29 ",137745 ,
Department of Health,NHS England,31/10/2013,Services from other NHS bodies, Specialised Commissioning , BRIGHTON AND SUSSEX UNIVERSITY HOSPITALS NHS TRUST ,1455780," 82,989.18 ",136728 ,
Department of Health,NHS England,31/10/2013,Services from other NHS bodies, Specialised Commissioning , BRIGHTON AND SUSSEX UNIVERSITY HOSPITALS NHS TRUST ,1349082," 88,646.78 ",137415 ,
Department of Health,NHS England,31/10/2013,Services from other NHS bodies, Specialised Commissioning , BRIGHTON AND SUSSEX UNIVERSITY HOSPITALS NHS TRUST ,1387878," 104,595.71 ",137651 ,
Department of Health,NHS England,31/10/2013,Services from other NHS bodies, Specialised Commissioning , BRIGHTON AND SUSSEX UNIVERSITY HOSPITALS NHS TRUST ,1387533," 105,787.77 ",136727 ,
Department of Health,NHS England,31/10/2013,GPMS/APMS and PCTMS, Primary Care , BRINNINGTON HEALTH CENTRE BRINNINGTON ,1373179," 43,992.26 ",SPT000001185,
Department of Health,NHS England,31/10/2013,GPMS/APMS and PCTMS, Primary Care , BRINNINGTON HEALTH CENTRE STOCKPORT ,1373180," 45,880.06 ",SPT000001187,
Department of Health,NHS England,31/10/2013,Supplies and services � clinical, Health & Justice , BRISTOL COMMUNITY HEALTH CIC ,1479591," 40,625.00 ",41262238 ,
Department of Health,NHS England,31/10/2013,Purchase of healthcare from non-NHS bodies, Health & Justice , BRISTOL COMMUNITY HEALTH CIC ,1536779," 88,573.00 ",41262172 ,
Department of Health,NHS England,31/10/2013,GPMS/APMS and PCTMS, Primary Care , BRIXTON HILL GROUP PRACTICE ,1401270," 97,700.45 ",LNS000004609,
Department of Health,NHS England,31/10/2013,GPMS/APMS and PCTMS, Primary Care , BROAD LANE SURGERY ,1391448," 40,483.94 ",COV000001494,
Department of Health,NHS England,31/10/2013,GPMS/APMS and PCTMS, Primary Care , BROADMEAD MEDICAL CENTRE ,1402234," 105,836.70 ",BRS000003788,
Department of Health,NHS England,31/10/2013,GPMS/APMS and PCTMS, Primary Care , BROADMEAD SURGERY ,1395487,"-38,260.38 ",LNM000002938,
Department of Health,NHS England,31/10/2013,GPMS/APMS and PCTMS, Primary Care , BROADMEAD SURGERY ,1395488," 70,219.86 ",LNM000002939,
Department of Health,NHS England,31/10/2013,GPMS/APMS and PCTMS, Primary Care , BROADSHIRES HEALTH CENTRE ,1547894," 76,776.91 ",OX000002658,
Department of Health,NHS England,31/10/2013,GPMS/APMS and PCTMS, Primary Care , BROADWATER FARM ,1376171,"-34,348.91 ",LNE000002373,
Department of Health,NHS England,31/10/2013,GPMS/APMS and PCTMS, Primary Care , BROADWATER FARM ,1376172," 65,064.22 ",LNE000002374,
Department of Health,NHS England,31/10/2013,GPMS/APMS and PCTMS, Primary Care , BROADWATER MEDICAL CENTRE ,1495925," 60,634.86 ",TW000004527,
Department of Health,NHS England,31/10/2013,GPMS/APMS and PCTMS, Primary Care , BROADWAY MEDICAL CENTRE ,1525399," 83,452.62 ",LA000005747,
Department of Health,NHS England,31/10/2013,GPMS/APMS and PCTMS, Primary Care , BROADWAY PRACTICE ,1434277," 29,663.53 ",KC000007957,
Department of Health,NHS England,31/10/2013,GPMS/APMS and PCTMS, Primary Care , BROADWAY SURGERY ,1494635," 40,236.89 ",LNB000001893,
Department of Health,NHS England,31/10/2013,GPMS/APMS and PCTMS, Primary Care , BROCKHURST MEDICAL CENTRE ,1501815," 37,548.83 ",SO000007516,
Department of Health,NHS England,31/10/2013,GPMS/APMS and PCTMS, Primary Care , BROCKLEY SURGERY ,1395070," 32,179.95 ",LNS000004611,
Department of Health,NHS England,31/10/2013,GPMS/APMS and PCTMS, Primary Care , BROCKWELL MEDICAL GROUP ,1393796," 130,393.70 ",NR000001445,
Department of Health,NHS England,31/10/2013,GPMS/APMS and PCTMS, Primary Care , BROCKWELL PARK ,1401271," 56,122.04 ",LNS000004613,
Department of Health,NHS England,31/10/2013,GPMS/APMS and PCTMS, Primary Care , BROCKWOOD MEDICAL PRACTICE ,1395600," 104,879.94 ",SY000003490,
Department of Health,NHS England,31/10/2013,GPMS/APMS and PCTMS, Primary Care , BRODBIN & PARTNERS ,1482149," 39,834.15 ",BIK000001598,
Department of Health,NHS England,31/10/2013,GPMS/APMS and PCTMS, Primary Care , BROKEN CROSS SURGERY ,1394052," 38,146.71 ",CH000003218,
Department of Health,NHS England,31/10/2013,GPMS/APMS and PCTMS, Primary Care , BROMLEY COMMON PRACTICE ,1440634," 57,183.79 ",LNT000001532,
Department of Health,NHS England,31/10/2013,Purchase of healthcare from non-NHS bodies, Public Health , BROMLEY HEALTHCARE CIC ,1491332," 293,838.00 ",25574643 ,
Department of Health,NHS England,31/10/2013,GPMS/APMS and PCTMS, Primary Care , BRONDESBURY MEDICAL CENTRE ,1378089,"-72,962.49 ",LND000002210,
Department of Health,NHS England,31/10/2013,GPMS/APMS and PCTMS, Primary Care , BRONDESBURY MEDICAL CENTRE ,1482671," 25,362.68 ",LND000002261,
Department of Health,NHS England,31/10/2013,GPMS/APMS and PCTMS, Primary Care , BRONDESBURY MEDICAL CENTRE ,1378090," 161,833.06 ",LND000002211,
Department of Health,NHS England,31/10/2013,GPMS/APMS and PCTMS, Primary Care , BROOK GREEN MEDICAL CENTRE ,1527037," 117,334.63 ",LNM000003166,
Department of Health,NHS England,31/10/2013,GPMS/APMS and PCTMS, Primary Care , BROOK HEALTH CENTRE ,1393243," 88,449.26 ",NO000002495,
Department of Health,NHS England,31/10/2013,GPMS/APMS and PCTMS, Primary Care , BROOK HOUSE SURGERY ,1493449," 36,225.68 ",SO000007518,
Department of Health,NHS England,31/10/2013,GPMS/APMS and PCTMS, Primary Care , BROOK LANE SURGERY ,1501818," 96,389.26 ",SO000007520,
Department of Health,NHS England,31/10/2013,GPMS/APMS and PCTMS, Primary Care , BROOK MEDICAL CENTRE ,1539400," 46,189.23 ",NO000002644,
Department of Health,NHS England,31/10/2013,GPMS/APMS and PCTMS, Primary Care , BROOKE ROAD SURGERY ,1495298," 28,854.07 ",LNA000002980,
Department of Health,NHS England,31/10/2013,GPMS/APMS and PCTMS, Primary Care , BROOKE SURGERY ,1401839," 93,901.35 ",GMK000001622,
Department of Health,NHS England,31/10/2013,GPMS/APMS and PCTMS, Primary Care , BROOKES & LEE ,1481748,"-69,875.48 ",LIP000003244,
Department of Health,NHS England,31/10/2013,GPMS/APMS and PCTMS, Primary Care , BROOKES & LEE ,1352208," 32,447.53 ",LIP000002963,
Department of Health,NHS England,31/10/2013,GPMS/APMS and PCTMS, Primary Care , BROOKES & LEE ,1481749," 83,643.01 ",LIP000003245,
Department of Health,NHS England,31/10/2013,GPMS/APMS and PCTMS, Primary Care , BROOKFIELD PARK SURGERY ,1547929," 29,468.18 ",LND000002379,
Department of Health,NHS England,31/10/2013,GPMS/APMS and PCTMS, Primary Care , BROOKFIELD SURGERY ,1470095,"-39,411.18 ",CH000003524,
Department of Health,NHS England,31/10/2013,GPMS/APMS and PCTMS, Primary Care , BROOKFIELD SURGERY ,1319560," 40,952.74 ",CH000003091,
Department of Health,NHS England,31/10/2013,GPMS/APMS and PCTMS, Primary Care , BROOKFIELD SURGERY ,1470096," 56,002.14 ",CH000003525,
Department of Health,NHS England,31/10/2013,GPMS/APMS and PCTMS, Primary Care , BROOKHOUSE MEDICAL CENTRE ,1525401," 43,399.68 ",LA000005749,
Department of Health,NHS England,31/10/2013,GPMS/APMS and PCTMS, Primary Care , BROOKSIDE GROUP PRACTICE ,1493745,"-32,609.87 ",BE000003219,
Department of Health,NHS England,31/10/2013,GPMS/APMS and PCTMS, Primary Care , BROOKSIDE GROUP PRACTICE ,1493746," 197,450.72 ",BE000003220,
Department of Health,NHS England,31/10/2013,GPMS/APMS and PCTMS, Primary Care , BROOKSIDE HEALTH CENTRE ,1501820," 98,787.74 ",SO000007522,
Department of Health,NHS England,31/10/2013,GPMS/APMS and PCTMS, Primary Care , BROOKSIDE SURGERY ,1548228," 66,863.02 ",WA000002383,
Department of Health,NHS England,31/10/2013,GPMS/APMS and PCTMS, Primary Care , BROOM LEYS SURGERY ,1351111," 70,285.42 ",LD000003881,
Department of Health,NHS England,31/10/2013,GPMS/APMS and PCTMS, Primary Care , BROOMHILL SURGERY ,1532703," 61,838.61 ",SHE000002229,
Department of Health,NHS England,31/10/2013,GPMS/APMS and PCTMS, Primary Care , BROOMWOOD ROAD SURGERY ,1440635," 79,338.67 ",LNT000001534,
Department of Health,NHS England,31/10/2013,GPMS/APMS and PCTMS, Primary Care , BROSELEY MEDICAL PRACTICE ,1508537," 44,597.52 ",SA000002653,
Department of Health,NHS England,31/10/2013,GPMS/APMS and PCTMS, Primary Care , BROUGHTON HOUSE SURGERY ,1463638," 31,940.43 ",BU000002276,
Department of Health,NHS England,31/10/2013,GPMS/APMS and PCTMS, Primary Care , BROW MEDICAL CENTRE ,1495927," 37,923.13 ",TW000004529,
Department of Health,NHS England,31/10/2013,GPMS/APMS and PCTMS, Primary Care , BROWN B J & PARTNERS ,1392813," 46,965.04 ",EX000006847,
Department of Health,NHS England,31/10/2013,GPMS/APMS and PCTMS, Primary Care , BROWN CLEE MEDICAL PRACTICE ,1514491," 29,153.63 ",SA000002655,
Department of Health,NHS England,31/10/2013,GPMS/APMS and PCTMS, Primary Care , BROWNHILL SURGERY ,1501822," 54,627.46 ",SO000007524,
Department of Health,NHS England,31/10/2013,GPMS/APMS and PCTMS, Primary Care , BRUNE MEDICAL CENTRE ,1501824," 89,649.22 ",SO000007526,
Department of Health,NHS England,31/10/2013,GPMS/APMS and PCTMS, Primary Care , BRUNEL MEDICAL PRACTICE BABBACOMBE TORQUAY ,1577734," 137,021.31 ",DN000006281,
Department of Health,NHS England,31/10/2013,GPMS/APMS and PCTMS, Primary Care , BRUNEL MEDICAL PRACTICE BABBACOMBE TORQUAY ,1319253," 137,776.20 ",DN000005481,
Department of Health,NHS England,31/10/2013,GPMS/APMS and PCTMS, Primary Care , BRUNSWICK HOUSE MEDICAL GROUP ,1435061," 140,843.41 ",CU000002430,
Department of Health,NHS England,31/10/2013,GPMS/APMS and PCTMS, Primary Care , BRUNSWICK MEDICAL CENTRE UHPC ,1378091,"-45,927.56 ",LND000002212,
Department of Health,NHS England,31/10/2013,GPMS/APMS and PCTMS, Primary Care , BRUNSWICK MEDICAL CENTRE UHPC ,1378092," 69,245.37 ",LND000002213,
Department of Health,NHS England,31/10/2013,GPMS/APMS and PCTMS, Primary Care , BRUNSWICK SURGERY ,1483718," 47,300.28 ",TE000004017,
Department of Health,NHS England,31/10/2013,GPMS/APMS and PCTMS, Primary Care , BRYANT STREET ,1434282," 42,449.70 ",KC000007961,
Department of Health,NHS England,31/10/2013,Establishment, Other , BT GLOBAL SERVICES ,1349639," 127,322.80 ",333792 ,
Department of Health,NHS England,31/10/2013,Establishment, NHS England Running Costs , BT GLOBAL SERVICES ,1431343," 450,972.72 ",790100708 ,
Department of Health,NHS England,31/10/2013,Establishment, NHS England Running Costs , BT GLOBAL SERVICES ,1431308," 498,382.31 ",790100669 ,
Department of Health,NHS England,31/10/2013,Establishment, NHS England Running Costs , BT PLC ,1576238," 25,919.23 ",VP25914270Q03001,
Department of Health,NHS England,31/10/2013,Establishment, NHS England Running Costs , BT PLC ,1340318," 28,810.92 ",25558241N001,
Department of Health,NHS England,31/10/2013,GPMS/APMS and PCTMS, Primary Care , BUCHANAN ROAD SURGERY ,1532701," 51,537.63 ",SHE000002225,
Department of Health,NHS England,31/10/2013,GPMS/APMS and PCTMS, Primary Care , BUCKFASTLEIGH MEDICAL CENTRE ,1487776," 41,481.82 ",DN000005840,
Department of Health,NHS England,31/10/2013,Services from other NHS bodies, Health & Justice , BUCKINGHAMSHIRE HEALTHCARE NHS TRUST ,1431472," 14,903.99 ",BB003986,
Department of Health,NHS England,31/10/2013,Services from other NHS bodies, Secondary and Community Dental Care , BUCKINGHAMSHIRE HEALTHCARE NHS TRUST ,1431472," 215,971.79 ",BB003986,
Department of Health,NHS England,31/10/2013,Services from other NHS bodies, Public Health , BUCKINGHAMSHIRE HEALTHCARE NHS TRUST ,1431472," 763,785.09 ",BB003986,
Department of Health,NHS England,31/10/2013,Services from other NHS bodies, Specialised Commissioning , BUCKINGHAMSHIRE HEALTHCARE NHS TRUST ,1360834," 3,759,445.39 ",BB004005,
Department of Health,NHS England,31/10/2013,GPMS/APMS and PCTMS, Primary Care , BUCKINGHAMSHIRE LMC ,1491773," 25,794.90 ",134739-16-OCT-2013,
Department of Health,NHS England,31/10/2013,GPMS/APMS and PCTMS, Primary Care , BUCKLAND SURGERY ,1577726," 26,221.41 ",DN000006273,
Department of Health,NHS England,31/10/2013,GPMS/APMS and PCTMS, Primary Care , BUCKLAND SURGERY ,1319251," 26,716.75 ",DN000005473,
Department of Health,NHS England,31/10/2013,GPMS/APMS and PCTMS, Primary Care , BUDBROOKE MEDICAL CENTRE ,1540217," 34,226.81 ",WA000002377,
Department of Health,NHS England,31/10/2013,GPMS/APMS and PCTMS, Primary Care , BUDLEIGH SALTERTON MEDICAL CENTRE ,1577728," 81,897.86 ",DN000006275,
Department of Health,NHS England,31/10/2013,GPMS/APMS and PCTMS, Primary Care , BUDSHEAD MEDICAL PRACTICE TAMAR LCG ,1577730," 55,546.27 ",DN000006277,
Department of Health,NHS England,31/10/2013,GPMS/APMS and PCTMS, Primary Care , BUDSHEAD MEDICAL PRACTICE TAMAR LCG ,1319252," 59,436.66 ",DN000005477,
Department of Health,NHS England,31/10/2013,GPMS/APMS and PCTMS, Primary Care , BUGBROOKE MEDICAL PRACTICE ,1393237,"-25,439.12 ",NO000002489,
Department of Health,NHS England,31/10/2013,GPMS/APMS and PCTMS, Primary Care , BUGBROOKE MEDICAL PRACTICE ,1393238," 116,816.07 ",NO000002490,
Department of Health,NHS England,31/10/2013,GPMS/APMS and PCTMS, Primary Care , BULBANKS MEDICAL CENTRE ,1393606," 29,892.07 ",LNW000001591,
Department of Health,NHS England,31/10/2013,GPMS/APMS and PCTMS, Primary Care , BULL BELFITT & GUPTA ,1493229," 51,047.16 ",DE000004339,
Department of Health,NHS England,31/10/2013,GPMS/APMS and PCTMS, Primary Care , BUNBURY MEDICAL PRACTICE ,1394050," 52,628.09 ",CH000003216,
Department of Health,NHS England,31/10/2013,GPMS/APMS and PCTMS, Primary Care , BUNTINGFORD MEDICAL CENTRE ,1542382," 44,626.92 ",HT000004049,
Department of Health,NHS England,31/10/2013,Supplies and services � clinical, Specialised Commissioning , BUPA HOME HEALTHCARE LTD ,1466378," 39,794.00 ",SINV1236070,
Department of Health,NHS England,31/10/2013,Purchase of healthcare from non-NHS bodies, Specialised Commissioning , BUPA HOME HEALTHCARE LTD ,1360693," 56,608.53 ",BHHAUG13EOE,
Department of Health,NHS England,31/10/2013,Supplies and services � clinical, Specialised Commissioning , BUPA HOME HEALTHCARE LTD ,1466376," 88,270.96 ",SINV1236072,
Department of Health,NHS England,31/10/2013,Purchase of healthcare from non-NHS bodies, Specialised Commissioning , BUPA HOME HEALTHCARE LTD ,1360847," 236,926.66 ",BHHSEPT13NWSCGLTH,
Department of Health,NHS England,31/10/2013,Purchase of healthcare from non-NHS bodies, Specialised Commissioning , BUPA HOME HEALTHCARE LTD ,1576435," 1,229,117.81 ",BHHSEPT13NWSCG,
Department of Health,NHS England,31/10/2013,GPMS/APMS and PCTMS, Primary Care , BURDWOOD SURGERY ,1390880," 73,021.00 ",BE000003099,
Department of Health,NHS England,31/10/2013,GPMS/APMS and PCTMS, Primary Care , BURGESS H ,1365601," 95,688.44 ",MAN000001805,
Department of Health,NHS England,31/10/2013,GPMS/APMS and PCTMS, Primary Care , BURGESS ROAD SURGERY ,1385648,"-91,712.82 ",SO000007179,
Department of Health,NHS England,31/10/2013,GPMS/APMS and PCTMS, Primary Care , BURGESS ROAD SURGERY ,1385649," 170,320.92 ",SO000007180,
Department of Health,NHS England,31/10/2013,GPMS/APMS and PCTMS, Primary Care , BURN BRAE MEDICAL GROUP ,1393794," 70,189.86 ",NR000001443,
Department of Health,NHS England,31/10/2013,GPMS/APMS and PCTMS, Primary Care , BURNCROSS SURGERY ,1392604," 150,993.00 ",SHE000002039,
Department of Health,NHS England,31/10/2013,GPMS/APMS and PCTMS, Primary Care , BURNGREAVE SURGERY ,1392607," 61,982.87 ",SHE000002041,
Department of Health,NHS England,31/10/2013,GPMS/APMS and PCTMS, Primary Care , BURNHAM HEALTH CENTRE ,1458203," 141,110.05 ",BU000002272,
Department of Health,NHS England,31/10/2013,GPMS/APMS and PCTMS, Primary Care , BURNHAM MEDICAL CENTRE ,1541240," 149,581.63 ",SM000001952,
Department of Health,NHS England,31/10/2013,GPMS/APMS and PCTMS, Primary Care , BURNLEY MEDICAL PRACTICE ,1496965," 31,936.31 ",LNL000002586,
Department of Health,NHS England,31/10/2013,GPMS/APMS and PCTMS, Primary Care , BURNLEY WOOD MEDICAL CENTRE ,1525392," 45,271.17 ",LA000005739,
Department of Health,NHS England,31/10/2013,GPMS/APMS and PCTMS, Primary Care , BURNS A & PARTNERS ,1496076," 60,557.47 ",SY000003681,
Department of Health,NHS England,31/10/2013,GPMS/APMS and PCTMS, Primary Care , BURNTWOOD HEALTH & WELLBEING CENTRE ,1401977," 66,968.89 ",ST000005723,
Department of Health,NHS England,31/10/2013,GPMS/APMS and PCTMS, Primary Care , BURRELL & PARTNERS ,1391792,"-106,547.96 ",DR000002254,
Department of Health,NHS England,31/10/2013,GPMS/APMS and PCTMS, Primary Care , BURRELL & PARTNERS ,1391795," 204,036.35 ",DR000002255,
Department of Health,NHS England,31/10/2013,GPMS/APMS and PCTMS, Primary Care , BURSLEDON SURGERY ,1493448," 26,277.61 ",SO000007510,
Department of Health,NHS England,31/10/2013,GPMS/APMS and PCTMS, Primary Care , BURSTED WOOD SURGERY ,1401908," 35,423.71 ",LNW000001593,
Department of Health,NHS England,31/10/2013,GPMS/APMS and PCTMS, Primary Care , BURTON & BRANSGORE MEDICAL CENTRES ,1378141," 86,150.40 ",DO000003001,
Department of Health,NHS England,31/10/2013,General Dental services and personal dental services, Secondary and Community Dental Care , BURTON HOSPITALS NHS FOUNDATION TRUST ,1387904," 115,154.03 ",IN0013161081,
Department of Health,NHS England,31/10/2013,General Dental services and personal dental services, Secondary and Community Dental Care , BURTON HOSPITALS NHS FOUNDATION TRUST ,1576360," 115,154.03 ",IN0013229081,
Department of Health,NHS England,31/10/2013,Services from other NHS bodies, Specialised Commissioning , BURTON HOSPITALS NHS FOUNDATION TRUST ,1467101," 908,663.91 ",IN0013228661,
Department of Health,NHS England,31/10/2013,GPMS/APMS and PCTMS, Primary Care , BURTON LATIMER HEALTH CENTRE ,1393239,"-26,678.91 ",NO000002491,
Department of Health,NHS England,31/10/2013,GPMS/APMS and PCTMS, Primary Care , BURTON LATIMER HEALTH CENTRE ,1506516," 58,800.00 ",BUR0010,
Department of Health,NHS England,31/10/2013,GPMS/APMS and PCTMS, Primary Care , BURTON LATIMER HEALTH CENTRE ,1393240," 113,445.04 ",NO000002492,
Department of Health,NHS England,31/10/2013,GPMS/APMS and PCTMS, Primary Care , BURVILL HOUSE SURGERY ,1401408," 86,092.33 ",HT000003829,
Department of Health,NHS England,31/10/2013,GPMS/APMS and PCTMS, Primary Care , BURWELL SURGERY ,1495165," 62,729.51 ",CB000003696,
Department of Health,NHS England,31/10/2013,GPMS/APMS and PCTMS, Primary Care , BURY KNOWLE HEALTH CENTRE ,1390843," 122,188.56 ",OX000002546,
Department of Health,NHS England,31/10/2013,GPMS/APMS and PCTMS, Primary Care , BURY ROAD SURGERY ,1501811," 34,533.14 ",SO000007512,
Department of Health,NHS England,31/10/2013,GPMS/APMS and PCTMS, Primary Care , BUSH & PARTNERS ,1482142,"-144,329.24 ",BIK000001591,
Department of Health,NHS England,31/10/2013,GPMS/APMS and PCTMS, Primary Care , BUSH & PARTNERS ,1364638," 55,288.39 ",BIK000001473,
Department of Health,NHS England,31/10/2013,GPMS/APMS and PCTMS, Primary Care , BUSH & PARTNERS ,1482143," 164,470.92 ",BIK000001592,
Department of Health,NHS England,31/10/2013,GPMS/APMS and PCTMS, Primary Care , BUSHFIELD HEALTH CENTRE ,1502118," 40,838.73 ",CB000003698,
Department of Health,NHS England,31/10/2013,GPMS/APMS and PCTMS, Primary Care , BUTCHERY SURGERY ,1440787," 30,320.13 ",KC000007955,
Department of Health,NHS England,31/10/2013,GPMS/APMS and PCTMS, Primary Care , BUTE HOUSE MEDICAL PRACTICE ,1468458," 28,020.40 ",BD000002529,
Department of Health,NHS England,31/10/2013,GPMS/APMS and PCTMS, Primary Care , BUTE HOUSE MEDICAL PRACTICE ,1542960," 58,991.62 ",BD000002596,
Department of Health,NHS England,31/10/2013,GPMS/APMS and PCTMS, Primary Care , BUTE HOUSE SURGERY ,1378143," 69,443.09 ",DO000003003,
Department of Health,NHS England,31/10/2013,GPMS/APMS and PCTMS, Primary Care , BUTLER S & PARTNERS ,1401741," 74,830.78 ",EX000006845,
Department of Health,NHS England,31/10/2013,Premises, Other , BUTTERWICK HOSPICE CARE ,1388289," 190,852.00 ",13414 ,
Department of Health,NHS England,31/10/2013,GPMS/APMS and PCTMS, Primary Care , BUXTED SURGERY ,1458671," 27,775.74 ",TE000003669,
Department of Health,NHS England,31/10/2013,GPMS/APMS and PCTMS, Primary Care , BUXTED SURGERY ,1483549," 109,854.51 ",TE000003819,
Department of Health,NHS England,31/10/2013,GPMS/APMS and PCTMS, Primary Care , BYFIELD MEDICAL CENTRE ,1539398," 56,249.08 ",NO000002642,
Department of Health,NHS England,31/10/2013,GPMS/APMS and PCTMS, Primary Care , BYRNE & PARTNERS ,1481745," 25,680.90 ",LIP000003241,
Department of Health,NHS England,31/10/2013,General Opthalmic services, Primary Care , C I BAROT ,1419756," 25,506.35 ",3998055_S,
Department of Health,NHS England,31/10/2013,GPMS/APMS and PCTMS, Primary Care , C J D PEACH ,1401309," 104,321.59 ",LNP000003322,
Department of Health,NHS England,31/10/2013,GPMS/APMS and PCTMS, Primary Care , C J ELLIOTT ,1401310," 99,582.48 ",LNP000003324,
Department of Health,NHS England,31/10/2013,GPMS/APMS and PCTMS, Primary Care , C M KROLL ,1401311," 128,633.68 ",LNP000003326,
Department of Health,NHS England,31/10/2013,GPMS/APMS and PCTMS, Primary Care , C PERERA ,1395712," 41,612.18 ",LNP000003328,
Department of Health,NHS England,31/10/2013,GPMS/APMS and PCTMS, Primary Care , C RIBEIRO ,1401312," 83,264.56 ",LNP000003330,
Department of Health,NHS England,31/10/2013,GPMS/APMS and PCTMS, Primary Care , C TRAN ,1391272,"-30,002.78 ",LNC000002032,
Department of Health,NHS England,31/10/2013,GPMS/APMS and PCTMS, Primary Care , C TRAN ,1391274," 57,288.03 ",LNC000002033,
Department of Health,NHS England,31/10/2013,GPMS/APMS and PCTMS, Primary Care , CA STEDALL ,1522089," 55,242.95 ",WAL000001610,
Department of Health,NHS England,31/10/2013,GPMS/APMS and PCTMS, Primary Care , CABIN SURGERY ,1525396," 34,682.24 ",LA000005743,
Department of Health,NHS England,31/10/2013,GPMS/APMS and PCTMS, Primary Care , CADDINGTON MEDICAL PRACTICE ,1548010," 55,622.42 ",BD000002598,
Department of Health,NHS England,31/10/2013,GPMS/APMS and PCTMS, Primary Care , CAEN MEDICAL CENTRE ,1577732," 111,145.04 ",DN000006279,
Department of Health,NHS England,31/10/2013,GPMS/APMS and PCTMS, Primary Care , CALCOT MEDICAL CENTRE ,1458205," 62,224.19 ",BU000002274,
Department of Health,NHS England,31/10/2013,GPMS/APMS and PCTMS, Primary Care , CALDBECK SURGERY ,1435057," 56,180.27 ",CU000002426,
Department of Health,NHS England,31/10/2013,Services from other NHS bodies, Specialised Commissioning , CALDERDALE & HUDDERSFIELD NHS FOUNDATION TRUST ,1518404,"-538,006.00 ",90164 ,
Department of Health,NHS England,31/10/2013,Services from other NHS bodies, Secondary and Community Dental Care , CALDERDALE & HUDDERSFIELD NHS FOUNDATION TRUST ,1330903," 174,000.00 ",4710012641 ,
Department of Health,NHS England,31/10/2013,Services from other NHS bodies, Specialised Commissioning , CALDERDALE & HUDDERSFIELD NHS FOUNDATION TRUST ,1565484," 390,456.00 ",4710015675 ,
Department of Health,NHS England,31/10/2013,Services from other NHS bodies, Public Health , CALDERDALE & HUDDERSFIELD NHS FOUNDATION TRUST ,1330903," 558,021.00 ",4710012641 ,
Department of Health,NHS England,31/10/2013,Services from other NHS bodies, Specialised Commissioning , CALDERDALE & HUDDERSFIELD NHS FOUNDATION TRUST ,1575978," 617,848.00 ",4710012266 ,
Department of Health,NHS England,31/10/2013,Services from other NHS bodies, Specialised Commissioning , CALDERDALE & HUDDERSFIELD NHS FOUNDATION TRUST ,1330906," 1,462,272.00 ",4710012640 ,
Department of Health,NHS England,31/10/2013,Services from other NHS bodies, Specialised Commissioning , CALDERSTONES PARTNERSHIP NHS FOUNDATION TRUST ,1330967," 2,336,636.00 ",M0010665,
Department of Health,NHS England,31/10/2013,GPMS/APMS and PCTMS, Primary Care , CALE GREEN SURGERY ,1526152," 25,553.41 ",SPT000001217,
Department of Health,NHS England,31/10/2013,Services from other NHS bodies, Specialised Commissioning , CALEA UK LTD ,1340336," 31,212.00 ",1100000003 ,
Department of Health,NHS England,31/10/2013,Purchase of healthcare from non-NHS bodies, Specialised Commissioning , CALEA UK LTD ,1456224," 71,998.22 ",1100035815 ,
Department of Health,NHS England,31/10/2013,Services from other NHS bodies, Specialised Commissioning , CALEA UK LTD ,1340337," 124,229.40 ",1100000002 ,
Department of Health,NHS England,31/10/2013,Services from other NHS bodies, Specialised Commissioning , CALEA UK LTD ,1360830," 203,126.92 ",1100000001 ,
Department of Health,NHS England,31/10/2013,GPMS/APMS and PCTMS, Primary Care , CALLAGHAN JM & PARTNERS ,1481746,"-44,080.96 ",LIP000003242,
Department of Health,NHS England,31/10/2013,GPMS/APMS and PCTMS, Primary Care , CALLAGHAN JM & PARTNERS ,1352206," 42,531.26 ",LIP000002961,
Department of Health,NHS England,31/10/2013,GPMS/APMS and PCTMS, Primary Care , CALLAGHAN JM & PARTNERS ,1481747," 65,244.02 ",LIP000003243,
Department of Health,NHS England,31/10/2013,GPMS/APMS and PCTMS, Primary Care , CALLOWLAND SURGERY ,1542386," 90,131.49 ",HT000004053,
Department of Health,NHS England,31/10/2013,GPMS/APMS and PCTMS, Primary Care , CAMBERWELL GREEN SURGERY ,1395065," 102,394.05 ",LNS000004607,
Department of Health,NHS England,31/10/2013,Purchase of healthcare from non-NHS bodies, Specialised Commissioning , CAMBIAN HEALTHCARE LTD ,1565844,"-60,701.94 ",CR10215Q,
Department of Health,NHS England,31/10/2013,Purchase of healthcare from non-NHS bodies, Specialised Commissioning , CAMBIAN HEALTHCARE LTD ,1565514,"-27,463.01 ",CR102129,
Department of Health,NHS England,31/10/2013,Purchase of healthcare from non-NHS bodies, Specialised Commissioning , CAMBIAN HEALTHCARE LTD ,1565288," 29,053.92 ",IN126008,
Department of Health,NHS England,31/10/2013,GPMS/APMS and PCTMS, Primary Care , CAMBRIDGE ACCESS SURGERY ,1373164," 34,369.83 ",CB000003543,
Department of Health,NHS England,31/10/2013,GPMS/APMS and PCTMS, Primary Care , CAMBRIDGE AVENUE MEDICAL CENTRE ,1533075," 127,829.05 ",KHU000003127,
Department of Health,NHS England,31/10/2013,GPMS/APMS and PCTMS, Primary Care , CAMBRIDGE MEDICAL GROUP ,1434010," 58,302.17 ",MID000002098,
Department of Health,NHS England,31/10/2013,Services from other NHS bodies, Specialised Commissioning , CAMBRIDGE UNIVERSITY HOSPITALS NHS FOUNDATION TRUST ,1506478," 75,435.95 ",80134456 ,
Department of Health,NHS England,31/10/2013,Services from other NHS bodies, Specialised Commissioning , CAMBRIDGE UNIVERSITY HOSPITALS NHS FOUNDATION TRUST ,1552027," 358,164.89 ",80134842 ,
Department of Health,NHS England,31/10/2013,Services from other NHS bodies, Specialised Commissioning , CAMBRIDGE UNIVERSITY HOSPITALS NHS FOUNDATION TRUST ,1388459," 18,641,653.39 ",70010359 ,
Department of Health,NHS England,31/10/2013,Services from other NHS bodies, Health & Justice , CAMBRIDGESHIRE & PETERBOROUGH MENTAL HEALTH PARTNERSHIP NHS FOUNDATION TRUST ,1479362," 57,336.58 ",9900010480 ,
Department of Health,NHS England,31/10/2013,Services from other NHS bodies, Specialised Commissioning , CAMBRIDGESHIRE & PETERBOROUGH MENTAL HEALTH PARTNERSHIP NHS FOUNDATION TRUST ,1551850," 289,148.00 ",9900010478 ,
Department of Health,NHS England,31/10/2013,Services from other NHS bodies, Specialised Commissioning , CAMBRIDGESHIRE & PETERBOROUGH MENTAL HEALTH PARTNERSHIP NHS FOUNDATION TRUST ,1551849," 463,618.00 ",9900010477 ,
Department of Health,NHS England,31/10/2013,Services from other NHS bodies, Public Health , CAMBRIDGESHIRE & PETERBOROUGH MENTAL HEALTH PARTNERSHIP NHS FOUNDATION TRUST ,1388153," 1,340,000.00 ",9900010380 ,
Department of Health,NHS England,31/10/2013,Services from other NHS bodies, Specialised Commissioning , CAMBRIDGESHIRE COMMUNITY SERVICES ,1308593," 35,967.17 ",8500016332 ,
Department of Health,NHS England,31/10/2013,Services from other NHS bodies, Public Health , CAMBRIDGESHIRE COMMUNITY SERVICES ,1360606," 208,583.33 ",8500016228 ,
Department of Health,NHS England,31/10/2013,Services from other NHS bodies, Public Health , CAMBRIDGESHIRE COMMUNITY SERVICES ,1491456," 208,583.33 ",8500016642 ,
Department of Health,NHS England,31/10/2013,Services from other NHS bodies, Specialised Commissioning , CAMBRIDGESHIRE COMMUNITY SERVICES ,1445600," 548,234.33 ",8500016705 ,
Department of Health,NHS England,31/10/2013,Purchase of healthcare from non-NHS bodies, Health & Justice , CAMBRIDGESHIRE CONSTABULARY ,1317266," 230,000.00 ",10386 ,
Department of Health,NHS England,31/10/2013,Services from other NHS bodies, Health & Justice , CAMDEN & ISLINGTON NHS FOUNDATION TRUST ,1446112," 30,196.00 ",50004432 ,
Department of Health,NHS England,31/10/2013,Services from other NHS bodies, Military Health , CAMDEN & ISLINGTON NHS FOUNDATION TRUST ,1491510," 37,500.00 ",50004463 ,
Department of Health,NHS England,31/10/2013,GPMS/APMS and PCTMS, Primary Care , CAMDEN HEALTH IMPROVEMENT PRACTICE ,1378088," 56,635.47 ",LND000002209,
Department of Health,NHS England,31/10/2013,GPMS/APMS and PCTMS, Primary Care , CAMERON & PARTNER ,1482144,"-53,036.25 ",BIK000001593,
Department of Health,NHS England,31/10/2013,GPMS/APMS and PCTMS, Primary Care , CAMERON & PARTNER ,1482145," 61,524.18 ",BIK000001594,
Department of Health,NHS England,31/10/2013,GPMS/APMS and PCTMS, Primary Care , CAMPBELL SURGERY ,1385651," 46,016.86 ",SO000007182,
Department of Health,NHS England,31/10/2013,GPMS/APMS and PCTMS, Primary Care , CAMPHOR IA ,1482147," 31,020.18 ",BIK000001596,
Department of Health,NHS England,31/10/2013,GPMS/APMS and PCTMS, Primary Care , CAMROSE MEDICAL PARTNERSHIP ,1501813," 97,335.12 ",SO000007514,
Department of Health,NHS England,31/10/2013,GPMS/APMS and PCTMS, Primary Care , CANBERRA CENTRE FOR HEALTH ,1407025," 34,023.75 ",LNM000002937,
Department of Health,NHS England,31/10/2013,GPMS/APMS and PCTMS, Primary Care , CANBURY MEDICAL CENTRE ,1496256,"-25,623.31 ",LNN000002097,
Department of Health,NHS England,31/10/2013,GPMS/APMS and PCTMS, Primary Care , CANBURY MEDICAL CENTRE ,1496258," 92,859.36 ",LNN000002098,
Department of Health,NHS England,31/10/2013,GPMS/APMS and PCTMS, Primary Care , CANFORD HEATH GROUP PRACTICE ,1378139," 113,602.37 ",DO000002999,
Department of Health,NHS England,31/10/2013,GPMS/APMS and PCTMS, Primary Care , CANNINGTON HEALTH CENTRE ,1541234," 67,001.81 ",SM000001950,
Department of Health,NHS England,31/10/2013,GPMS/APMS and PCTMS, Primary Care , CANUTE SURGERY ,1493446," 49,441.15 ",SO000007506,
Department of Health,NHS England,31/10/2013,GPMS/APMS and PCTMS, Primary Care , CAPE ROAD SURGERY ,1548227," 38,692.59 ",WA000002379,
Department of Health,NHS England,31/10/2013,GPMS/APMS and PCTMS, Primary Care , CAPEK MEY ,1542159," 40,005.56 ",MAN000001929,
Department of Health,NHS England,31/10/2013,GPMS/APMS and PCTMS, Primary Care , CAPELFIELD SURGERY ,1401929," 56,539.43 ",SY000003488,
Department of Health,NHS England,31/10/2013,Consultancy services, Other , CAPITA BUSINESS SERVICES LTD ,1507203," 40,000.00 ",93209185 ,
Department of Health,NHS England,31/10/2013,Consultancy services, Other , CAPITA RESOURCING LTD ,1298752," 32,023.59 ",WN70194796,
Department of Health,NHS England,31/10/2013,GPMS/APMS and PCTMS, Primary Care , CAPLAN M ,1542161," 44,654.86 ",MAN000001931,
Department of Health,NHS England,31/10/2013,GPMS/APMS and PCTMS, Primary Care , CAPTAIN FRENCH LANE SURGERY ,1435055," 65,603.74 ",CU000002424,
Department of Health,NHS England,31/10/2013,GPMS/APMS and PCTMS, Primary Care , CARE HOME MEDICAL PRACTICE ,1351233," 87,172.95 ",SLF000001911,
Department of Health,NHS England,31/10/2013,Purchase of healthcare from non-NHS bodies, Health & Justice , CARE UK CLINICAL SERVICES LTD ,1405726," 25,468.00 ",120020294 ,
Department of Health,NHS England,31/10/2013,Purchase of healthcare from non-NHS bodies, Secondary and Community Dental Care , CARE UK CLINICAL SERVICES LTD ,1431560," 25,905.08 ",120021472 ,
Department of Health,NHS England,31/10/2013,GPMS/APMS and PCTMS, Primary Care , CARE UK CLINICAL SERVICES LTD ,1586993," 43,537.17 ",120021741 ,
Department of Health,NHS England,31/10/2013,Purchase of healthcare from non-NHS bodies, Health & Justice , CARE UK CLINICAL SERVICES LTD ,1417928," 48,891.94 ",120021473 ,
Department of Health,NHS England,31/10/2013,GPMS/APMS and PCTMS, Primary Care , CARE UK CLINICAL SERVICES LTD ,1576273," 59,101.57 ",120021591 ,
Department of Health,NHS England,31/10/2013,GPMS/APMS and PCTMS, Primary Care , CARE UK CLINICAL SERVICES LTD ,1445666," 63,342.84 ",120021887 ,
Department of Health,NHS England,31/10/2013,Purchase of healthcare from non-NHS bodies, Public Health , CARE UK CLINICAL SERVICES LTD ,1536875," 64,805.00 ",120021929 ,
Department of Health,NHS England,31/10/2013,GPMS/APMS and PCTMS, Primary Care , CARE UK CLINICAL SERVICES LTD ,1445665," 65,731.98 ",120021886 ,
Department of Health,NHS England,31/10/2013,GPMS/APMS and PCTMS, Primary Care , CARE UK CLINICAL SERVICES LTD ,1445661," 71,823.69 ",120021889 ,
Department of Health,NHS England,31/10/2013,GPMS/APMS and PCTMS, Primary Care , CARE UK CLINICAL SERVICES LTD ,1445662," 75,487.86 ",120021890 ,
Department of Health,NHS England,31/10/2013,GPMS/APMS and PCTMS, Primary Care , CARE UK CLINICAL SERVICES LTD ,1445663," 76,024.08 ",120021891 ,
Department of Health,NHS England,31/10/2013,GPMS/APMS and PCTMS, Primary Care , CARE UK CLINICAL SERVICES LTD ,1445664," 78,841.62 ",120021885 ,
Department of Health,NHS England,31/10/2013,GPMS/APMS and PCTMS, Primary Care , CARE UK CLINICAL SERVICES LTD ,1491429," 83,037.28 ",120021716 ,
Department of Health,NHS England,31/10/2013,GPMS/APMS and PCTMS, Primary Care , CARE UK CLINICAL SERVICES LTD ,1339477," 135,771.00 ",120015668 ,
Department of Health,NHS England,31/10/2013,GPMS/APMS and PCTMS, Primary Care , CARE UK CLINICAL SERVICES LTD ,1506528," 153,949.00 ",120021590 ,
Department of Health,NHS England,31/10/2013,Purchase of healthcare from non-NHS bodies, Health & Justice , CARE UK CLINICAL SERVICES LTD ,1318100," 168,073.67 ",120019798 ,
Department of Health,NHS England,31/10/2013,Purchase of healthcare from non-NHS bodies, Health & Justice , CARE UK CLINICAL SERVICES LTD ,1406792," 168,073.67 ",120021792 ,
Department of Health,NHS England,31/10/2013,Purchase of healthcare from non-NHS bodies, Health & Justice , CARE UK CLINICAL SERVICES LTD ,1506552," 184,750.00 ",120021595 ,
Department of Health,NHS England,31/10/2013,Purchase of healthcare from non-NHS bodies, Health & Justice , CARE UK CLINICAL SERVICES LTD ,1431699," 212,630.00 ",120021796 ,
Department of Health,NHS England,31/10/2013,Purchase of healthcare from non-NHS bodies, Health & Justice , CARE UK CLINICAL SERVICES LTD ,1431740," 307,274.13 ",120021598 ,
Department of Health,NHS England,31/10/2013,Purchase of healthcare from non-NHS bodies, Health & Justice , CARE UK CLINICAL SERVICES LTD ,1431698," 323,282.07 ",120021797 ,
Department of Health,NHS England,31/10/2013,Purchase of healthcare from non-NHS bodies, Health & Justice , CARE UK CLINICAL SERVICES LTD ,1330909," 340,288.55 ",120019801 ,
Department of Health,NHS England,31/10/2013,Purchase of healthcare from non-NHS bodies, Health & Justice , CARE UK CLINICAL SERVICES LTD ,1389347," 340,288.55 ",120021795 ,
Department of Health,NHS England,31/10/2013,Purchase of healthcare from non-NHS bodies, Health & Justice , CARE UK CLINICAL SERVICES LTD ,1389348," 405,002.33 ",120021793 ,
Department of Health,NHS England,31/10/2013,Purchase of healthcare from non-NHS bodies, Other , CARE UK CLINICAL SERVICES LTD ,1552844," 2,142,294.70 ",120022617 ,
Department of Health,NHS England,31/10/2013,GPMS/APMS and PCTMS, Primary Care , CARE UK CLINICAL SERVICES LTD BIRMINGHAM ,1347945," 51,500.00 ",BIR000003805,
Department of Health,NHS England,31/10/2013,GPMS/APMS and PCTMS, Primary Care , CARE UK CLINICAL SERVICES LTD BIRMINGHAM ,1502023," 120,164.44 ",BIR000004039,
Department of Health,NHS England,31/10/2013,GPMS/APMS and PCTMS, Primary Care , CARE UK CLINICAL SERVICES LTD SOUTHEND ON SEA ,1392810," 95,887.90 ",EX000006843,
Department of Health,NHS England,31/10/2013,Purchase of healthcare from non-NHS bodies, Health & Justice , CARE UK LTD ,1587436," 1,613,014.33 ",DUMMYOCT13043,
Department of Health,NHS England,31/10/2013,Purchase of healthcare from non-NHS bodies, Specialised Commissioning , CARE UK MENTAL HEALTH PARTNERSHIPS LTD ,1339920," 290,281.35 ",RFARM000265,
Department of Health,NHS England,31/10/2013,Purchase of healthcare from non-NHS bodies, Specialised Commissioning , CARE UK MENTAL HEALTH PARTNERSHIPS LTD ,1431747," 299,575.15 ",RFARM000272,
Department of Health,NHS England,31/10/2013,GPMS/APMS and PCTMS, Primary Care , CAREPOINT PRACTICE ,1468949," 35,750.73 ",LNK000000954,
Department of Health,NHS England,31/10/2013,GPMS/APMS and PCTMS, Primary Care , CARFAX HEALTH ENTERPRISE ,1412888," 241,968.08 ",WL000002824,
Department of Health,NHS England,31/10/2013,Purchase of healthcare from non-NHS bodies, Specialised Commissioning , CARING HOMES GROUP ,1361482," 200,733.15 ",57600938TO57600953,
Department of Health,NHS England,31/10/2013,GPMS/APMS and PCTMS, Primary Care , CARISBROOKE HEALTH CENTRE ,1493447," 73,432.71 ",SO000007508,
Department of Health,NHS England,31/10/2013,GPMS/APMS and PCTMS, Primary Care , CARISBROOKE SURGERY ,1483547," 67,898.00 ",TE000003817,
Department of Health,NHS England,31/10/2013,GPMS/APMS and PCTMS, Primary Care , CARITAS GENERAL PRACTICE PARTNERSHIP ,1373178," 115,448.06 ",SPT000001183,
Department of Health,NHS England,31/10/2013,GPMS/APMS and PCTMS, Primary Care , CARITAS GROUP PRACTICE ,1425885," 114,263.21 ",YW000002613,
Department of Health,NHS England,31/10/2013,GPMS/APMS and PCTMS, Primary Care , CARLETON PRACTICE ,1525390," 32,046.23 ",LA000005737,
Department of Health,NHS England,31/10/2013,GPMS/APMS and PCTMS, Primary Care , CARLISLE HOUSE SURGERY ,1487671," 52,562.66 ",DO000003205,
Department of Health,NHS England,31/10/2013,GPMS/APMS and PCTMS, Primary Care , CARLTON HOUSE SURGERY ,1548253," 91,800.34 ",LNE000002546,
Department of Health,NHS England,31/10/2013,GPMS/APMS and PCTMS, Primary Care , CARODOC SURGERY ,1526882," 54,691.26 ",DR000002509,
Department of Health,NHS England,31/10/2013,GPMS/APMS and PCTMS, Primary Care , CARRFIELD MEDICAL CENTRE ,1392610," 28,298.01 ",SHE000002043,
Department of Health,NHS England,31/10/2013,GPMS/APMS and PCTMS, Primary Care , CARRINGTON HOUSE SURGERY ,1458212," 80,361.88 ",BU000002282,
Department of Health,NHS England,31/10/2013,GPMS/APMS and PCTMS, Primary Care , CARTERKNOWLE & DORE MEDICAL PRACTICE ,1532705," 87,183.52 ",SHE000002233,
Department of Health,NHS England,31/10/2013,GPMS/APMS and PCTMS, Primary Care , CASSIDY MEDICAL CENTRE ,1407028," 57,218.90 ",LNM000002941,
Department of Health,NHS England,31/10/2013,GPMS/APMS and PCTMS, Primary Care , CASTLE GARDENS MEDICAL CENTRE ,1543068," 62,836.48 ",EX000007389,
Department of Health,NHS England,31/10/2013,GPMS/APMS and PCTMS, Primary Care , CASTLE GARDENS SURGERY ,1482910," 54,108.97 ",DN000005853,
Department of Health,NHS England,31/10/2013,GPMS/APMS and PCTMS, Primary Care , CASTLE HEALTH CENTRE ,1508847," 26,595.25 ",YN000003730,
Department of Health,NHS England,31/10/2013,GPMS/APMS and PCTMS, Primary Care , CASTLE MEADOWS SURGERY ,1494102,"-40,618.38 ",DUD000001027,
Department of Health,NHS England,31/10/2013,GPMS/APMS and PCTMS, Primary Care , CASTLE MEADOWS SURGERY ,1502371," 77,337.00 ",DUD000001028,
Department of Health,NHS England,31/10/2013,GPMS/APMS and PCTMS, Primary Care , CASTLE MEDICAL CENTRE ,1540225," 101,068.78 ",WA000002387,
Department of Health,NHS England,31/10/2013,GPMS/APMS and PCTMS, Primary Care , CASTLE MEDICAL GROUP ,1525402,"-25,896.46 ",LA000005750,
Department of Health,NHS England,31/10/2013,GPMS/APMS and PCTMS, Primary Care , CASTLE MEDICAL GROUP ,1532580," 129,987.23 ",LA000005751,
Department of Health,NHS England,31/10/2013,GPMS/APMS and PCTMS, Primary Care , CASTLE PLACE SURGERY TIVERTON ,1577748," 132,574.43 ",DN000006297,
Department of Health,NHS England,31/10/2013,GPMS/APMS and PCTMS, Primary Care , CASTLE PRACTICE ,1358970,"-30,169.96 ",CR000001890,
Department of Health,NHS England,31/10/2013,GPMS/APMS and PCTMS, Primary Care , CASTLE PRACTICE ,1358971," 61,022.30 ",CR000001891,
Department of Health,NHS England,31/10/2013,GPMS/APMS and PCTMS, Primary Care , CASTLE ST ,1548012," 83,027.92 ",BD000002602,
Department of Health,NHS England,31/10/2013,GPMS/APMS and PCTMS, Primary Care , CASTLEFOROAD MEDICAL PRACTICE ,1392496,"-51,722.71 ",WAK000001156,
Department of Health,NHS England,31/10/2013,GPMS/APMS and PCTMS, Primary Care , CASTLEFOROAD MEDICAL PRACTICE ,1392498," 108,079.57 ",WAK000001157,
Department of Health,NHS England,31/10/2013,GPMS/APMS and PCTMS, Primary Care , CASTLEGATE SURGERY COCKERMOUTH ,1435065," 96,465.40 ",CU000002434,
Department of Health,NHS England,31/10/2013,GPMS/APMS and PCTMS, Primary Care , CASTLEGATE SURGERY HERTFORD ,1542394," 49,937.68 ",HT000004065,
Department of Health,NHS England,31/10/2013,GPMS/APMS and PCTMS, Primary Care , CASTLEHEAD MEDICAL CENTRE ,1435067," 63,589.94 ",CU000002436,
Department of Health,NHS England,31/10/2013,GPMS/APMS and PCTMS, Primary Care , CASTLETON HEALTH CENTRE ,1528801," 85,472.83 ",ROC000001591,
Department of Health,NHS England,31/10/2013,GPMS/APMS and PCTMS, Primary Care , CASTLETON ROAD HEALTH CENTRE ,1502229," 30,343.69 ",LNB000001904,
Department of Health,NHS England,31/10/2013,GPMS/APMS and PCTMS, Primary Care , CATER STREET SURGERY ,1401493," 51,036.62 ",BD000002443,
Department of Health,NHS England,31/10/2013,GPMS/APMS and PCTMS, Primary Care , CATHEDRAL MEDICAL CENTRE ,1365987," 68,041.88 ",CB000003372,
Department of Health,NHS England,31/10/2013,GPMS/APMS and PCTMS, Primary Care , CATHEDRAL MEDICAL GROUP ,1393712," 107,435.99 ",TW000004202,
Department of Health,NHS England,31/10/2013,GPMS/APMS and PCTMS, Primary Care , CATOR MEDICAL CENTRE ,1433540,"-31,012.10 ",LNT000001541,
Department of Health,NHS England,31/10/2013,GPMS/APMS and PCTMS, Primary Care , CATOR MEDICAL CENTRE ,1440638," 101,717.21 ",LNT000001542,
Department of Health,NHS England,31/10/2013,GPMS/APMS and PCTMS, Primary Care , CATTERICK VILLAGE SURGERY ,1364418," 54,745.88 ",YN000003493,
Department of Health,NHS England,31/10/2013,GPMS/APMS and PCTMS, Primary Care , CAUSEWAY MEDICAL CENTRE ,1394058," 46,089.11 ",CH000003224,
Department of Health,NHS England,31/10/2013,GPMS/APMS and PCTMS, Primary Care , CAVENDISH HEALTH CENTRE ,1466954," 31,413.17 ",134563-15-OCT-2013,
Department of Health,NHS England,31/10/2013,GPMS/APMS and PCTMS, Primary Care , CAVENDISH HEALTH CENTRE ,1402170," 40,270.10 ",LNJ000001942,
Department of Health,NHS England,31/10/2013,GPMS/APMS and PCTMS, Primary Care , CAVERSHAM GROUP PRACTICE ,1482679," 39,306.58 ",LND000002265,
Department of Health,NHS England,31/10/2013,GPMS/APMS and PCTMS, Primary Care , CAVERSHAM GROUP PRACTICE ,1542630," 127,944.14 ",LND000002383,
Department of Health,NHS England,31/10/2013,GPMS/APMS and PCTMS, Primary Care , CAXTON SURGERY ,1494251," 116,915.60 ",SA000002574,
Department of Health,NHS England,31/10/2013,GPMS/APMS and PCTMS, Primary Care , CCA CARE PARTNERSHIP ,1319565," 66,997.57 ",CH000003096,
Department of Health,NHS England,31/10/2013,GPMS/APMS and PCTMS, Primary Care , CCA CARE PARTNERSHIP ,1394060," 117,247.34 ",CH000003226,
Department of Health,NHS England,31/10/2013,GPMS/APMS and PCTMS, Primary Care , CECIL LOBO ,1394264,"-105,826.36 ",LNA000002847,
Department of Health,NHS England,31/10/2013,GPMS/APMS and PCTMS, Primary Care , CECIL LOBO ,1394265," 195,800.32 ",LNA000002848,
Department of Health,NHS England,31/10/2013,GPMS/APMS and PCTMS, Primary Care , CEDAR BROOK PRACTICE ,1394566,"-103,426.99 ",LNK000000877,
Department of Health,NHS England,31/10/2013,GPMS/APMS and PCTMS, Primary Care , CEDAR BROOK PRACTICE ,1394567," 191,238.27 ",LNK000000878,
Department of Health,NHS England,31/10/2013,GPMS/APMS and PCTMS, Primary Care , CEDAR MEDICAL PRACTICE ,1533057," 64,774.49 ",KHU000003135,
Department of Health,NHS England,31/10/2013,GPMS/APMS and PCTMS, Primary Care , CEDAR PRACTICE ,1502446," 56,227.34 ",LNA000002990,
Department of Health,NHS England,31/10/2013,GPMS/APMS and PCTMS, Primary Care , CEDARS MEDICAL CENTRE ,1470099,"-42,023.75 ",CH000003530,
Department of Health,NHS England,31/10/2013,GPMS/APMS and PCTMS, Primary Care , CEDARS MEDICAL CENTRE ,1474371," 48,306.93 ",LNK000000960,
Department of Health,NHS England,31/10/2013,GPMS/APMS and PCTMS, Primary Care , CEDARS MEDICAL CENTRE ,1319566," 49,100.93 ",CH000003097,
Department of Health,NHS England,31/10/2013,GPMS/APMS and PCTMS, Primary Care , CEDARS MEDICAL CENTRE ,1470100," 59,824.00 ",CH000003531,
Department of Health,NHS England,31/10/2013,GPMS/APMS and PCTMS, Primary Care , CEDARS MEDICAL GROUP ,1402137,"-60,164.35 ",DR000002259,
Department of Health,NHS England,31/10/2013,GPMS/APMS and PCTMS, Primary Care , CEDARS MEDICAL GROUP ,1391805," 117,920.87 ",DR000002260,
Department of Health,NHS England,31/10/2013,GPMS/APMS and PCTMS, Primary Care , CEDARS SURGERY ,1440770," 66,970.41 ",KC000008393,
Department of Health,NHS England,31/10/2013,GPMS/APMS and PCTMS, Primary Care , CEDARS SURGERY MAIDENHEAD ,1493752," 80,198.57 ",BE000003226,
Department of Health,NHS England,31/10/2013,GPMS/APMS and PCTMS, Primary Care , CEDARS SURGERY WESTON MARE ,1390219," 56,117.67 ",BRS000003800,
Department of Health,NHS England,31/10/2013,Services from other NHS bodies, Health & Justice , CENTRAL & NORTH WEST LONDON NHS FOUNDATION TRUST ,1417986," 28,872.00 ",S0512281,
Department of Health,NHS England,31/10/2013,Services from other NHS bodies, Health & Justice , CENTRAL & NORTH WEST LONDON NHS FOUNDATION TRUST ,1363083," 36,984.00 ",S0512283,
Department of Health,NHS England,31/10/2013,Services from other NHS bodies, Other , CENTRAL & NORTH WEST LONDON NHS FOUNDATION TRUST ,1417725," 40,515.03 ",S0512243,
Department of Health,NHS England,31/10/2013,Services from other NHS bodies, Public Health , CENTRAL & NORTH WEST LONDON NHS FOUNDATION TRUST ,1417724," 42,296.80 ",S0512242,
Department of Health,NHS England,31/10/2013,Services from other NHS bodies, Secondary and Community Dental Care , CENTRAL & NORTH WEST LONDON NHS FOUNDATION TRUST ,1491335," 52,189.60 ",S0512201,
Department of Health,NHS England,31/10/2013,Services from other NHS bodies, Health & Justice , CENTRAL & NORTH WEST LONDON NHS FOUNDATION TRUST ,1479308," 57,740.00 ",S0512280,
Department of Health,NHS England,31/10/2013,Services from other NHS bodies, Secondary and Community Dental Care , CENTRAL & NORTH WEST LONDON NHS FOUNDATION TRUST ,1417727," 112,473.17 ",S0512244,
Department of Health,NHS England,31/10/2013,Services from other NHS bodies, Secondary and Community Dental Care , CENTRAL & NORTH WEST LONDON NHS FOUNDATION TRUST ,1565537," 127,481.42 ",S0512319,
Department of Health,NHS England,31/10/2013,Services from other NHS bodies, Secondary and Community Dental Care , CENTRAL & NORTH WEST LONDON NHS FOUNDATION TRUST ,1594344," 144,931.00 ",S0512329,
Department of Health,NHS England,31/10/2013,Services from other NHS bodies, Public Health , CENTRAL & NORTH WEST LONDON NHS FOUNDATION TRUST ,1387981," 179,868.29 ",S0512077,
Department of Health,NHS England,31/10/2013,Services from other NHS bodies, Health & Justice , CENTRAL & NORTH WEST LONDON NHS FOUNDATION TRUST ,1432189," 292,790.00 ",S0512331,
Department of Health,NHS England,31/10/2013,Services from other NHS bodies, Public Health , CENTRAL & NORTH WEST LONDON NHS FOUNDATION TRUST ,1491427," 318,953.00 ",S0512330,
Department of Health,NHS England,31/10/2013,Services from other NHS bodies, Public Health , CENTRAL & NORTH WEST LONDON NHS FOUNDATION TRUST ,1360620," 318,953.00 ",S0512163,
Department of Health,NHS England,31/10/2013,Services from other NHS bodies, Public Health , CENTRAL & NORTH WEST LONDON NHS FOUNDATION TRUST ,1431473," 591,705.21 ",S0512241,
Department of Health,NHS England,31/10/2013,Services from other NHS bodies, Health & Justice , CENTRAL & NORTH WEST LONDON NHS FOUNDATION TRUST ,1389098," 608,995.00 ",S0512282,
Department of Health,NHS England,31/10/2013,Services from other NHS bodies, Public Health , CENTRAL & NORTH WEST LONDON NHS FOUNDATION TRUST ,1349509," 1,443,318.75 ",S0512193,
Department of Health,NHS England,31/10/2013,Services from other NHS bodies, Specialised Commissioning , CENTRAL & NORTH WEST LONDON NHS FOUNDATION TRUST ,1350430," 3,155,662.00 ",S0512279,
Department of Health,NHS England,31/10/2013,GPMS/APMS and PCTMS, Primary Care , CENTRAL CLINIC ,1493986,"-28,268.40 ",DUD000000944,
Department of Health,NHS England,31/10/2013,GPMS/APMS and PCTMS, Primary Care , CENTRAL CLINIC ,1493989," 59,321.70 ",DUD000000945,
Department of Health,NHS England,31/10/2013,Services from other NHS bodies, Secondary and Community Dental Care , CENTRAL ESSEX COMMUNITY SERVICES CIC ,1431204," 39,613.00 ",CE4000004652,
Department of Health,NHS England,31/10/2013,Services from other NHS bodies, Primary Care , CENTRAL ESSEX COMMUNITY SERVICES CIC ,1586968," 39,613.00 ",CE4000004728,
Department of Health,NHS England,31/10/2013,Purchase of healthcare from non-NHS bodies, Public Health , CENTRAL ESSEX COMMUNITY SERVICES CIC ,1431204," 438,600.00 ",CE4000004652,
Department of Health,NHS England,31/10/2013,Purchase of healthcare from non-NHS bodies, Public Health , CENTRAL ESSEX COMMUNITY SERVICES CIC ,1586968," 438,600.00 ",CE4000004728,
Department of Health,NHS England,31/10/2013,Services from other NHS bodies, Other , CENTRAL LONDON COMMUNITY HEALTHCARE NHS TRUST ,1431594," 23,224.00 ",N0021179,
Department of Health,NHS England,31/10/2013,Services from other NHS bodies, Secondary and Community Dental Care , CENTRAL LONDON COMMUNITY HEALTHCARE NHS TRUST ,1431594," 411,462.00 ",N0021179,
Department of Health,NHS England,31/10/2013,Services from other NHS bodies, Health & Justice , CENTRAL LONDON COMMUNITY HEALTHCARE NHS TRUST ,1536734," 682,452.00 ",N0020788,
Department of Health,NHS England,31/10/2013,Services from other NHS bodies, Public Health , CENTRAL LONDON COMMUNITY HEALTHCARE NHS TRUST ,1431594," 1,193,263.00 ",N0021179,
Department of Health,NHS England,31/10/2013,Services from other NHS bodies, Public Health , CENTRAL MANCHESTER UNIVERSITY HOSPITALS NHS FOUNDATION TRUST ,1387583,"-287,640.00 ",924139 ,
Department of Health,NHS England,31/10/2013,Services from other NHS bodies, Specialised Commissioning , CENTRAL MANCHESTER UNIVERSITY HOSPITALS NHS FOUNDATION TRUST ,1387759,"-69,770.00 ",924397 ,
Department of Health,NHS England,31/10/2013,Services from other NHS bodies, Secondary and Community Dental Care , CENTRAL MANCHESTER UNIVERSITY HOSPITALS NHS FOUNDATION TRUST ,1360970,"-45,653.00 ",924716 ,
Department of Health,NHS England,31/10/2013,Services from other NHS bodies, Health & Justice , CENTRAL MANCHESTER UNIVERSITY HOSPITALS NHS FOUNDATION TRUST ,1418602," 28,782.00 ",215902 ,
Department of Health,NHS England,31/10/2013,Services from other NHS bodies, Secondary and Community Dental Care , CENTRAL MANCHESTER UNIVERSITY HOSPITALS NHS FOUNDATION TRUST ,1360317," 45,653.00 ",209722 ,
Department of Health,NHS England,31/10/2013,General Dental services and personal dental services, Secondary and Community Dental Care , CENTRAL MANCHESTER UNIVERSITY HOSPITALS NHS FOUNDATION TRUST ,1361526," 67,135.00 ",215900 ,
Department of Health,NHS England,31/10/2013,Services from other NHS bodies, Specialised Commissioning , CENTRAL MANCHESTER UNIVERSITY HOSPITALS NHS FOUNDATION TRUST ,1405498," 69,770.00 ",211180 ,
Department of Health,NHS England,31/10/2013,Services from other NHS bodies, Public Health , CENTRAL MANCHESTER UNIVERSITY HOSPITALS NHS FOUNDATION TRUST ,1375556," 76,219.00 ",215898 ,
Department of Health,NHS England,31/10/2013,General Dental services and personal dental services, Secondary and Community Dental Care , CENTRAL MANCHESTER UNIVERSITY HOSPITALS NHS FOUNDATION TRUST ,1339490," 76,672.00 ",209644 ,
Department of Health,NHS England,31/10/2013,General Dental services and personal dental services, Secondary and Community Dental Care , CENTRAL MANCHESTER UNIVERSITY HOSPITALS NHS FOUNDATION TRUST ,1339904," 76,672.00 ",213925 ,
Department of Health,NHS England,31/10/2013,Services from other NHS bodies, Public Health , CENTRAL MANCHESTER UNIVERSITY HOSPITALS NHS FOUNDATION TRUST ,1389099," 100,105.00 ",215899 ,
Department of Health,NHS England,31/10/2013,Services from other NHS bodies, Public Health , CENTRAL MANCHESTER UNIVERSITY HOSPITALS NHS FOUNDATION TRUST ,1478171," 154,538.00 ",207234 ,
Department of Health,NHS England,31/10/2013,General Dental services and personal dental services, Secondary and Community Dental Care , CENTRAL MANCHESTER UNIVERSITY HOSPITALS NHS FOUNDATION TRUST ,1374222," 230,015.00 ",207235 ,
Department of Health,NHS England,31/10/2013,Services from other NHS bodies, Public Health , CENTRAL MANCHESTER UNIVERSITY HOSPITALS NHS FOUNDATION TRUST ,1387515," 287,640.00 ",207109 ,
Department of Health,NHS England,31/10/2013,Services from other NHS bodies, Public Health , CENTRAL MANCHESTER UNIVERSITY HOSPITALS NHS FOUNDATION TRUST ,1507189," 1,452,368.00 ",216546 ,
Department of Health,NHS England,31/10/2013,Services from other NHS bodies, Public Health , CENTRAL MANCHESTER UNIVERSITY HOSPITALS NHS FOUNDATION TRUST ,1507190," 2,267,398.72 ",216548 ,
Department of Health,NHS England,31/10/2013,Services from other NHS bodies, Secondary and Community Dental Care , CENTRAL MANCHESTER UNIVERSITY HOSPITALS NHS FOUNDATION TRUST ,1507189," 2,296,776.00 ",216546 ,
Department of Health,NHS England,31/10/2013,Services from other NHS bodies, Secondary and Community Dental Care , CENTRAL MANCHESTER UNIVERSITY HOSPITALS NHS FOUNDATION TRUST ,1507190," 3,585,666.28 ",216548 ,
Department of Health,NHS England,31/10/2013,Services from other NHS bodies, Specialised Commissioning , CENTRAL MANCHESTER UNIVERSITY HOSPITALS NHS FOUNDATION TRUST ,1418601," 26,189,989.00 ",215915 ,
Department of Health,NHS England,31/10/2013,GPMS/APMS and PCTMS, Primary Care , CENTRAL MEDICAL CENTRE ,1395720," 73,878.17 ",LNP000003340,
Department of Health,NHS England,31/10/2013,GPMS/APMS and PCTMS, Primary Care , CENTRAL PARK SURGERY ,1532581," 30,922.26 ",LA000005753,
Department of Health,NHS England,31/10/2013,GPMS/APMS and PCTMS, Primary Care , CENTRAL SURGERY BARTON HUMBER ,1533058," 138,208.18 ",KHU000003137,
Department of Health,NHS England,31/10/2013,GPMS/APMS and PCTMS, Primary Care , CENTRAL SURGERY RUGBY ,1540226,"-27,282.44 ",WA000002388,
Department of Health,NHS England,31/10/2013,GPMS/APMS and PCTMS, Primary Care , CENTRAL SURGERY RUGBY ,1548229," 187,342.98 ",WA000002389,
Department of Health,NHS England,31/10/2013,Purchase of healthcare from non-NHS bodies, Specialised Commissioning , CENTRE FOR REPRODUCTIVE & GENETIC HEALTH ,1406790," 66,226.25 ",185090 ,
Department of Health,NHS England,31/10/2013,GPMS/APMS and PCTMS, Primary Care , CENTRE PRACTICE (THE) ,1493452," 111,250.82 ",SO000007538,
Department of Health,NHS England,31/10/2013,GPMS/APMS and PCTMS, Primary Care , CERNE ABBAS SURGERY ,1378148," 46,842.49 ",DO000003009,
Department of Health,NHS England,31/10/2013,GPMS/APMS and PCTMS, Primary Care , CESTRIA HEALTH CENTRE ,1391806,"-122,023.13 ",DR000002261,
Department of Health,NHS England,31/10/2013,GPMS/APMS and PCTMS, Primary Care , CESTRIA HEALTH CENTRE ,1402138," 237,285.18 ",DR000002262,
Department of Health,NHS England,31/10/2013,Other professional fees, NHS England Running Costs , CGI IT UK LTD ,1577481," 28,948.20 ",GB2460004345,
Department of Health,NHS England,31/10/2013,Other professional fees, Social Care , CGI IT UK LTD ,1349025," 60,848.42 ",GB2460002449,
Department of Health,NHS England,31/10/2013,GPMS/APMS and PCTMS, Primary Care , CH MEDICAL ,1401840," 72,190.81 ",GMK000001624,
Department of Health,NHS England,31/10/2013,GPMS/APMS and PCTMS, Primary Care , CHADSFIELD MEDICAL PRACTICE ,1532851," 53,270.10 ",SPT000001223,
Department of Health,NHS England,31/10/2013,GPMS/APMS and PCTMS, Primary Care , CHADWELL HEATH HEALTH CENTRE ,1494513,"-26,876.72 ",LNC000002114,
Department of Health,NHS England,31/10/2013,GPMS/APMS and PCTMS, Primary Care , CHADWELL HEATH HEALTH CENTRE ,1494514," 44,578.13 ",LNC000002115,
Department of Health,NHS England,31/10/2013,GPMS/APMS and PCTMS, Primary Care , CHADWELL HEATH SURGERY ,1395269," 62,463.82 ",LNB000001815,
Department of Health,NHS England,31/10/2013,GPMS/APMS and PCTMS, Primary Care , CHAGFORD HEALTH CENTRE ,1577750," 32,748.19 ",DN000006299,
Department of Health,NHS England,31/10/2013,GPMS/APMS and PCTMS, Primary Care , CHAGFORD HEALTH CENTRE ,1319256," 34,302.86 ",DN000005499,
Department of Health,NHS England,31/10/2013,GPMS/APMS and PCTMS, Primary Care , CHAGGAR ,1496326," 57,133.42 ",WBH000001322,
Department of Health,NHS England,31/10/2013,GPMS/APMS and PCTMS, Primary Care , CHAJED G C & PARTNERS ,1543070," 64,192.39 ",EX000007391,
Department of Health,NHS England,31/10/2013,GPMS/APMS and PCTMS, Primary Care , CHALABI & KHAN ,1394266,"-79,800.47 ",LNA000002849,
Department of Health,NHS England,31/10/2013,GPMS/APMS and PCTMS, Primary Care , CHALABI & KHAN ,1394267," 143,302.61 ",LNA000002850,
Department of Health,NHS England,31/10/2013,GPMS/APMS and PCTMS, Primary Care , CHALFONT ROAD SURGERY ,1542745," 30,999.06 ",LNE000002555,
Department of Health,NHS England,31/10/2013,GPMS/APMS and PCTMS, Primary Care , CHANA & PARTNERS ,1482301,"-45,067.83 ",STL000002505,
Department of Health,NHS England,31/10/2013,GPMS/APMS and PCTMS, Primary Care , CHANA & PARTNERS ,1482302," 59,195.10 ",STL000002506,
Department of Health,NHS England,31/10/2013,GPMS/APMS and PCTMS, Primary Care , CHANCERY LANE PRACTICE ,1540228," 58,374.20 ",WA000002391,
Department of Health,NHS England,31/10/2013,GPMS/APMS and PCTMS, Primary Care , CHAND NARULA & SPOONER ,1401623," 27,293.46 ",DE000004142,
Department of Health,NHS England,31/10/2013,GPMS/APMS and PCTMS, Primary Care , CHANDRA REDDY P ,1401743," 36,007.39 ",EX000006857,
Department of Health,NHS England,31/10/2013,GPMS/APMS and PCTMS, Primary Care , CHANDRASHEKHAR & PARTNER ,1481753,"-45,986.17 ",LIP000003250,
Department of Health,NHS England,31/10/2013,GPMS/APMS and PCTMS, Primary Care , CHANDRASHEKHAR & PARTNER ,1481754," 57,200.75 ",LIP000003251,
Department of Health,NHS England,31/10/2013,GPMS/APMS and PCTMS, Primary Care , CHANDY J ,1391807,"-59,028.01 ",DR000002263,
Department of Health,NHS England,31/10/2013,Prescribing costs, Primary Care , CHANDY J ,1391808," 1,107.67 ",DR000002264,
Department of Health,NHS England,31/10/2013,GPMS/APMS and PCTMS, Primary Care , CHANDY J ,1391808," 117,996.15 ",DR000002264,
Department of Health,NHS England,31/10/2013,GPMS/APMS and PCTMS, Primary Care , CHANG & PARTNERS ,1496267," 58,310.73 ",LNN000002104,
Department of Health,NHS England,31/10/2013,GPMS/APMS and PCTMS, Primary Care , CHANNEL VIEW SURGERY TEIGNMOUTH ,1577751," 79,728.33 ",DN000006301,
Department of Health,NHS England,31/10/2013,GPMS/APMS and PCTMS, Primary Care , CHAPEL ROW SURGERY ,1493754," 59,001.23 ",BE000003228,
Department of Health,NHS England,31/10/2013,GPMS/APMS and PCTMS, Primary Care , CHAPEL STREET MEDICAL PRACTICE ASHTON LYNE ,1525954," 47,017.25 ",GMK000001764,
Department of Health,NHS England,31/10/2013,GPMS/APMS and PCTMS, Primary Care , CHAPEL STREET MEDICAL PRACTICE DERBY ,1493233," 100,660.14 ",DE000004343,
Department of Health,NHS England,31/10/2013,GPMS/APMS and PCTMS, Primary Care , CHAPEL STREET SURGERY NEWHAVEN ,1483555," 51,037.20 ",TE000003825,
Department of Health,NHS England,31/10/2013,GPMS/APMS and PCTMS, Primary Care , CHARD ROAD SURGERY ,1578142," 72,093.11 ",DN000006283,
Department of Health,NHS England,31/10/2013,GPMS/APMS and PCTMS, Primary Care , CHARING SURGERY ,1440792," 67,638.12 ",KC000007963,
Department of Health,NHS England,31/10/2013,GPMS/APMS and PCTMS, Primary Care , CHARLBURY MEDCIAL CENTRE ,1547895," 40,088.61 ",OX000002660,
Department of Health,NHS England,31/10/2013,GPMS/APMS and PCTMS, Primary Care , CHARLESTOWN MEDICAL PRACTICE ,1542163," 59,192.02 ",MAN000001933,
Department of Health,NHS England,31/10/2013,GPMS/APMS and PCTMS, Primary Care , CHARLTON & PARTNERS ,1391798,"-72,712.56 ",DR000002256,
Department of Health,NHS England,31/10/2013,GPMS/APMS and PCTMS, Primary Care , CHARLTON & PARTNERS ,1391800," 144,540.11 ",DR000002257,
Department of Health,NHS England,31/10/2013,GPMS/APMS and PCTMS, Primary Care , CHARLTON HILL SURGERY ,1501825,"-36,844.22 ",SO000007527,
Department of Health,NHS England,31/10/2013,GPMS/APMS and PCTMS, Primary Care , CHARLTON HILL SURGERY ,1501826," 111,265.43 ",SO000007528,
Department of Health,NHS England,31/10/2013,GPMS/APMS and PCTMS, Primary Care , CHARLTON HOUSE MEDICAL CENTRE ,1548254," 53,909.67 ",LNE000002551,
Department of Health,NHS England,31/10/2013,GPMS/APMS and PCTMS, Primary Care , CHARLTON MEDICAL CENTRE ,1514492," 96,826.80 ",SA000002657,
Department of Health,NHS England,31/10/2013,GPMS/APMS and PCTMS, Primary Care , CHARNOCK HEALTH PRIMARY CARE CENTRE ,1532704," 38,172.52 ",SHE000002231,
Department of Health,NHS England,31/10/2013,GPMS/APMS and PCTMS, Primary Care , CHARTERHOUSE SURGERY ,1440636," 64,807.59 ",LNT000001536,
Department of Health,NHS England,31/10/2013,GPMS/APMS and PCTMS, Primary Care , CHASTLETON MEDICAL GROUP ,1532545," 114,841.93 ",DR000002511,
Department of Health,NHS England,31/10/2013,GPMS/APMS and PCTMS, Primary Care , CHATHAM STREET SURGERY ,1390882," 60,203.46 ",BE000003101,
Department of Health,NHS England,31/10/2013,GPMS/APMS and PCTMS, Primary Care , CHATTERJEE PC ,1547988," 74,323.65 ",MAN000001937,
Department of Health,NHS England,31/10/2013,GPMS/APMS and PCTMS, Primary Care , CHATURVEDI K K ,1392815," 26,871.52 ",EX000006849,
Department of Health,NHS England,31/10/2013,GPMS/APMS and PCTMS, Primary Care , CHAUCERS PRACTICE ,1391378," 123,339.10 ",WA000002293,
Department of Health,NHS England,31/10/2013,GPMS/APMS and PCTMS, Primary Care , CHAWLA & PARTNER ,1496322," 38,518.34 ",WBH000001316,
Department of Health,NHS England,31/10/2013,GPMS/APMS and PCTMS, Primary Care , CHAWTON HOUSE SURGERY ,1493450," 62,048.58 ",SO000007530,
Department of Health,NHS England,31/10/2013,GPMS/APMS and PCTMS, Primary Care , CHAWTON PARK SURGERY ,1501829," 89,363.18 ",SO000007532,
Department of Health,NHS England,31/10/2013,GPMS/APMS and PCTMS, Primary Care , CHEADLE HULME HEALTH CENTRE - DR SEABROOK ,1365572," 90,790.96 ",SPT000001189,
Department of Health,NHS England,31/10/2013,GPMS/APMS and PCTMS, Primary Care , CHEADLE HULME HEALTH CENTRE - DR SHIPSTON ,1365574," 82,641.62 ",SPT000001191,
Department of Health,NHS England,31/10/2013,GPMS/APMS and PCTMS, Primary Care , CHEADLE MEDICAL PRACTICE ,1526154," 84,980.78 ",SPT000001219,
Department of Health,NHS England,31/10/2013,GPMS/APMS and PCTMS, Primary Care , CHEAM FAMILY PRACTICE ,1401314," 110,900.32 ",LNP000003334,
Department of Health,NHS England,31/10/2013,GPMS/APMS and PCTMS, Primary Care , CHEDDAR MEDICAL CENTRE ROYNON WAY CHEDDAR ,1541247," 62,324.01 ",SM000001954,
Department of Health,NHS England,31/10/2013,GPMS/APMS and PCTMS, Primary Care , CHELFORD SURGERY ,1394054," 49,655.51 ",CH000003220,
Department of Health,NHS England,31/10/2013,GPMS/APMS and PCTMS, Primary Care , CHELLS WAY SURGERY ,1542389," 103,440.11 ",HT000004057,
Department of Health,NHS England,31/10/2013,Services from other NHS bodies, Secondary and Community Dental Care , CHELSEA AND WESTMINSTER HOSPITAL NHS FOUNDATION TRUST ,1406787," 327,244.00 ",8014002117 ,
